date,department/service,beneficiary,amount,summary of purpose,category,transaction number
01.11.2016,CENTRAL FUNCTIONS,HMCTS,-455.00,HOME OWNERSHIP,LEGAL FEES & COURT COSTS,5902221180
01.11.2016,CENTRAL FUNCTIONS,HMCTS,455.00,HOME OWNERSHIP,LEGAL FEES & COURT COSTS,5902187019
01.11.2016,CHILDREN'S SERVICES,YOUNG LONDON TODAY,"4,162.68",SEMI INDEPENDENT,EXTERNAL AGENCIES AND BODIES,5902220322
01.11.2016,HOUSING,GRAFTON MERCHANTING GB LTD,465.60,STORES,CREDITORS -GR/IR CLEARING ACCOUNT,5902220247
02.11.2016,ADULT SOCIAL CARE,INDO-CHINESE ELDERLY SERVICES PROJECT,499.50, OP CARE PACKAGES,DAYCARE,2102588176
02.11.2016,ADULT SOCIAL CARE,LONDON CARE PLC,345.80, OP CARE PACKAGES,HOMECARE - C&V,2102588036
02.11.2016,ADULT SOCIAL CARE,LONDON CARE PLC,345.80, OP CARE PACKAGES,HOMECARE - C&V,2102588064
02.11.2016,ADULT SOCIAL CARE,LONDON CARE PLC,345.80, OP CARE PACKAGES,HOMECARE - C&V,2102588074
02.11.2016,ADULT SOCIAL CARE,LONDON CARE PLC,460.88, OP CARE PACKAGES,HOMECARE - C&V,2102588151
02.11.2016,ADULT SOCIAL CARE,LONDON CARE PLC,543.32, OP CARE PACKAGES,HOMECARE - C&V,2102588153
02.11.2016,ADULT SOCIAL CARE,LONDON CARE PLC,576.24, OP CARE PACKAGES,HOMECARE - C&V,2102587990
02.11.2016,ADULT SOCIAL CARE,LONDON CARE PLC,576.24, OP CARE PACKAGES,HOMECARE - C&V,2102588034
02.11.2016,ADULT SOCIAL CARE,LONDON CARE PLC,740.80, OP CARE PACKAGES,HOMECARE - C&V,2102588052
02.11.2016,ADULT SOCIAL CARE,LONDON CARE PLC,806.68, OP CARE PACKAGES,HOMECARE - C&V,2102588082
02.11.2016,ADULT SOCIAL CARE,LONDON CARE PLC,839.68, OP CARE PACKAGES,HOMECARE - C&V,2102588005
02.11.2016,ADULT SOCIAL CARE,LONDON CARE PLC,843.73, OP CARE PACKAGES,HOMECARE - C&V,2102588014
02.11.2016,ADULT SOCIAL CARE,LONDON CARE PLC,872.52, OP CARE PACKAGES,HOMECARE - C&V,2102588077
02.11.2016,ADULT SOCIAL CARE,LONDON CARE PLC,880.61, OP CARE PACKAGES,HOMECARE - C&V,2102587994
02.11.2016,ADULT SOCIAL CARE,LONDON CARE PLC,921.76, OP CARE PACKAGES,HOMECARE - C&V,2102588006
02.11.2016,ADULT SOCIAL CARE,LONDON CARE PLC,921.76, OP CARE PACKAGES,HOMECARE - C&V,2102588147
02.11.2016,ADULT SOCIAL CARE,LONDON CARE PLC,921.76, OP CARE PACKAGES,HOMECARE - C&V,2102588164
02.11.2016,ADULT SOCIAL CARE,LONDON CARE PLC,921.90, OP CARE PACKAGES,HOMECARE - C&V,2102588108
02.11.2016,ADULT SOCIAL CARE,LONDON CARE PLC,946.59, OP CARE PACKAGES,HOMECARE - C&V,2102587946
02.11.2016,ADULT SOCIAL CARE,LONDON CARE PLC,"1,115.43", OP CARE PACKAGES,HOMECARE - C&V,2102587964
02.11.2016,ADULT SOCIAL CARE,LONDON CARE PLC,"1,152.20", OP CARE PACKAGES,HOMECARE - C&V,2102588008
02.11.2016,ADULT SOCIAL CARE,LONDON CARE PLC,"1,382.92", OP CARE PACKAGES,HOMECARE - C&V,2102588095
02.11.2016,ADULT SOCIAL CARE,LONDON CARE PLC,"1,399.24", OP CARE PACKAGES,HOMECARE - C&V,2102588152
02.11.2016,ADULT SOCIAL CARE,LONDON CARE PLC,"1,432.16", OP CARE PACKAGES,HOMECARE - C&V,2102588149
02.11.2016,ADULT SOCIAL CARE,LONDON CARE PLC,"1,514.32", OP CARE PACKAGES,HOMECARE - C&V,2102588079
02.11.2016,ADULT SOCIAL CARE,LONDON CARE PLC,"2,066.01", OP CARE PACKAGES,HOMECARE - C&V,2102588109
02.11.2016,ADULT SOCIAL CARE,LONDON CARE PLC,"2,074.24", OP CARE PACKAGES,HOMECARE - C&V,2102588028
02.11.2016,ADULT SOCIAL CARE,LONDON CARE PLC,"2,370.80", OP CARE PACKAGES,HOMECARE - C&V,2102588144
02.11.2016,ADULT SOCIAL CARE,LONDON CARE PLC,"2,535.12", OP CARE PACKAGES,HOMECARE - C&V,2102588011
02.11.2016,ADULT SOCIAL CARE,LONDON CARE PLC,"3,128.24", OP CARE PACKAGES,HOMECARE - C&V,2102588033
02.11.2016,ADULT SOCIAL CARE,LONDON CARE PLC,"3,411.89", OP CARE PACKAGES,HOMECARE - C&V,2102588155
02.11.2016,ADULT SOCIAL CARE,MEDACS HOMECARE,375.68, OP CARE PACKAGES,HOMECARE - SPOT,2102588179
02.11.2016,ADULT SOCIAL CARE,MEDACS HOMECARE,505.56, OP CARE PACKAGES,HOMECARE - SPOT,2102588181
02.11.2016,ADULT SOCIAL CARE,MEDACS HOMECARE,823.72, OP CARE PACKAGES,HOMECARE - SPOT,2102588180
02.11.2016,ADULT SOCIAL CARE,MEDACS HOMECARE,867.00, OP CARE PACKAGES,HOMECARE - SPOT,2102588178
02.11.2016,ADULT SOCIAL CARE,LONDON CARE PLC,255.16,HOME CARE C&V,HOMECARE - C&V,2102587984
02.11.2016,ADULT SOCIAL CARE,LONDON CARE PLC,308.71,HOME CARE C&V,HOMECARE - C&V,2102588116
02.11.2016,ADULT SOCIAL CARE,LONDON CARE PLC,321.10,HOME CARE C&V,HOMECARE - C&V,2102588081
02.11.2016,ADULT SOCIAL CARE,LONDON CARE PLC,341.59,HOME CARE C&V,HOMECARE - C&V,2102587957
02.11.2016,ADULT SOCIAL CARE,LONDON CARE PLC,345.72,HOME CARE C&V,HOMECARE - C&V,2102588038
02.11.2016,ADULT SOCIAL CARE,LONDON CARE PLC,345.80,HOME CARE C&V,HOMECARE - C&V,2102587950
02.11.2016,ADULT SOCIAL CARE,LONDON CARE PLC,370.35,HOME CARE C&V,HOMECARE - C&V,2102588159
02.11.2016,ADULT SOCIAL CARE,LONDON CARE PLC,395.04,HOME CARE C&V,HOMECARE - C&V,2102588112
02.11.2016,ADULT SOCIAL CARE,LONDON CARE PLC,427.96,HOME CARE C&V,HOMECARE - C&V,2102587987
02.11.2016,ADULT SOCIAL CARE,LONDON CARE PLC,510.40,HOME CARE C&V,HOMECARE - C&V,2102588043
02.11.2016,ADULT SOCIAL CARE,LONDON CARE PLC,543.20,HOME CARE C&V,HOMECARE - C&V,2102588105
02.11.2016,ADULT SOCIAL CARE,LONDON CARE PLC,559.72,HOME CARE C&V,HOMECARE - C&V,2102588039
02.11.2016,ADULT SOCIAL CARE,LONDON CARE PLC,572.11,HOME CARE C&V,HOMECARE - C&V,2102588137
02.11.2016,ADULT SOCIAL CARE,LONDON CARE PLC,592.56,HOME CARE C&V,HOMECARE - C&V,2102588031
02.11.2016,ADULT SOCIAL CARE,LONDON CARE PLC,642.08,HOME CARE C&V,HOMECARE - C&V,2102587945
02.11.2016,ADULT SOCIAL CARE,LONDON CARE PLC,662.63,HOME CARE C&V,HOMECARE - C&V,2102588045
02.11.2016,ADULT SOCIAL CARE,LONDON CARE PLC,691.32,HOME CARE C&V,HOMECARE - C&V,2102587956
02.11.2016,ADULT SOCIAL CARE,LONDON CARE PLC,699.55,HOME CARE C&V,HOMECARE - C&V,2102588103
02.11.2016,ADULT SOCIAL CARE,LONDON CARE PLC,724.24,HOME CARE C&V,HOMECARE - C&V,2102587968
02.11.2016,ADULT SOCIAL CARE,LONDON CARE PLC,757.44,HOME CARE C&V,HOMECARE - C&V,2102587988
02.11.2016,ADULT SOCIAL CARE,LONDON CARE PLC,798.45,HOME CARE C&V,HOMECARE - C&V,2102588061
02.11.2016,ADULT SOCIAL CARE,LONDON CARE PLC,835.44,HOME CARE C&V,HOMECARE - C&V,2102587951
02.11.2016,ADULT SOCIAL CARE,LONDON CARE PLC,921.76,HOME CARE C&V,HOMECARE - C&V,2102588161
02.11.2016,ADULT SOCIAL CARE,LONDON CARE PLC,938.36,HOME CARE C&V,HOMECARE - C&V,2102588053
02.11.2016,ADULT SOCIAL CARE,LONDON CARE PLC,962.98,HOME CARE C&V,HOMECARE - C&V,2102588072
02.11.2016,ADULT SOCIAL CARE,LONDON CARE PLC,"1,053.44",HOME CARE C&V,HOMECARE - C&V,2102587970
02.11.2016,ADULT SOCIAL CARE,LONDON CARE PLC,"1,143.97",HOME CARE C&V,HOMECARE - C&V,2102588123
02.11.2016,ADULT SOCIAL CARE,LONDON CARE PLC,"1,205.80",HOME CARE C&V,HOMECARE - C&V,2102588063
02.11.2016,ADULT SOCIAL CARE,LONDON CARE PLC,"1,819.38",HOME CARE C&V,HOMECARE - C&V,2102588165
02.11.2016,ADULT SOCIAL CARE,LONDON CARE PLC,"2,132.09",HOME CARE C&V,HOMECARE - C&V,2102588126
02.11.2016,ADULT SOCIAL CARE,RENTOKIL SHARED SERVICES LTD,484.29,MH NORTH,BUILDING R&M,5902220992
02.11.2016,ADULT SOCIAL CARE,LONDON CARE PLC,-419.73,OP - HOMECARE,HOMECARE - C&V,2102588169
02.11.2016,ADULT SOCIAL CARE,LONDON CARE PLC,-271.59,OP - HOMECARE,HOMECARE - C&V,2102588170
02.11.2016,ADULT SOCIAL CARE,LONDON CARE PLC,279.82,OP - HOMECARE,HOMECARE - C&V,2102588066
02.11.2016,ADULT SOCIAL CARE,LONDON CARE PLC,288.05,OP - HOMECARE,HOMECARE - C&V,2102588037
02.11.2016,ADULT SOCIAL CARE,LONDON CARE PLC,329.20,OP - HOMECARE,HOMECARE - C&V,2102587972
02.11.2016,ADULT SOCIAL CARE,LONDON CARE PLC,329.20,OP - HOMECARE,HOMECARE - C&V,2102588024
02.11.2016,ADULT SOCIAL CARE,LONDON CARE PLC,345.66,OP - HOMECARE,HOMECARE - C&V,2102587960
02.11.2016,ADULT SOCIAL CARE,LONDON CARE PLC,345.72,OP - HOMECARE,HOMECARE - C&V,2102588117
02.11.2016,ADULT SOCIAL CARE,LONDON CARE PLC,345.80,OP - HOMECARE,HOMECARE - C&V,2102587999
02.11.2016,ADULT SOCIAL CARE,LONDON CARE PLC,345.80,OP - HOMECARE,HOMECARE - C&V,2102588019
02.11.2016,ADULT SOCIAL CARE,LONDON CARE PLC,345.80,OP - HOMECARE,HOMECARE - C&V,2102588055
02.11.2016,ADULT SOCIAL CARE,LONDON CARE PLC,362.12,OP - HOMECARE,HOMECARE - C&V,2102588015
02.11.2016,ADULT SOCIAL CARE,LONDON CARE PLC,362.24,OP - HOMECARE,HOMECARE - C&V,2102588142
02.11.2016,ADULT SOCIAL CARE,LONDON CARE PLC,395.04,OP - HOMECARE,HOMECARE - C&V,2102588004
02.11.2016,ADULT SOCIAL CARE,LONDON CARE PLC,411.60,OP - HOMECARE,HOMECARE - C&V,2102587981
02.11.2016,ADULT SOCIAL CARE,LONDON CARE PLC,427.96,OP - HOMECARE,HOMECARE - C&V,2102588090
02.11.2016,ADULT SOCIAL CARE,LONDON CARE PLC,427.96,OP - HOMECARE,HOMECARE - C&V,2102588140
02.11.2016,ADULT SOCIAL CARE,LONDON CARE PLC,427.96,OP - HOMECARE,HOMECARE - C&V,2102588141
02.11.2016,ADULT SOCIAL CARE,LONDON CARE PLC,444.42,OP - HOMECARE,HOMECARE - C&V,2102588050
02.11.2016,ADULT SOCIAL CARE,LONDON CARE PLC,444.44,OP - HOMECARE,HOMECARE - C&V,2102588022
02.11.2016,ADULT SOCIAL CARE,LONDON CARE PLC,448.64,OP - HOMECARE,HOMECARE - C&V,2102587947
02.11.2016,ADULT SOCIAL CARE,LONDON CARE PLC,452.65,OP - HOMECARE,HOMECARE - C&V,2102588041
02.11.2016,ADULT SOCIAL CARE,LONDON CARE PLC,452.72,OP - HOMECARE,HOMECARE - C&V,2102588166
02.11.2016,ADULT SOCIAL CARE,LONDON CARE PLC,460.88,OP - HOMECARE,HOMECARE - C&V,2102587971
02.11.2016,ADULT SOCIAL CARE,LONDON CARE PLC,460.88,OP - HOMECARE,HOMECARE - C&V,2102588003
02.11.2016,ADULT SOCIAL CARE,LONDON CARE PLC,460.88,OP - HOMECARE,HOMECARE - C&V,2102588009
02.11.2016,ADULT SOCIAL CARE,LONDON CARE PLC,460.88,OP - HOMECARE,HOMECARE - C&V,2102588065
02.11.2016,ADULT SOCIAL CARE,LONDON CARE PLC,460.88,OP - HOMECARE,HOMECARE - C&V,2102588085
02.11.2016,ADULT SOCIAL CARE,LONDON CARE PLC,461.02,OP - HOMECARE,HOMECARE - C&V,2102587976
02.11.2016,ADULT SOCIAL CARE,LONDON CARE PLC,469.11,OP - HOMECARE,HOMECARE - C&V,2102588056
02.11.2016,ADULT SOCIAL CARE,LONDON CARE PLC,477.34,OP - HOMECARE,HOMECARE - C&V,2102588023
02.11.2016,ADULT SOCIAL CARE,LONDON CARE PLC,477.48,OP - HOMECARE,HOMECARE - C&V,2102588127
02.11.2016,ADULT SOCIAL CARE,LONDON CARE PLC,514.51,OP - HOMECARE,HOMECARE - C&V,2102588032
02.11.2016,ADULT SOCIAL CARE,LONDON CARE PLC,518.49,OP - HOMECARE,HOMECARE - C&V,2102587969
02.11.2016,ADULT SOCIAL CARE,LONDON CARE PLC,522.73,OP - HOMECARE,HOMECARE - C&V,2102588000
02.11.2016,ADULT SOCIAL CARE,LONDON CARE PLC,526.72,OP - HOMECARE,HOMECARE - C&V,2102588025
02.11.2016,ADULT SOCIAL CARE,LONDON CARE PLC,526.72,OP - HOMECARE,HOMECARE - C&V,2102588124
02.11.2016,ADULT SOCIAL CARE,LONDON CARE PLC,526.72,OP - HOMECARE,HOMECARE - C&V,2102588132
02.11.2016,ADULT SOCIAL CARE,LONDON CARE PLC,535.05,OP - HOMECARE,HOMECARE - C&V,2102588027
02.11.2016,ADULT SOCIAL CARE,LONDON CARE PLC,535.08,OP - HOMECARE,HOMECARE - C&V,2102587955
02.11.2016,ADULT SOCIAL CARE,LONDON CARE PLC,543.18,OP - HOMECARE,HOMECARE - C&V,2102588092
02.11.2016,ADULT SOCIAL CARE,LONDON CARE PLC,559.64,OP - HOMECARE,HOMECARE - C&V,2102587989
02.11.2016,ADULT SOCIAL CARE,LONDON CARE PLC,559.64,OP - HOMECARE,HOMECARE - C&V,2102588026
02.11.2016,ADULT SOCIAL CARE,LONDON CARE PLC,568.01,OP - HOMECARE,HOMECARE - C&V,2102587993
02.11.2016,ADULT SOCIAL CARE,LONDON CARE PLC,576.10,OP - HOMECARE,HOMECARE - C&V,2102587977
02.11.2016,ADULT SOCIAL CARE,LONDON CARE PLC,576.24,OP - HOMECARE,HOMECARE - C&V,2102588145
02.11.2016,ADULT SOCIAL CARE,LONDON CARE PLC,576.24,OP - HOMECARE,HOMECARE - C&V,2102588158
02.11.2016,ADULT SOCIAL CARE,LONDON CARE PLC,592.56,OP - HOMECARE,HOMECARE - C&V,2102587966
02.11.2016,ADULT SOCIAL CARE,LONDON CARE PLC,592.72,OP - HOMECARE,HOMECARE - C&V,2102587944
02.11.2016,ADULT SOCIAL CARE,LONDON CARE PLC,609.02,OP - HOMECARE,HOMECARE - C&V,2102587939
02.11.2016,ADULT SOCIAL CARE,LONDON CARE PLC,609.16,OP - HOMECARE,HOMECARE - C&V,2102588078
02.11.2016,ADULT SOCIAL CARE,LONDON CARE PLC,633.85,OP - HOMECARE,HOMECARE - C&V,2102588073
02.11.2016,ADULT SOCIAL CARE,LONDON CARE PLC,666.77,OP - HOMECARE,HOMECARE - C&V,2102588125
02.11.2016,ADULT SOCIAL CARE,LONDON CARE PLC,674.86,OP - HOMECARE,HOMECARE - C&V,2102588134
02.11.2016,ADULT SOCIAL CARE,LONDON CARE PLC,674.99,OP - HOMECARE,HOMECARE - C&V,2102588018
02.11.2016,ADULT SOCIAL CARE,LONDON CARE PLC,691.32,OP - HOMECARE,HOMECARE - C&V,2102588007
02.11.2016,ADULT SOCIAL CARE,LONDON CARE PLC,691.48,OP - HOMECARE,HOMECARE - C&V,2102587982
02.11.2016,ADULT SOCIAL CARE,LONDON CARE PLC,707.78,OP - HOMECARE,HOMECARE - C&V,2102588146
02.11.2016,ADULT SOCIAL CARE,LONDON CARE PLC,707.89,OP - HOMECARE,HOMECARE - C&V,2102587998
02.11.2016,ADULT SOCIAL CARE,LONDON CARE PLC,741.00,OP - HOMECARE,HOMECARE - C&V,2102588096
02.11.2016,ADULT SOCIAL CARE,LONDON CARE PLC,749.07,OP - HOMECARE,HOMECARE - C&V,2102588120
02.11.2016,ADULT SOCIAL CARE,LONDON CARE PLC,757.16,OP - HOMECARE,HOMECARE - C&V,2102587938
02.11.2016,ADULT SOCIAL CARE,LONDON CARE PLC,757.27,OP - HOMECARE,HOMECARE - C&V,2102588054
02.11.2016,ADULT SOCIAL CARE,LONDON CARE PLC,761.51,OP - HOMECARE,HOMECARE - C&V,2102588048
02.11.2016,ADULT SOCIAL CARE,LONDON CARE PLC,769.63,OP - HOMECARE,HOMECARE - C&V,2102588143
02.11.2016,ADULT SOCIAL CARE,LONDON CARE PLC,790.08,OP - HOMECARE,HOMECARE - C&V,2102588046
02.11.2016,ADULT SOCIAL CARE,LONDON CARE PLC,794.33,OP - HOMECARE,HOMECARE - C&V,2102588163
02.11.2016,ADULT SOCIAL CARE,LONDON CARE PLC,806.54,OP - HOMECARE,HOMECARE - C&V,2102588091
02.11.2016,ADULT SOCIAL CARE,LONDON CARE PLC,806.68,OP - HOMECARE,HOMECARE - C&V,2102588010
02.11.2016,ADULT SOCIAL CARE,LONDON CARE PLC,806.68,OP - HOMECARE,HOMECARE - C&V,2102588047
02.11.2016,ADULT SOCIAL CARE,LONDON CARE PLC,814.77,OP - HOMECARE,HOMECARE - C&V,2102587937
02.11.2016,ADULT SOCIAL CARE,LONDON CARE PLC,823.00,OP - HOMECARE,HOMECARE - C&V,2102588121
02.11.2016,ADULT SOCIAL CARE,LONDON CARE PLC,823.24,OP - HOMECARE,HOMECARE - C&V,2102588101
02.11.2016,ADULT SOCIAL CARE,LONDON CARE PLC,839.54,OP - HOMECARE,HOMECARE - C&V,2102588133
02.11.2016,ADULT SOCIAL CARE,LONDON CARE PLC,856.08,OP - HOMECARE,HOMECARE - C&V,2102588069
02.11.2016,ADULT SOCIAL CARE,LONDON CARE PLC,880.61,OP - HOMECARE,HOMECARE - C&V,2102588102
02.11.2016,ADULT SOCIAL CARE,LONDON CARE PLC,888.88,OP - HOMECARE,HOMECARE - C&V,2102587978
02.11.2016,ADULT SOCIAL CARE,LONDON CARE PLC,897.11,OP - HOMECARE,HOMECARE - C&V,2102588118
02.11.2016,ADULT SOCIAL CARE,LONDON CARE PLC,901.32,OP - HOMECARE,HOMECARE - C&V,2102588040
02.11.2016,ADULT SOCIAL CARE,LONDON CARE PLC,921.76,OP - HOMECARE,HOMECARE - C&V,2102588051
02.11.2016,ADULT SOCIAL CARE,LONDON CARE PLC,921.76,OP - HOMECARE,HOMECARE - C&V,2102588071
02.11.2016,ADULT SOCIAL CARE,LONDON CARE PLC,922.04,OP - HOMECARE,HOMECARE - C&V,2102588049
02.11.2016,ADULT SOCIAL CARE,LONDON CARE PLC,950.69,OP - HOMECARE,HOMECARE - C&V,2102588002
02.11.2016,ADULT SOCIAL CARE,LONDON CARE PLC,962.91,OP - HOMECARE,HOMECARE - C&V,2102588062
02.11.2016,ADULT SOCIAL CARE,LONDON CARE PLC,963.05,OP - HOMECARE,HOMECARE - C&V,2102587958
02.11.2016,ADULT SOCIAL CARE,LONDON CARE PLC,971.28,OP - HOMECARE,HOMECARE - C&V,2102588138
02.11.2016,ADULT SOCIAL CARE,LONDON CARE PLC,971.36,OP - HOMECARE,HOMECARE - C&V,2102588135
02.11.2016,ADULT SOCIAL CARE,LONDON CARE PLC,979.38,OP - HOMECARE,HOMECARE - C&V,2102588035
02.11.2016,ADULT SOCIAL CARE,LONDON CARE PLC,987.76,OP - HOMECARE,HOMECARE - C&V,2102588157
02.11.2016,ADULT SOCIAL CARE,LONDON CARE PLC,"1,004.36",OP - HOMECARE,HOMECARE - C&V,2102588030
02.11.2016,ADULT SOCIAL CARE,LONDON CARE PLC,"1,012.29",OP - HOMECARE,HOMECARE - C&V,2102587952
02.11.2016,ADULT SOCIAL CARE,LONDON CARE PLC,"1,020.52",OP - HOMECARE,HOMECARE - C&V,2102588150
02.11.2016,ADULT SOCIAL CARE,LONDON CARE PLC,"1,020.77",OP - HOMECARE,HOMECARE - C&V,2102588167
02.11.2016,ADULT SOCIAL CARE,LONDON CARE PLC,"1,049.43",OP - HOMECARE,HOMECARE - C&V,2102588084
02.11.2016,ADULT SOCIAL CARE,LONDON CARE PLC,"1,053.44",OP - HOMECARE,HOMECARE - C&V,2102587986
02.11.2016,ADULT SOCIAL CARE,LONDON CARE PLC,"1,053.72",OP - HOMECARE,HOMECARE - C&V,2102587962
02.11.2016,ADULT SOCIAL CARE,LONDON CARE PLC,"1,086.36",OP - HOMECARE,HOMECARE - C&V,2102588029
02.11.2016,ADULT SOCIAL CARE,LONDON CARE PLC,"1,086.36",OP - HOMECARE,HOMECARE - C&V,2102588162
02.11.2016,ADULT SOCIAL CARE,LONDON CARE PLC,"1,086.38",OP - HOMECARE,HOMECARE - C&V,2102588148
02.11.2016,ADULT SOCIAL CARE,LONDON CARE PLC,"1,090.61",OP - HOMECARE,HOMECARE - C&V,2102587959
02.11.2016,ADULT SOCIAL CARE,LONDON CARE PLC,"1,102.96",OP - HOMECARE,HOMECARE - C&V,2102587975
02.11.2016,ADULT SOCIAL CARE,LONDON CARE PLC,"1,102.96",OP - HOMECARE,HOMECARE - C&V,2102588113
02.11.2016,ADULT SOCIAL CARE,LONDON CARE PLC,"1,119.28",OP - HOMECARE,HOMECARE - C&V,2102588067
02.11.2016,ADULT SOCIAL CARE,LONDON CARE PLC,"1,119.28",OP - HOMECARE,HOMECARE - C&V,2102588086
02.11.2016,ADULT SOCIAL CARE,LONDON CARE PLC,"1,152.20",OP - HOMECARE,HOMECARE - C&V,2102588080
02.11.2016,ADULT SOCIAL CARE,LONDON CARE PLC,"1,152.20",OP - HOMECARE,HOMECARE - C&V,2102588094
02.11.2016,ADULT SOCIAL CARE,LONDON CARE PLC,"1,152.48",OP - HOMECARE,HOMECARE - C&V,2102587963
02.11.2016,ADULT SOCIAL CARE,LONDON CARE PLC,"1,333.40",OP - HOMECARE,HOMECARE - C&V,2102588087
02.11.2016,ADULT SOCIAL CARE,LONDON CARE PLC,"1,350.00",OP - HOMECARE,HOMECARE - C&V,2102588013
02.11.2016,ADULT SOCIAL CARE,LONDON CARE PLC,"1,382.92",OP - HOMECARE,HOMECARE - C&V,2102588122
02.11.2016,ADULT SOCIAL CARE,LONDON CARE PLC,"1,423.93",OP - HOMECARE,HOMECARE - C&V,2102588100
02.11.2016,ADULT SOCIAL CARE,LONDON CARE PLC,"1,613.08",OP - HOMECARE,HOMECARE - C&V,2102588001
02.11.2016,ADULT SOCIAL CARE,LONDON CARE PLC,"2,016.62",OP - HOMECARE,HOMECARE - C&V,2102588044
02.11.2016,ADULT SOCIAL CARE,LONDON CARE PLC,"2,053.66",OP - HOMECARE,HOMECARE - C&V,2102588059
02.11.2016,ADULT SOCIAL CARE,LONDON CARE PLC,"2,074.24",OP - HOMECARE,HOMECARE - C&V,2102587940
02.11.2016,ADULT SOCIAL CARE,LONDON CARE PLC,"2,074.24",OP - HOMECARE,HOMECARE - C&V,2102588160
02.11.2016,ADULT SOCIAL CARE,LONDON CARE PLC,"2,403.44",OP - HOMECARE,HOMECARE - C&V,2102587961
02.11.2016,ADULT SOCIAL CARE,LONDON CARE PLC,"2,420.18",OP - HOMECARE,HOMECARE - C&V,2102588083
02.11.2016,ADULT SOCIAL CARE,LONDON CARE PLC,"2,518.51",OP - HOMECARE,HOMECARE - C&V,2102588060
02.11.2016,ADULT SOCIAL CARE,LONDON CARE PLC,"2,765.84",OP - HOMECARE,HOMECARE - C&V,2102587995
02.11.2016,ADULT SOCIAL CARE,LONDON CARE PLC,"2,913.56",OP - HOMECARE,HOMECARE - C&V,2102588156
02.11.2016,ADULT SOCIAL CARE,LONDON CARE PLC,"3,033.59",OP - HOMECARE,HOMECARE - C&V,2102588076
02.11.2016,ADULT SOCIAL CARE,LONDON CARE PLC,"3,226.72",OP - HOMECARE,HOMECARE - C&V,2102588139
02.11.2016,ADULT SOCIAL CARE,LONDON CARE PLC,"3,259.08",OP - HOMECARE,HOMECARE - C&V,2102588068
02.11.2016,ADULT SOCIAL CARE,LONDON CARE PLC,"3,259.36",OP - HOMECARE,HOMECARE - C&V,2102587979
02.11.2016,ADULT SOCIAL CARE,LONDON CARE PLC,"3,276.10",OP - HOMECARE,HOMECARE - C&V,2102587967
02.11.2016,ADULT SOCIAL CARE,LONDON CARE PLC,"3,851.64",OP - HOMECARE,HOMECARE - C&V,2102588093
02.11.2016,ADULT SOCIAL CARE,LONDON CARE PLC,407.48,PD HOME CARE,HOMECARE - C&V,2102587954
02.11.2016,ADULT SOCIAL CARE,MEDACS HOMECARE,"2,116.93",PD HOME CARE,HOMECARE - SPOT,2102588177
02.11.2016,ASSET MANAGEMENT,CALFORD SEADEN LLP,"22,467.93",HIP MAJOR WORKS,EXTERNAL AGENCIES AND BODIES,5902220962
02.11.2016,ASSET MANAGEMENT,BRIDGEWATER ROOFING CONTRACTORS LTD,390.50,R&M CONTRACTS (NORTH),OTHER R&M,2102588196
02.11.2016,ASSET MANAGEMENT,BRIDGEWATER ROOFING CONTRACTORS LTD,482.00,R&M CONTRACTS (NORTH),OTHER R&M,2102588192
02.11.2016,ASSET MANAGEMENT,BRIDGEWATER ROOFING CONTRACTORS LTD,501.00,R&M CONTRACTS (NORTH),OTHER R&M,2102588197
02.11.2016,ASSET MANAGEMENT,BRIDGEWATER ROOFING CONTRACTORS LTD,698.00,R&M CONTRACTS (NORTH),OTHER R&M,2102588199
02.11.2016,ASSET MANAGEMENT,BRIDGEWATER ROOFING CONTRACTORS LTD,759.00,R&M CONTRACTS (NORTH),OTHER R&M,2102588201
02.11.2016,ASSET MANAGEMENT,BRIDGEWATER ROOFING CONTRACTORS LTD,767.00,R&M CONTRACTS (NORTH),OTHER R&M,2102588198
02.11.2016,ASSET MANAGEMENT,BRIDGEWATER ROOFING CONTRACTORS LTD,888.00,R&M CONTRACTS (NORTH),OTHER R&M,2102588200
02.11.2016,ASSET MANAGEMENT,BRIDGEWATER ROOFING CONTRACTORS LTD,"2,802.00",R&M CONTRACTS (NORTH),OTHER R&M,2102588190
02.11.2016,ASSET MANAGEMENT,CALFORD SEADEN LLP,535.48,REPAIRS OPERATIONS,OTHER R&M,5902220922
02.11.2016,CENTRAL FUNCTIONS,STANDAGE & CO LTD,"24,112.00",AYLESBURY,SECURITY SERVICES,2102588188
02.11.2016,CENTRAL FUNCTIONS,STANDAGE & CO LTD,"26,071.00",AYLESBURY,SECURITY SERVICES,2102588187
02.11.2016,CENTRAL FUNCTIONS,STANDAGE & CO LTD,"26,667.00",AYLESBURY,SECURITY SERVICES,2102588186
02.11.2016,CENTRAL FUNCTIONS,STANDAGE & CO LTD,"34,265.00",AYLESBURY,SECURITY SERVICES,2102588189
02.11.2016,CENTRAL FUNCTIONS,PRB ESTATES LTD,"72,020.00",GARAGE REPAIRS,BUILDING R&M,2102588194
02.11.2016,CENTRAL FUNCTIONS,REDACTED PERSONAL DATA,560.37,HOME OWNERSHIP INCOME,HOUSING RESIDENTIAL RENTS,5902220961
02.11.2016,CHIEF EXECUTIVE,MACE LTD,"2,530.00",CAPITAL PS (REGEN),CONSTRUCTION FEES,5902220978
02.11.2016,CHIEF EXECUTIVE,BLAKEDOWN LANDSCAPES,726.05,CAPITAL PS (REGEN),CONSTRUCTION FEES  - EXTERNAL,2102588184
02.11.2016,CHILDREN AND ADULT,MACE LTD,"7,590.00",CAPITAL PS (EDUCATION),CONSTRUCTION,5902220978
02.11.2016,CHILDREN AND ADULT,HAVERSTOCK,"1,454.00",CAPITAL PS (EDUCATION),CONSTRUCTION FEES  - EXTERNAL,5902220999
02.11.2016,CHILDREN AND ADULT,HAVERSTOCK,"1,660.00",CAPITAL PS (EDUCATION),CONSTRUCTION FEES  - EXTERNAL,5902220996
02.11.2016,CHILDREN AND ADULT,HAVERSTOCK,"3,300.00",CAPITAL PS (EDUCATION),CONSTRUCTION FEES  - EXTERNAL,5902221003
02.11.2016,CHILDREN AND ADULT,PLAYLE & PARTNERS,"2,055.43",CAPITAL PS (EDUCATION),CONSTRUCTION FEES  - EXTERNAL,5902220916
02.11.2016,CHILDREN AND ADULT,STANDAGE & CO LTD,"9,678.60",CAPITAL PS (EDUCATION),CONSTRUCTION MAIN CONTRACT -CERTIFICATED,2102588279
02.11.2016,CHILDREN'S SERVICES,REDACTED PERSONAL DATA,401.08,ADOPTION PLACEMENTS & INTER AGENCY,PAYMENTS TO CARERS,5902220967
02.11.2016,CHILDREN'S SERVICES,JEANETTE SCOTT,"1,081.00",ADOPTION REFORM GRANT (PART B),PROFESSIONAL FEES,5902220918
02.11.2016,CHILDREN'S SERVICES,ZENITH CARS LTD,370.00,AIS - PRE BIRTH,HIRED VEHICLES,5902220930
02.11.2016,CHILDREN'S SERVICES,ZENITH CARS LTD,728.00,AIS - PRE BIRTH,HIRED VEHICLES,5902220929
02.11.2016,CHILDREN'S SERVICES,CORELOGIC LTD,"1,980.00",BUSINESS APPLICATIONS,COMPUTER MAINTENANCE,5902220924
02.11.2016,CHILDREN'S SERVICES,CORELOGIC LTD,"3,600.00",BUSINESS APPLICATIONS,COMPUTER MAINTENANCE,5902220924
02.11.2016,CHILDREN'S SERVICES,CORELOGIC LTD,"3,600.00",BUSINESS APPLICATIONS,COMPUTER MAINTENANCE,5902220924
02.11.2016,CHILDREN'S SERVICES,CORELOGIC LTD,"3,600.00",BUSINESS APPLICATIONS,COMPUTER MAINTENANCE,5902220924
02.11.2016,CHILDREN'S SERVICES,CORELOGIC LTD,"8,800.00",BUSINESS APPLICATIONS,COMPUTER MAINTENANCE,5902220924
02.11.2016,CHILDREN'S SERVICES,CORELOGIC LTD,"10,500.00",BUSINESS APPLICATIONS,COMPUTER MAINTENANCE,5902220924
02.11.2016,CHILDREN'S SERVICES,CORELOGIC LTD,"10,500.00",BUSINESS APPLICATIONS,COMPUTER MAINTENANCE,5902220924
02.11.2016,CHILDREN'S SERVICES,CORELOGIC LTD,"66,825.00",BUSINESS APPLICATIONS,COMPUTER MAINTENANCE,5902220924
02.11.2016,CHILDREN'S SERVICES,CORELOGIC LTD,"66,825.00",BUSINESS APPLICATIONS,COMPUTER MAINTENANCE,5902220924
02.11.2016,CHILDREN'S SERVICES,ALZHEIMER'S SOCIETY,"8,525.00",COMMISSIONING SUPPORT,EXTERNAL AGENCIES AND BODIES,5902220923
02.11.2016,CHILDREN'S SERVICES,ALZHEIMER'S SOCIETY,"8,525.00",COMMISSIONING SUPPORT,EXTERNAL AGENCIES AND BODIES,5902220926
02.11.2016,CHILDREN'S SERVICES,GE CAPITAL EQUIPMENT FINANCE LTD,"-1,293.00",DAMILOLA TAYLOR CENTRE,OP LEASE/HIRE CHARGES:PLANT/EQUIP/FURNIT,5902216552
02.11.2016,CHILDREN'S SERVICES,THE ALBANY 2001 COMPANY LTD,431.20,GENERAL CPD,REFRESHMENTS FOR MEETINGS,5902220954
02.11.2016,CHILDREN'S SERVICES,GE CAPITAL EQUIPMENT FINANCE LTD,779.34,PLAY SERVICE MANAGEMENT & ADMIN,OFFICE EXPENSES,5902216605
02.11.2016,CHILDREN'S SERVICES,CATHERINE RUSHFORTH & ASSOCIATES,700.00,PRIMARY ACHIEVEMENT,CONSULTANTS SERVICES,5902220906
02.11.2016,CHILDREN'S SERVICES,CATHERINE RUSHFORTH & ASSOCIATES,"1,400.00",PRIMARY ACHIEVEMENT,CONSULTANTS SERVICES,5902220904
02.11.2016,CHILDREN'S SERVICES,1ST PLACE CHILDREN & PARENTS CENTRE,522.55,PRIMARY ACHIEVEMENT,HIRE OF ROOMS/HALLS,5902220899
02.11.2016,CHILDREN'S SERVICES,1ST PLACE CHILDREN & PARENTS CENTRE,586.75,PRIMARY ACHIEVEMENT,HIRE OF ROOMS/HALLS,5902220912
02.11.2016,CHILDREN'S SERVICES,1ST PLACE CHILDREN & PARENTS CENTRE,586.75,PRIMARY ACHIEVEMENT,HIRE OF ROOMS/HALLS,5902220927
02.11.2016,CHILDREN'S SERVICES,FAITHFULL & GOULD,"7,468.00",PROPERTY MANAGEMENT - 5015257,PROFESSIONAL FEES,5902220935
02.11.2016,CHILDREN'S SERVICES,FAITHFULL & GOULD,"7,468.00",PROPERTY MANAGEMENT - 5015257,PROFESSIONAL FEES,5902220973
02.11.2016,CHILDREN'S SERVICES,FAITHFULL & GOULD,"10,000.00",PROPERTY MANAGEMENT - 5015257,PROFESSIONAL FEES,5902220940
02.11.2016,CHILDREN'S SERVICES,MACE LTD,"1,897.50",PROPERTY MANAGEMENT - 5015257,PROFESSIONAL FEES,5902220978
02.11.2016,CHILDREN'S SERVICES,FLEET TUTORS,"11,363.00",PUPIL PREMIUM CURRENT YEAR,EXTERNAL AGENCIES AND BODIES,5902220986
02.11.2016,CHILDREN'S SERVICES,FLEET TUTORS,"14,028.00",PUPIL PREMIUM CURRENT YEAR,EXTERNAL AGENCIES AND BODIES,5902221051
02.11.2016,CHILDREN'S SERVICES,REDACTED PERSONAL DATA,264.16,RESIDENCE ORDERS,PAYMENTS TO CARERS,2102587664
02.11.2016,CHILDREN'S SERVICES,ZENITH CARS LTD,375.00,S & FAM SUPP - PRAC GRP A SET 14-16,HIRED VEHICLES,5902220929
02.11.2016,CHILDREN'S SERVICES,ZENITH CARS LTD,768.00,S & FAM SUPP - PRAC GRP A SET 14-16,HIRED VEHICLES,5902220930
02.11.2016,CHILDREN'S SERVICES,ZENITH CARS LTD,"1,251.00",S & FAM SUPP - PRAC GRP A SET 14-16,HIRED VEHICLES,5902220930
02.11.2016,CHILDREN'S SERVICES,ZENITH CARS LTD,"1,042.00",S & FAM SUPP - PRAC GRP F SET 29-31,HIRED VEHICLES,5902220929
02.11.2016,CHILDREN'S SERVICES,REDACTED PERSONAL DATA,263.71,SPECIAL GUARDIANSHIP,PAYMENTS TO CARERS,2102587728
02.11.2016,CHILDREN'S SERVICES,REDACTED PERSONAL DATA,269.08,SPECIAL GUARDIANSHIP,PAYMENTS TO CARERS,2102587730
02.11.2016,CHILDREN'S SERVICES,REDACTED PERSONAL DATA,317.67,SPECIAL GUARDIANSHIP,PAYMENTS TO CARERS,2102587765
02.11.2016,CHILDREN'S SERVICES,REDACTED PERSONAL DATA,350.00,SPECIAL GUARDIANSHIP,PAYMENTS TO CARERS,2102587685
02.11.2016,CHILDREN'S SERVICES,REDACTED PERSONAL DATA,354.59,SPECIAL GUARDIANSHIP,PAYMENTS TO CARERS,2102587779
02.11.2016,CHILDREN'S SERVICES,REDACTED PERSONAL DATA,525.00,SPECIAL GUARDIANSHIP,PAYMENTS TO CARERS,2102587683
02.11.2016,CHILDREN'S SERVICES,REDACTED PERSONAL DATA,525.00,SPECIAL GUARDIANSHIP,PAYMENTS TO CARERS,2102587729
02.11.2016,CHILDREN'S SERVICES,REDACTED PERSONAL DATA,525.00,SPECIAL GUARDIANSHIP,PAYMENTS TO CARERS,2102587736
02.11.2016,CHILDREN'S SERVICES,GE CAPITAL EQUIPMENT FINANCE LTD,614.66,THOMAS CALTON CENTRE,OP LEASE/HIRE CHARGES:PLANT/EQUIP/FURNIT,5902220938
02.11.2016,CHILDREN'S SERVICES,GE CAPITAL EQUIPMENT FINANCE LTD,"1,411.38",THOMAS CALTON CENTRE,OP LEASE/HIRE CHARGES:PLANT/EQUIP/FURNIT,5902220942
02.11.2016,CHILDREN'S SERVICES,VEOLIA ES (UK)LTD,415.94,THOMAS CALTON CENTRE,REFUSE COLLECTION CONTRACT,5902220953
02.11.2016,CHILDREN'S SERVICES,REDACTED PERSONAL DATA,300.00,UASC UNIVERSITY SUPPORT,CLIENT TRANSPORT,2102587892
02.11.2016,CHILDREN'S SERVICES,REDACTED PERSONAL DATA,500.00,UASC UNIVERSITY SUPPORT,OTHER PAYMENTS FOR CLIENTS,2102587891
02.11.2016,CHILDREN'S SERVICES,REDACTED PERSONAL DATA,300.00,UNIVERSITY SUPPORT,CLIENT TRANSPORT,2102587926
02.11.2016,CHILDREN'S SERVICES,REDACTED PERSONAL DATA,300.00,UNIVERSITY SUPPORT,CLIENT TRANSPORT,2102587909
02.11.2016,CHILDREN'S SERVICES,REDACTED PERSONAL DATA,300.00,UNIVERSITY SUPPORT,CLIENT TRANSPORT,2102587884
02.11.2016,CHILDREN'S SERVICES,REDACTED PERSONAL DATA,700.00,UNIVERSITY SUPPORT,OTHER PAYMENTS FOR CLIENTS,2102587927
02.11.2016,CHILDREN'S SERVICES,REDACTED PERSONAL DATA,700.00,UNIVERSITY SUPPORT,OTHER PAYMENTS FOR CLIENTS,2102587910
02.11.2016,CHILDREN'S SERVICES,REDACTED PERSONAL DATA,800.00,UNIVERSITY SUPPORT,OTHER PAYMENTS FOR CLIENTS,2102587885
02.11.2016,CHILDREN'S SERVICES,REDACTED PERSONAL DATA,"1,750.00",UNIVERSITY SUPPORT,RESIDENTIAL CARE,2102587925
02.11.2016,CHILDREN'S SERVICES,REVIVAL,330.00,YOS SUPPORT,MEDICAL / HEALTH & SAFETY SERVICES,5902220934
02.11.2016,CHILDREN'S SERVICES,REVIVAL,330.00,YOS SUPPORT,MEDICAL / HEALTH & SAFETY SERVICES,5902220937
02.11.2016,CHILDREN'S SERVICES,REVIVAL,495.00,YOS SUPPORT,MEDICAL / HEALTH & SAFETY SERVICES,5902220933
02.11.2016,CHILDREN'S SERVICES,CONNEXIONS CUISINE,268.75,YOS SUPPORT,REFRESHMENTS FOR MEETINGS,5902220949
02.11.2016,CHILDREN'S SERVICES,ANTALIS LTD,442.00,YOS SUPPORT,STATIONERY,5902220948
02.11.2016,CHILDREN'S SERVICES,OFFICE DEPOT UK LTD,642.97,YOS SUPPORT,STATIONERY,5902220946
02.11.2016,CHILDREN'S SERVICES,LONDON BOROUGH OF BARNET,425.00,YOS SUPPORT,TRAINING,5902220939
02.11.2016,CHILDREN'S SERVICES,MILLWALL COMMUNITY TRUST,"7,787.50",YOUTH EIG PROJECTS,GRANTS,5902220971
02.11.2016,COMMUNITIES,BROWNING EST MGMT ASSN,"161,998.50",BROWNING EMB,M&M ALLOWANCE CO-OPS,5902221072
02.11.2016,COMMUNITIES,FCM PROPERTIES,"1,500.00",NO RECOURSE TO PUBLIC FUNDS,SECTION 17 PAYMENTS TO AGENCIES/CARERS,5902220931
02.11.2016,CUSTOMER EXPERIENCE HGF,CAMBRIDGE HOUSE & TALBOT,500.00,HOMELESS & HOUSING OPTIONS MGT,LEGAL FEES & COURT COSTS,5902221071
02.11.2016,CUSTOMER EXPERIENCE HGF,J & M OASIS LTD,"1,530.00",NIGHTLY TA (NSC),EXTERNAL AGENCIES AND BODIES,5902221007
02.11.2016,CUSTOMER EXPERIENCE HGF,THE CAMDEN SOCIETY,255.40,PROJECTS,REFRESHMENTS FOR MEETINGS,5902220943
02.11.2016,CUSTOMER EXPERIENCE HGF,PESH FLOWERS,"2,825.00",REGISTRARS,MISCELLANEOUS EXPENSES,5902220970
02.11.2016,CUSTOMER EXPERIENCE HGF,AMITY ESTATES LTD,"3,500.00",TEMP ACCOM - MNGMT,GRANTS,5902221000
02.11.2016,CUSTOMER EXPERIENCE HGF,AMITY ESTATES LTD,"3,500.00",TEMP ACCOM - MNGMT,GRANTS,5902221063
02.11.2016,CUSTOMER EXPERIENCE HGF,HOME CONNECT LTD,969.60,TEMP ACCOM - MNGMT,PUBLIC TRANSPORT,5902220972
02.11.2016,ENVIRONMENT AND LEISURE,BLAKEDOWN LANDSCAPES,"42,362.99",CAPITAL PS (LEISURE),CONSTRUCTION FEES  - EXTERNAL,2102588183
02.11.2016,ENVIRONMENT AND LEISURE,STREET TREE CARE LTD,"2,330.00",CAPITAL PS (LEISURE),CONSTRUCTION FEES - INTERNAL,5902220977
02.11.2016,ENVIRONMENT DIRECTORATE,RYGOR COMMERCIALS LIMITED,883.52,COMMERCIAL VEH CTRL A/C,HIRED VEHICLES,5902221043
02.11.2016,ENVIRONMENT DIRECTORATE,SCOT GROUP LIMITED,272.00,COMMERCIAL VEH CTRL A/C,HIRED VEHICLES,5902221001
02.11.2016,ENVIRONMENT DIRECTORATE,SPALDINGS (UK) LTD,791.50,GROUNDS MAINTENANCE - GENERAL,MATERIALS,5902221010
02.11.2016,ENVIRONMENT DIRECTORATE,BELL BRUSH CO LTD,"1,254.70",MANAGEMENT TEAM,MATERIALS,5902220957
02.11.2016,ENVIRONMENT DIRECTORATE,COMPLETE TREE CARE LTD,663.48,NON HOUSING GROUNDS,AGENCY STAFF,5902220932
02.11.2016,ENVIRONMENT DIRECTORATE,KENT COUNTY COUNCIL - LASER,647.10,SANDGATE STREET,ELECTRICITY,5902220883
02.11.2016,ENVIRONMENT DIRECTORATE,PITNEY BOWES SOFTWARE EUROPE LTD,"1,820.00",STREET WORKS OVERHEADS,SOFTWARE,5902221014
02.11.2016,EXTERNAL AFFAIRS,CROWD TECHNOLOGIES LTD,480.00,E-COMMUNICATIONS,MARKETING & PUBLICITY SERVICES,5902220900
02.11.2016,EXTERNAL AFFAIRS,CROWD TECHNOLOGIES LTD,520.80,E-COMMUNICATIONS,MARKETING & PUBLICITY SERVICES,5902220898
02.11.2016,F & C S EXCLUDING CORPORATE BUDGETS,TRAINING SYNERGY LTD,395.00,ADMINISTRATIVE SUPPORT,HIRE OF ROOMS/HALLS,5902220885
02.11.2016,F & C S EXCLUDING CORPORATE BUDGETS,TRAINING SYNERGY LTD,426.50,ADMINISTRATIVE SUPPORT,HIRE OF ROOMS/HALLS,5902220881
02.11.2016,F & C S EXCLUDING CORPORATE BUDGETS,CAPITA BUSINESS SERVICES LTD,"6,660.00",CAPITA,OTHER CONTRACTORS,5902221093
02.11.2016,F & C S EXCLUDING CORPORATE BUDGETS,CAPITA BUSINESS SERVICES LTD,"7,194.06",CAPITA,OTHER CONTRACTORS,5902221026
02.11.2016,F & C S EXCLUDING CORPORATE BUDGETS,RSM RISK ASSURANCE SERVICES LLP,"9,926.28",FRAUD & INVESTIGATIONS,PAYMENTS FOR FINANCIAL SERVICES,5902220896
02.11.2016,HOUSING,EYRE & ELLISTON LTD,321.00,STORES,CREDITORS -GR/IR CLEARING ACCOUNT,5902220983
02.11.2016,HOUSING,EYRE & ELLISTON LTD,331.10,STORES,CREDITORS -GR/IR CLEARING ACCOUNT,5902220983
02.11.2016,HOUSING,EYRE & ELLISTON LTD,462.45,STORES,CREDITORS -GR/IR CLEARING ACCOUNT,5902220983
02.11.2016,HOUSING,SHARVATT WOOLWICH LTD,474.00,STORES,CREDITORS -GR/IR CLEARING ACCOUNT,5902221098
02.11.2016,HOUSING,SHARVATT WOOLWICH LTD,"1,397.00",STORES,CREDITORS -GR/IR CLEARING ACCOUNT,5902221099
02.11.2016,HOUSING HRA,BELL PHILLIPS ARCHITECTS LTD,"58,630.00",CAPITAL PS (HRA),CONSTRUCTION FEES  - EXTERNAL,5902221059
02.11.2016,HOUSING HRA,D F CLARK BIONOMIQUE LTD,951.00,CAPITAL PS (HRA),CONSTRUCTION FEES  - EXTERNAL,5902220917
02.11.2016,HOUSING HRA,SOIL CONSULTANTS LTD,"18,015.00",CAPITAL PS (HRA),CONSTRUCTION FEES  - EXTERNAL,5902221077
02.11.2016,HOUSING HRA,GEOFFREY OSBORNE LIMITED,"90,250.00",CAPITAL PS (HRA),CONSTRUCTION MAIN CONTRACT -CERTIFICATED,2102588195
02.11.2016,HOUSING HRA,UK GUNITE LIMITED,"241,180.95",CAPITAL PS (HRA),CONSTRUCTION MAIN CONTRACT -CERTIFICATED,2102588280
02.11.2016,LEISURE DIRECTORATE,MILLWALL COMMUNITY TRUST,"2,250.00",COMMUNITY SPORTS SMALL GRANTS,GRANTS,5902220980
02.11.2016,LEISURE DIRECTORATE,EDF ENERGY PLC,961.51,EAST STREET LIBRARY,ELECTRICITY,5902220979
02.11.2016,LEISURE DIRECTORATE,ASKEWS & HOLTS LIBRARY SERVICES LTD,475.84,STOCK SERVICES,BOOKS & PUBLICATIONS,5902220894
02.11.2016,LEISURE DIRECTORATE,ASKEWS & HOLTS LIBRARY SERVICES LTD,"7,142.08",STOCK SERVICES,BOOKS & PUBLICATIONS,5902220936
02.11.2016,MODERNISATION HGF,ANDERSON TRAVEL LTD,295.00,CORP. TRAINING BUDGETS,TRAINING,5902221022
02.11.2016,MODERNISATION HGF,ANDERSON TRAVEL LTD,295.00,CORP. TRAINING BUDGETS,TRAINING,5902221028
02.11.2016,MODERNISATION HGF,ANDERSON TRAVEL LTD,295.00,CORP. TRAINING BUDGETS,TRAINING,5902221033
02.11.2016,MODERNISATION HGF,ANDERSON TRAVEL LTD,295.00,CORP. TRAINING BUDGETS,TRAINING,5902221036
02.11.2016,MODERNISATION HGF,HB CONSULTING,850.00,CORP. TRAINING BUDGETS,TRAINING,5902221079
02.11.2016,MODERNISATION HGF,THAMES WATER UTILITIES LTD,"1,162.53",CURLEW HOUSE,WATER,5902221092
02.11.2016,MODERNISATION HGF,SUNITA SHARMA,750.00,MEMBER DEVELOPMENT,TRAINING,5902220993
02.11.2016,MODERNISATION HGF,KENT COUNTY COUNCIL - LASER,"1,968.92",QUEENS ROAD 2 (BLOCK J),ELECTRICITY,5902221050
02.11.2016,MODERNISATION HGF,GRANT THORNTON UK LLP,"43,959.00",TECHNOLOGY,CONSULTANTS SERVICES,5902221068
02.11.2016,MODERNISATION HGF,TMP (UK) LIMITED,782.30,TMP,RECRUITMENT ADVERTISING,5902221042
02.11.2016,MODERNISATION HGF,TMP (UK) LIMITED,975.00,TMP,RECRUITMENT ADVERTISING,5902221066
02.11.2016,MODERNISATION HGF,TMP (UK) LIMITED,"1,341.60",TMP,RECRUITMENT ADVERTISING,5902221039
02.11.2016,PUBLIC HEALTH,CAMBRIDGE COMMUNITY SERVICES,264.00,SEXUAL HEALTH - STI,EXTERNAL AGENCIES AND BODIES,5902221083
02.11.2016,PUBLIC HEALTH,CAMBRIDGE COMMUNITY SERVICES,368.00,SEXUAL HEALTH - STI,EXTERNAL AGENCIES AND BODIES,5902221086
02.11.2016,PUBLIC HEALTH,CAMBRIDGE COMMUNITY SERVICES,368.00,SEXUAL HEALTH - STI,EXTERNAL AGENCIES AND BODIES,5902221089
02.11.2016,REGENERATION,FAITHFULL & GOULD,"9,375.00",MASTER PLAN-H/WAY & TRANS INTERCHANGE,PROFESSIONAL FEES,5902220908
02.11.2016,RESIDENT SERVICES,POSTURITE (UK) LTD,550.37,OPERATIONS/OFFICES ACCOMMODATION,EQUIPMENT PURCHASE & REPAIR,5902220909
02.11.2016,RESIDENT SERVICES,ANTHONY GOLD SOLICITORS,"12,500.00",OPERATIONS/OFFICES ACCOMMODATION,LEGAL FEES & COURT COSTS,5902221064
02.11.2016,RESIDENT SERVICES,SOUTHWARK LAW CENTRE,"4,505.17",OPERATIONS/OFFICES ACCOMMODATION,LEGAL FEES & COURT COSTS,5902221060
02.11.2016,RESIDENT SERVICES,BENJAMIN OSWALD (UK) HOLDINGS LTD,"4,440.00",OPERATIONS/OFFICES ACCOMMODATION,REMOVAL EXPENSES,5902220903
02.11.2016,RESIDENT SERVICES,BENJAMIN OSWALD (UK) HOLDINGS LTD,"9,093.25",OPERATIONS/OFFICES ACCOMMODATION,REMOVAL EXPENSES,5902220905
02.11.2016,RESIDENT SERVICES,CROWN PROMOTIONS & REMOVALS LTD,"1,180.00",OPERATIONS/OFFICES ACCOMMODATION,REMOVAL EXPENSES,5902220913
02.11.2016,RESIDENT SERVICES,CROWN PROMOTIONS & REMOVALS LTD,"3,440.00",OPERATIONS/OFFICES ACCOMMODATION,REMOVAL EXPENSES,5902220914
02.11.2016,RESIDENT SERVICES,CROWN PROMOTIONS & REMOVALS LTD,"4,128.30",OPERATIONS/OFFICES ACCOMMODATION,REMOVAL EXPENSES,5902220910
02.11.2016,RESIDENT SERVICES,CROWN PROMOTIONS & REMOVALS LTD,"5,915.00",OPERATIONS/OFFICES ACCOMMODATION,REMOVAL EXPENSES,5902220911
02.11.2016,RESIDENT SERVICES HGF,THE MANNA CENTRE,"13,750.00",MANNA CENTRE CO-ORDINATOR,GRANTS,5902221069
02.11.2016,STRATEGIC FINANCING BUDGETS,GALLAGHER BASSETT INTERNATIONAL LTD,"106,276.00",LIABILITY RELATED INSURANCE,PROPERTY INSURANCE COSTS,5902221046
02.11.2016,STRATEGIC FINANCING BUDGETS,HEATH LAMBERT LTD,"2,458.50",LIABILITY RELATED INSURANCE,PROPERTY INSURANCE COSTS,5902221085
02.11.2016,STRATEGIC FINANCING BUDGETS,HEATH LAMBERT LTD,"24,585.00",LIABILITY RELATED INSURANCE,PROPERTY INSURANCE COSTS,5902221085
02.11.2016,STRATEGIC FINANCING BUDGETS,HEATH LAMBERT LTD,"41,080.60",LIABILITY RELATED INSURANCE,PROPERTY INSURANCE COSTS,5902221081
02.11.2016,STRATEGIC FINANCING BUDGETS,HEATH LAMBERT LTD,"410,806.00",LIABILITY RELATED INSURANCE,PROPERTY INSURANCE COSTS,5902221081
02.11.2016,STRATEGIC FINANCING BUDGETS,JOHNSON AUSTIN PARTNERSHIP LLP,500.00,PROPERTY RELATED INSURANCE,PROFESSIONAL FEES,5902220895
02.11.2016,STRATEGIC FINANCING BUDGETS,HEATH LAMBERT LTD,"3,050.00",PROPERTY RELATED INSURANCE,PROPERTY INSURANCE COSTS,5902221091
02.11.2016,STRATEGIC FINANCING BUDGETS,HEATH LAMBERT LTD,"30,500.00",PROPERTY RELATED INSURANCE,PROPERTY INSURANCE COSTS,5902221091
02.11.2016,STRATEGIC FINANCING BUDGETS,SUMNER NURSERY,"1,777.98",SCHOOLS RELATED INSURANCE,COMPENSATION,5902220893
02.11.2016,STRATEGIC FINANCING BUDGETS,HEATH LAMBERT LTD,"2,013.48",SCHOOLS RELATED INSURANCE,PROPERTY INSURANCE COSTS,5902221087
02.11.2016,STRATEGIC FINANCING BUDGETS,HEATH LAMBERT LTD,"2,500.00",SCHOOLS RELATED INSURANCE,PROPERTY INSURANCE COSTS,5902221074
02.11.2016,STRATEGIC FINANCING BUDGETS,HEATH LAMBERT LTD,"20,134.85",SCHOOLS RELATED INSURANCE,PROPERTY INSURANCE COSTS,5902221087
02.11.2016,STRATEGIC FINANCING BUDGETS,HEATH LAMBERT LTD,"25,000.00",SCHOOLS RELATED INSURANCE,PROPERTY INSURANCE COSTS,5902221074
03.11.2016,ADULT SOCIAL CARE,REDACTED PERSONAL DATA,264.80,APPOINTEESHIPS,OTHER PAYMENTS FOR CLIENTS,5902221242
03.11.2016,ADULT SOCIAL CARE,SOUTH LONDON  MAUDSLEY NHS FOUNDATION TRUST,"4,719.86",CARE & RECOVERY,SALARIES & WAGES (INCL LW),5902221255
03.11.2016,ADULT SOCIAL CARE,METROPOLITAN SUPPORT TRUST,"40,061.57",CCG DAYCARE,SUPPORTED LIVING,2102588306
03.11.2016,ADULT SOCIAL CARE,CHRISTINE COOPER,"1,743.75",LEARNING DISABIITIES SOCIAL WORKER,LEGAL FEES & COURT COSTS,2102588440
03.11.2016,ADULT SOCIAL CARE,VICTORIA BUTLER-COLE,"3,250.00",OLDER PEOPLE MGMT,LEGAL FEES & COURT COSTS,2102588512
03.11.2016,ADULT SOCIAL CARE,ABOUT ME CARE AND SUPPORT LTD,942.02,OP - HOMECARE,OTHER PAYMENTS FOR CLIENTS,2102588317
03.11.2016,ADULT SOCIAL CARE,THE NATIONAL AUTISTIC SOCIETY,"2,183.58",PWLD DAYCARE,DAYCARE,2102588315
03.11.2016,ADULT SOCIAL CARE,THE REGARD PARTNERSHIP,"1,032.80",PWLD HOME CARE IND,HOMECARE - SPOT,2102588318
03.11.2016,CENTRAL FUNCTIONS,HANNAH SLARKS,860.00,GENERAL HOLDING AC,LEGAL FEES & COURT COSTS,2102588461
03.11.2016,CENTRAL FUNCTIONS,CHRISTINE COOPER,543.75,HOME OWNERSHIP,LEGAL FEES & COURT COSTS,2102588439
03.11.2016,CENTRAL FUNCTIONS,SIMON BUTLER,600.00,HOME OWNERSHIP,LEGAL FEES & COURT COSTS,2102588504
03.11.2016,CENTRAL FUNCTIONS,TFL TELESALES,770.00,HOME OWNERSHIP,PUBLIC TRANSPORT,5902221328
03.11.2016,CENTRAL FUNCTIONS,LONDON SOUTH BANK UNIVERSITY,"2,000.00",HOUSING ACADEMY,TRAINING,5902221138
03.11.2016,CENTRAL FUNCTIONS,RENNIE & MANOR JOINT MANAGEMENT COMMITTEE,650.00,TENANTS FUND,COMPUTER CONSUMABLES,5902221177
03.11.2016,CENTRAL FUNCTIONS,THAMES REACH EMPOLYMENT ACADEMY,"11,500.00",TENANTS FUND,PROFESSIONAL FEES,5902221169
03.11.2016,CHIEF EXECUTIVE,4PROJECTS LTD,"2,325.00",CAPITAL PS (REGEN),CONSTRUCTION MAIN CONTRACT,5902221190
03.11.2016,CHIEF EXECUTIVE,4PROJECTS LTD,"2,325.00",CAPITAL PS (REGEN),CONSTRUCTION MAIN CONTRACT,5902221196
03.11.2016,CHIEF EXECUTIVE,KENT COUNTY COUNCIL - LASER,832.25,CAPITAL PS (REGEN),CONSTRUCTION MAIN CONTRACT -CERTIFICATED,5902221359
03.11.2016,CHILDREN AND ADULT,SHERBOND LIMITED,"10,330.00",CAPITAL PS (EDUCATION),CONSTRUCTION FEES  - EXTERNAL,5902221335
03.11.2016,CHILDREN AND ADULT,HERBERT CONSULTING LIMITED,"-7,200.00",CAPITAL PS (STRAT SERV),ICT ACQUISITION,5902221557
03.11.2016,CHILDREN AND ADULT,HERBERT CONSULTING LIMITED,"7,200.00",CAPITAL PS (STRAT SERV),ICT ACQUISITION,5902221355
03.11.2016,CHILDREN'S SERVICES,SILVERBURN FINANCE(UK)LTD,-347.50,AGENCY FOSTERING,EXTERNAL AGENCIES AND BODIES,5902221516
03.11.2016,CHILDREN'S SERVICES,SILVERBURN FINANCE(UK)LTD,347.50,AGENCY FOSTERING,EXTERNAL AGENCIES AND BODIES,5902203828
03.11.2016,CHILDREN'S SERVICES,SILVERBURN FINANCE(UK)LTD,556.00,AGENCY FOSTERING,EXTERNAL AGENCIES AND BODIES,5902203829
03.11.2016,CHILDREN'S SERVICES,VEOLIA ES (UK)LTD,270.90,CAMBERWELL GROVE EARLY YEARS CENTRE,REFUSE COLLECTION CONTRACT,5902221371
03.11.2016,CHILDREN'S SERVICES,JULIET OGBECHIE LTD,"1,500.00",COMMISSIONING ESTABLISHMENT,CONSULTANTS SERVICES,5902221220
03.11.2016,CHILDREN'S SERVICES,OXFORD BROOKES ENTERPRISES LTD,"1,380.00",COMMISSIONING ESTABLISHMENT,EXTERNAL AGENCIES AND BODIES,5902221340
03.11.2016,CHILDREN'S SERVICES,INVESTEC ASSET FINANCE PLC,369.45,EDUC&PARTICIPATION & TRAINING TEAM,OP LEASE/HIRE CHARGES:PLANT/EQUIP/FURNIT,5902221137
03.11.2016,CHILDREN'S SERVICES,CORAL COMMUNITY ASSESSMENTS LTD,"4,893.00",FAMILY ASSESSMENTS,RESIDENTIAL CARE,5902221338
03.11.2016,CHILDREN'S SERVICES,WILLISPALMER,"2,879.10",FAMILY ASSESSMENTS,RESIDENTIAL CARE,5902221336
03.11.2016,CHILDREN'S SERVICES,WILLISPALMER,"3,690.00",FAMILY ASSESSMENTS,RESIDENTIAL CARE,5902221337
03.11.2016,CHILDREN'S SERVICES,INSPIRE AT ST PETER'S LTD,"7,732.50",GRANTS COMMISSIONING,GRANTS,5902221356
03.11.2016,CHILDREN'S SERVICES,INTERSERVE HEALTHCARE,534.50,HOME 2 SCHOOL TRANSPORT,AGENCY STAFF,5902221209
03.11.2016,CHILDREN'S SERVICES,CHRISTINE COOPER,"1,000.00",LEGAL,LEGAL FEES & COURT COSTS,2102588441
03.11.2016,CHILDREN'S SERVICES,DAVID FOWLER,425.00,LEGAL,LEGAL FEES & COURT COSTS,2102588445
03.11.2016,CHILDREN'S SERVICES,DEBORAH BRYAN,450.00,LEGAL,LEGAL FEES & COURT COSTS,2102588446
03.11.2016,CHILDREN'S SERVICES,DEBORAH SEITLER,300.00,LEGAL,LEGAL FEES & COURT COSTS,2102588448
03.11.2016,CHILDREN'S SERVICES,EILIDH GARDNER,350.00,LEGAL,LEGAL FEES & COURT COSTS,2102588452
03.11.2016,CHILDREN'S SERVICES,EILIDH GARDNER,350.00,LEGAL,LEGAL FEES & COURT COSTS,2102588453
03.11.2016,CHILDREN'S SERVICES,EILIDH GARDNER,"1,000.00",LEGAL,LEGAL FEES & COURT COSTS,2102588454
03.11.2016,CHILDREN'S SERVICES,EIRWEN JANE PIERROT,300.00,LEGAL,LEGAL FEES & COURT COSTS,2102588455
03.11.2016,CHILDREN'S SERVICES,EMILY RADCLIFFE,275.00,LEGAL,LEGAL FEES & COURT COSTS,2102588457
03.11.2016,CHILDREN'S SERVICES,EMILY RADCLIFFE,750.00,LEGAL,LEGAL FEES & COURT COSTS,2102588458
03.11.2016,CHILDREN'S SERVICES,EUNICE SHEILA PHIL-EBOSIE,300.00,LEGAL,LEGAL FEES & COURT COSTS,2102588500
03.11.2016,CHILDREN'S SERVICES,EUNICE SHEILA PHIL-EBOSIE,750.00,LEGAL,LEGAL FEES & COURT COSTS,2102588501
03.11.2016,CHILDREN'S SERVICES,FRANCIS RICHARD HARRIS,475.00,LEGAL,LEGAL FEES & COURT COSTS,2102588496
03.11.2016,CHILDREN'S SERVICES,FRANCIS WILKINSON,427.50,LEGAL,LEGAL FEES & COURT COSTS,2102588459
03.11.2016,CHILDREN'S SERVICES,JOHN SCHMITT,650.00,LEGAL,LEGAL FEES & COURT COSTS,2102588469
03.11.2016,CHILDREN'S SERVICES,MATTHEW STOTT,475.00,LEGAL,LEGAL FEES & COURT COSTS,2102588483
03.11.2016,CHILDREN'S SERVICES,MELANIE NAZARETH,450.00,LEGAL,LEGAL FEES & COURT COSTS,2102588484
03.11.2016,CHILDREN'S SERVICES,NICHOLAS O'BRIEN,600.00,LEGAL,LEGAL FEES & COURT COSTS,2102588485
03.11.2016,CHILDREN'S SERVICES,NICHOLAS O'BRIEN,700.00,LEGAL,LEGAL FEES & COURT COSTS,2102588486
03.11.2016,CHILDREN'S SERVICES,OLIVER MILLINGTON,350.00,LEGAL,LEGAL FEES & COURT COSTS,2102588488
03.11.2016,CHILDREN'S SERVICES,OLIVER MILLINGTON,350.00,LEGAL,LEGAL FEES & COURT COSTS,2102588491
03.11.2016,CHILDREN'S SERVICES,PHILLIP MAGGS,364.00,LEGAL,LEGAL FEES & COURT COSTS,2102588494
03.11.2016,CHILDREN'S SERVICES,PHILLIP MAGGS,468.00,LEGAL,LEGAL FEES & COURT COSTS,2102588493
03.11.2016,CHILDREN'S SERVICES,REDACTED PERSONAL DATA,675.00,LEGAL,LEGAL FEES & COURT COSTS,2102588470
03.11.2016,CHILDREN'S SERVICES,REMINGTON HALL,390.00,LEGAL,LEGAL FEES & COURT COSTS,2102588495
03.11.2016,CHILDREN'S SERVICES,SUZANNAH COTTERILL,427.50,LEGAL,LEGAL FEES & COURT COSTS,2102588506
03.11.2016,CHILDREN'S SERVICES,SUZANNAH COTTERILL,427.50,LEGAL,LEGAL FEES & COURT COSTS,2102588507
03.11.2016,CHILDREN'S SERVICES,TABITHA BARRAN,575.00,LEGAL,LEGAL FEES & COURT COSTS,2102588508
03.11.2016,CHILDREN'S SERVICES,VICTORIA FLOWERS,355.00,LEGAL,LEGAL FEES & COURT COSTS,2102588513
03.11.2016,CHILDREN'S SERVICES,JOHN GUEST SAFEGUARDING LIMITED,600.00,PRIMARY ACHIEVEMENT,CONSULTANTS SERVICES,5902221324
03.11.2016,CHILDREN'S SERVICES,BROMLEY TRUST ACADEMY,"8,610.00",PUPIL PREMIUM CURRENT YEAR,EXTERNAL AGENCIES AND BODIES,5902221293
03.11.2016,CHILDREN'S SERVICES,CITY INN EXPRESS LTD,500.00,S & FAM SUPP - PRAC GRP E SET 26-28,SECTION 17 PAYMENTS TO AGENCIES/CARERS,5902221341
03.11.2016,CHILDREN'S SERVICES,CITY INN EXPRESS LTD,700.00,S & FAM SUPP - PRAC GRP E SET 26-28,SECTION 17 PAYMENTS TO AGENCIES/CARERS,5902221342
03.11.2016,CHILDREN'S SERVICES,CITY INN EXPRESS LTD,700.00,S & FAM SUPP - PRAC GRP E SET 26-28,SECTION 17 PAYMENTS TO AGENCIES/CARERS,5902221344
03.11.2016,CHILDREN'S SERVICES,CITY INN EXPRESS LTD,700.00,S & FAM SUPP - PRAC GRP E SET 26-28,SECTION 17 PAYMENTS TO AGENCIES/CARERS,5902221348
03.11.2016,CHILDREN'S SERVICES,CITY INN EXPRESS LTD,700.00,S & FAM SUPP - PRAC GRP E SET 26-28,SECTION 17 PAYMENTS TO AGENCIES/CARERS,5902221350
03.11.2016,CHILDREN'S SERVICES,BIRKBECK UNIVERSITY OF LONDON,"9,000.00",SCHOLARSHIP SCHEME,EXTERNAL AGENCIES AND BODIES,5902221269
03.11.2016,CHILDREN'S SERVICES,UNIVERSITY OF MANCHESTER,"9,000.00",SCHOLARSHIP SCHEME,EXTERNAL AGENCIES AND BODIES,5902221246
03.11.2016,CHILDREN'S SERVICES,ACTIVE RECRUITMENT SEN LTD,720.00,SEN TRANSPORT,EXTERNAL AGENCIES AND BODIES,5902221199
03.11.2016,CHILDREN'S SERVICES,KENT COUNTY COUNCIL - LASER,758.32,SOUTH BERMONDSEY CHILDRENS & PARENTS CNT,ELECTRICITY,5902221143
03.11.2016,CHILDREN'S SERVICES,HEATHER PLATT,375.00,SOUTHWARK MANAGEMENT - 5015249,LEGAL FEES & COURT COSTS,2102588465
03.11.2016,CHILDREN'S SERVICES,HEATHER PLATT,675.00,SOUTHWARK MANAGEMENT - 5015249,LEGAL FEES & COURT COSTS,2102588464
03.11.2016,CHILDREN'S SERVICES,HEATHER PLATT,825.00,SOUTHWARK MANAGEMENT - 5015249,LEGAL FEES & COURT COSTS,2102588466
03.11.2016,CHILDREN'S SERVICES,HEATHER PLATT,925.00,SOUTHWARK MANAGEMENT - 5015249,LEGAL FEES & COURT COSTS,2102588467
03.11.2016,CHILDREN'S SERVICES,LOOK AHEAD CARE AND SUPPORT LTD,"11,917.40",SP PROVIDER PAYMENTS,EXTERNAL AGENCIES AND BODIES,2102588304
03.11.2016,CHILDREN'S SERVICES,LOOK AHEAD CARE AND SUPPORT LTD,"21,627.50",SP PROVIDER PAYMENTS,EXTERNAL AGENCIES AND BODIES,2102588300
03.11.2016,CHILDREN'S SERVICES,LOOK AHEAD CARE AND SUPPORT LTD,"21,852.51",SP PROVIDER PAYMENTS,EXTERNAL AGENCIES AND BODIES,2102588301
03.11.2016,CHILDREN'S SERVICES,LOOK AHEAD CARE AND SUPPORT LTD,"26,375.50",SP PROVIDER PAYMENTS,EXTERNAL AGENCIES AND BODIES,2102588303
03.11.2016,CHILDREN'S SERVICES,LOOK AHEAD CARE AND SUPPORT LTD,"26,477.49",SP PROVIDER PAYMENTS,EXTERNAL AGENCIES AND BODIES,2102588302
03.11.2016,CHILDREN'S SERVICES,LOOK AHEAD CARE AND SUPPORT LTD,"27,750.00",SP PROVIDER PAYMENTS,EXTERNAL AGENCIES AND BODIES,2102588305
03.11.2016,CHILDREN'S SERVICES,OASIS AQUILA HOUSING,"8,238.25",SP PROVIDER PAYMENTS,EXTERNAL AGENCIES AND BODIES,2102588307
03.11.2016,CHILDREN'S SERVICES,RIVERSIDE,"20,753.08",SP PROVIDER PAYMENTS,EXTERNAL AGENCIES AND BODIES,2102588308
03.11.2016,CHILDREN'S SERVICES,SOUTHSIDE PARTNERSHIP,"28,439.35",SP PROVIDER PAYMENTS,EXTERNAL AGENCIES AND BODIES,2102588297
03.11.2016,CHILDREN'S SERVICES,ST MUNGOS,"27,019.31",SP PROVIDER PAYMENTS,EXTERNAL AGENCIES AND BODIES,2102588309
03.11.2016,CHILDREN'S SERVICES,THAMES REACH,"25,375.00",SP PROVIDER PAYMENTS,EXTERNAL AGENCIES AND BODIES,2102588310
03.11.2016,CHILDREN'S SERVICES,THE SALVATION ARMY,"22,788.58",SP PROVIDER PAYMENTS,EXTERNAL AGENCIES AND BODIES,2102588311
03.11.2016,CHILDREN'S SERVICES,THAMES WATER UTILITIES LTD,263.69,SPA RD ADVENTURE PLAY,WATER,5902221030
03.11.2016,CHILDREN'S SERVICES,REDACTED PERSONAL DATA,"5,174.00",SPECIAL GUARDIANSHIP,PAYMENTS TO CARERS,INTERNATIONAL PAYMENT
03.11.2016,CHILDREN'S SERVICES,SPRING LTD T/A BALHAM BEDS,515.83,SPECIAL PAYMENTS,EQUIPMENT PURCHASE & REPAIR,5902221184
03.11.2016,CHILDREN'S SERVICES,SPRING LTD T/A BALHAM BEDS,"1,443.33",SPECIAL PAYMENTS,EQUIPMENT PURCHASE & REPAIR,5902221195
03.11.2016,CHILDREN'S SERVICES,SALTCO LTD T/A KELLY EXECUTIVE,"1,680.00",SUMMERHOUSE - EX416 - 5015232,HIRED VEHICLES,5902221377
03.11.2016,CHILDREN'S SERVICES,SALTCO LTD T/A KELLY EXECUTIVE,"1,680.00",SUMMERHOUSE - EX416 - 5015232,HIRED VEHICLES,5902221378
03.11.2016,CHILDREN'S SERVICES,SALTCO LTD T/A KELLY EXECUTIVE,"1,680.00",SUMMERHOUSE - EX416 - 5015232,HIRED VEHICLES,5902221379
03.11.2016,CHILDREN'S SERVICES,ANGEL SPRINGS LTD,265.62,THOMAS CALTON CENTRE,CATERING MATERIALS & SUPPLIES,5902221205
03.11.2016,COMMUNITIES,FAIR COMMUNITY HSG SERVICES LTD,"22,661.08",FAIR CHS TMO,M&M ALLOWANCE CO-OPS,5902221100
03.11.2016,COMMUNITIES,RISBOL LTD,"1,050.00",NO RECOURSE TO PUBLIC FUNDS,SECTION 17 PAYMENTS TO AGENCIES/CARERS,5902221282
03.11.2016,COMMUNITIES,RISBOL LTD,"1,050.00",NO RECOURSE TO PUBLIC FUNDS,SECTION 17 PAYMENTS TO AGENCIES/CARERS,5902221308
03.11.2016,COMMUNITIES,ZFA LTD,"34,020.00",NO RECOURSE TO PUBLIC FUNDS,SECTION 17 PAYMENTS TO AGENCIES/CARERS,5902221331
03.11.2016,COMMUNITIES,OCEAN EDGE,"2,456.00",TENANT MGT INITITIVES,DISCRETIONARY AWARDS AND FEES,5902221327
03.11.2016,COMMUNITIES,WEBBER AND QUENTIN LTD,"3,125.00",TENANT MGT INITITIVES,DISCRETIONARY AWARDS AND FEES,5902221364
03.11.2016,CUSTOMER EXPERIENCE HGF,CATHERINE ROWLANDS,850.00,HOMELESS & HOUSING OPTIONS MGT,LEGAL FEES & COURT COSTS,2102588438
03.11.2016,CUSTOMER EXPERIENCE HGF,CATHERINE ROWLANDS,"1,750.00",HOMELESS & HOUSING OPTIONS MGT,LEGAL FEES & COURT COSTS,2102588437
03.11.2016,CUSTOMER EXPERIENCE HGF,CHRISTOPHER BAKER,400.00,HOMELESS & HOUSING OPTIONS MGT,LEGAL FEES & COURT COSTS,2102588444
03.11.2016,CUSTOMER EXPERIENCE HGF,CHRISTOPHER BAKER,750.00,HOMELESS & HOUSING OPTIONS MGT,LEGAL FEES & COURT COSTS,2102588442
03.11.2016,CUSTOMER EXPERIENCE HGF,CHRISTOPHER BAKER,975.00,HOMELESS & HOUSING OPTIONS MGT,LEGAL FEES & COURT COSTS,2102588443
03.11.2016,CUSTOMER EXPERIENCE HGF,DONALD BROATCH,325.00,HOMELESS & HOUSING OPTIONS MGT,LEGAL FEES & COURT COSTS,2102588449
03.11.2016,CUSTOMER EXPERIENCE HGF,DONALD BROATCH,450.00,HOMELESS & HOUSING OPTIONS MGT,LEGAL FEES & COURT COSTS,2102588450
03.11.2016,CUSTOMER EXPERIENCE HGF,MALCOLM G SANKEY,360.00,HOMELESS & HOUSING OPTIONS MGT,LEGAL FEES & COURT COSTS,2102588479
03.11.2016,CUSTOMER EXPERIENCE HGF,TOBY VANHEGAN,350.00,HOMELESS & HOUSING OPTIONS MGT,LEGAL FEES & COURT COSTS,2102588511
03.11.2016,CUSTOMER EXPERIENCE HGF,TFL TELESALES,255.00,HOMELESS & HOUSING OPTIONS MGT,PUBLIC TRANSPORT,5902221159
03.11.2016,CUSTOMER EXPERIENCE HGF,TFL TELESALES,260.00,HOMELESS & HOUSING OPTIONS MGT,PUBLIC TRANSPORT,5902221145
03.11.2016,CUSTOMER EXPERIENCE HGF,ACE FAST LETTINGS LTD,"1,658.50",NIGHTLY TA (NSC),EXTERNAL AGENCIES AND BODIES,5902221374
03.11.2016,CUSTOMER EXPERIENCE HGF,S A PROPERTY MANAGEMENT LTD,"10,597.00",NIGHTLY TA (NSC),EXTERNAL AGENCIES AND BODIES,5902221252
03.11.2016,CUSTOMER EXPERIENCE HGF,SK HOUSING LTD,"9,720.45",NIGHTLY TA (NSC),EXTERNAL AGENCIES AND BODIES,5902221133
03.11.2016,CUSTOMER EXPERIENCE HGF,STENFORD PROPERTY LTD,"39,479.40",NIGHTLY TA (NSC),EXTERNAL AGENCIES AND BODIES,5902221148
03.11.2016,CUSTOMER EXPERIENCE HGF,MENGU HICYILMAZ,"1,200.00",PSL (SOCIAL LETTINGS),EXTERNAL AGENCIES AND BODIES,2102588291
03.11.2016,ELECTORAL SVCES,LONDON WEEKLY NEWSPAPERS LTD,-480.00,ELECTORAL REGISTRATION,MARKETING & PUBLICITY SERVICES,5902221517
03.11.2016,ELECTORAL SVCES,LONDON WEEKLY NEWSPAPERS LTD,480.00,ELECTORAL REGISTRATION,MARKETING & PUBLICITY SERVICES,5901791823
03.11.2016,ENVIRONMENT AND LEISURE,BOURNE AMENITY LTD,"7,321.65",CAPITAL PS (LEISURE),CONSTRUCTION,5902221244
03.11.2016,ENVIRONMENT AND LEISURE,BIKEAWAY,"12,900.00",CAPITAL PS (LEISURE),CONSTRUCTION FEES  - EXTERNAL,5902221343
03.11.2016,ENVIRONMENT AND LEISURE,COMMUNITY LINKS TRADING LTD,538.00,CAPITAL PS (LEISURE),CONSTRUCTION FEES  - EXTERNAL,5902221291
03.11.2016,ENVIRONMENT DIRECTORATE,LONDON COUNCILS,"18,032.00",ALG ACCOUNT,PROFESSIONAL FEES,5902221362
03.11.2016,ENVIRONMENT DIRECTORATE,AUTOMOTIVE LEASING,258.95,CAR LEASING CTRL A/C,VEHICLE LEASING CHARGES,5902221226
03.11.2016,ENVIRONMENT DIRECTORATE,AUTOMOTIVE LEASING,259.76,CAR LEASING CTRL A/C,VEHICLE LEASING CHARGES,5902221226
03.11.2016,ENVIRONMENT DIRECTORATE,HITACHI CAPITAL VEHICLE SOLN LTD,"1,041.08",CAR LEASING CTRL A/C,VEHICLE LEASING CHARGES,5902221121
03.11.2016,ENVIRONMENT DIRECTORATE,LEX AUTOLEASE,-263.15,CAR LEASING CTRL A/C,VEHICLE LEASING CHARGES,5902221144
03.11.2016,ENVIRONMENT DIRECTORATE,LEX AUTOLEASE,529.06,CAR LEASING CTRL A/C,VEHICLE LEASING CHARGES,5902221141
03.11.2016,ENVIRONMENT DIRECTORATE,CLOSE BROTHERS VEHICLE HIRE LTD,256.20,COMMERCIAL VEH CTRL A/C,HIRED VEHICLES,5902221175
03.11.2016,ENVIRONMENT DIRECTORATE,CLOSE BROTHERS VEHICLE HIRE LTD,256.20,COMMERCIAL VEH CTRL A/C,HIRED VEHICLES,5902221178
03.11.2016,ENVIRONMENT DIRECTORATE,CLOSE BROTHERS VEHICLE HIRE LTD,273.00,COMMERCIAL VEH CTRL A/C,HIRED VEHICLES,5902221197
03.11.2016,ENVIRONMENT DIRECTORATE,CLOSE BROTHERS VEHICLE HIRE LTD,273.00,COMMERCIAL VEH CTRL A/C,HIRED VEHICLES,5902221201
03.11.2016,ENVIRONMENT DIRECTORATE,CLOSE BROTHERS VEHICLE HIRE LTD,367.34,COMMERCIAL VEH CTRL A/C,HIRED VEHICLES,5902221183
03.11.2016,ENVIRONMENT DIRECTORATE,CLOSE BROTHERS VEHICLE HIRE LTD,472.08,COMMERCIAL VEH CTRL A/C,HIRED VEHICLES,5902221192
03.11.2016,ENVIRONMENT DIRECTORATE,DAWSON RENTALS SWEEPERS,"2,100.00",COMMERCIAL VEH CTRL A/C,HIRED VEHICLES,5902221227
03.11.2016,ENVIRONMENT DIRECTORATE,DAWSON RENTALS SWEEPERS,"2,100.00",COMMERCIAL VEH CTRL A/C,HIRED VEHICLES,5902221228
03.11.2016,ENVIRONMENT DIRECTORATE,DAWSON RENTALS SWEEPERS,"2,100.00",COMMERCIAL VEH CTRL A/C,HIRED VEHICLES,5902221229
03.11.2016,ENVIRONMENT DIRECTORATE,DAWSON RENTALS SWEEPERS,"2,100.00",COMMERCIAL VEH CTRL A/C,HIRED VEHICLES,5902221230
03.11.2016,ENVIRONMENT DIRECTORATE,FIVEWAYS MUNICIPAL VEHICLE HIRE LTD,725.00,COMMERCIAL VEH CTRL A/C,HIRED VEHICLES,5902221118
03.11.2016,ENVIRONMENT DIRECTORATE,FIVEWAYS MUNICIPAL VEHICLE HIRE LTD,725.00,COMMERCIAL VEH CTRL A/C,HIRED VEHICLES,5902221119
03.11.2016,ENVIRONMENT DIRECTORATE,LCV HIRE SOLUTIONS LTD,260.40,COMMERCIAL VEH CTRL A/C,HIRED VEHICLES,5902221339
03.11.2016,ENVIRONMENT DIRECTORATE,LCV HIRE SOLUTIONS LTD,332.01,COMMERCIAL VEH CTRL A/C,HIRED VEHICLES,5902221347
03.11.2016,ENVIRONMENT DIRECTORATE,LONDON HIRE LIMITED,292.00,COMMERCIAL VEH CTRL A/C,HIRED VEHICLES,5902221298
03.11.2016,ENVIRONMENT DIRECTORATE,LONDON HIRE LIMITED,580.00,COMMERCIAL VEH CTRL A/C,HIRED VEHICLES,5902221301
03.11.2016,ENVIRONMENT DIRECTORATE,LONDON HIRE LIMITED,645.00,COMMERCIAL VEH CTRL A/C,HIRED VEHICLES,5902221294
03.11.2016,ENVIRONMENT DIRECTORATE,LONDON HIRE LIMITED,675.00,COMMERCIAL VEH CTRL A/C,HIRED VEHICLES,5902221290
03.11.2016,ENVIRONMENT DIRECTORATE,LONDON HIRE LIMITED,679.00,COMMERCIAL VEH CTRL A/C,HIRED VEHICLES,5902221296
03.11.2016,ENVIRONMENT DIRECTORATE,LONDON HIRE LIMITED,822.00,COMMERCIAL VEH CTRL A/C,HIRED VEHICLES,5902221303
03.11.2016,ENVIRONMENT DIRECTORATE,LONDON HIRE LIMITED,"1,068.51",COMMERCIAL VEH CTRL A/C,HIRED VEHICLES,5902221307
03.11.2016,ENVIRONMENT DIRECTORATE,LONDON HIRE LIMITED,"1,120.00",COMMERCIAL VEH CTRL A/C,HIRED VEHICLES,5902221280
03.11.2016,ENVIRONMENT DIRECTORATE,LONDON HIRE LIMITED,"1,600.00",COMMERCIAL VEH CTRL A/C,HIRED VEHICLES,5902221287
03.11.2016,ENVIRONMENT DIRECTORATE,LONDON HIRE LIMITED,"1,910.00",COMMERCIAL VEH CTRL A/C,HIRED VEHICLES,5902221284
03.11.2016,ENVIRONMENT DIRECTORATE,LONDON HIRE LIMITED,"6,231.50",COMMERCIAL VEH CTRL A/C,HIRED VEHICLES,5902221278
03.11.2016,ENVIRONMENT DIRECTORATE,LONDON HIRE LIMITED,"19,608.50",COMMERCIAL VEH CTRL A/C,HIRED VEHICLES,5902221275
03.11.2016,ENVIRONMENT DIRECTORATE,LONDON HIRE LIMITED,"29,116.45",COMMERCIAL VEH CTRL A/C,HIRED VEHICLES,5902221272
03.11.2016,ENVIRONMENT DIRECTORATE,BLUE ANCHOR VEHICLE LOGISTICS LTD,617.50,COMMERCIAL VEH CTRL A/C,VEHICLE REPAIRS & MAINTENANCE,5902221332
03.11.2016,ENVIRONMENT DIRECTORATE,TEMPLE GROUP LTD,920.00,LICENSING,LEGAL FEES & COURT COSTS,2102588509
03.11.2016,ENVIRONMENT DIRECTORATE,IMPERIAL POLYTHENE PRODUCTS LTD,"1,540.00",MANAGEMENT TEAM,MATERIALS,5902220462
03.11.2016,ENVIRONMENT DIRECTORATE,COMMUNITY CYCLEWORKS,420.00,NON LCN CYCLE TRAINING,PROFESSIONAL FEES,5902221333
03.11.2016,ENVIRONMENT DIRECTORATE,1ENV SOLUTIONS LTD,"2,631.43",PEST CONTROL,MATERIALS,5902221270
03.11.2016,ENVIRONMENT DIRECTORATE,CROSSED HANDS LTD,360.00,PEST CONTROL,TRAINING,5902221253
03.11.2016,ENVIRONMENT DIRECTORATE,CROSSED HANDS LTD,"4,020.00",PEST CONTROL,TRAINING,5902221254
03.11.2016,ENVIRONMENT DIRECTORATE,1ENV SOLUTIONS LTD,950.09,PEST CONTROL-CDN A/C,MATERIALS,5902221279
03.11.2016,F & C S EXCLUDING CORPORATE BUDGETS,NORTHGATE PUBLIC SERVICES (UK) LTD,450.10,ADMINISTRATIVE SUPPORT,POSTAGES,5902221297
03.11.2016,F & C S EXCLUDING CORPORATE BUDGETS,ROYAL MAIL GROUP LTD,"2,893.49",ADMINISTRATIVE SUPPORT,POSTAGES,5902221354
03.11.2016,F & C S EXCLUDING CORPORATE BUDGETS,NORTHGATE PUBLIC SERVICES (UK) LTD,"2,948.00",ADMINISTRATIVE SUPPORT,SOFTWARE,5902221304
03.11.2016,F & C S EXCLUDING CORPORATE BUDGETS,BETTER BANKSIDE,"278,885.25",BETTER BANKSIDE,EXTERNAL AGENCIES AND BODIES,5902221245
03.11.2016,F & C S EXCLUDING CORPORATE BUDGETS,SWISS POST SOLUTIONS LTD,"1,723.39",CONSTITUTIONAL TEAM,PRINTING,5902221319
03.11.2016,F & C S EXCLUDING CORPORATE BUDGETS,ASITHA RANATUNGA,750.00,LITIGATION,LEGAL FEES & COURT COSTS,2102588432
03.11.2016,F & C S EXCLUDING CORPORATE BUDGETS,GORDON HEATH LTD,"1,200.00",NNDR,CONSULTANTS SERVICES,5902220121
03.11.2016,HOUSING HRA,BCS (ELECTRICAL & BUILDING) LTD,"38,343.56",BCS,MANUAL CREDITORS,5902221185
03.11.2016,HOUSING HRA,ARCHAEOLOGICAL SOLUTIONS LTD,"1,610.00",CAPITAL PS (HRA),CONSTRUCTION FEES  - EXTERNAL,5902221314
03.11.2016,HOUSING HRA,DYNASAFE BACTEC LTD,950.00,CAPITAL PS (HRA),CONSTRUCTION FEES  - EXTERNAL,5902221248
03.11.2016,HOUSING HRA,DYNASAFE BACTEC LTD,950.00,CAPITAL PS (HRA),CONSTRUCTION FEES  - EXTERNAL,5902221249
03.11.2016,HOUSING HRA,DYNASAFE BACTEC LTD,950.00,CAPITAL PS (HRA),CONSTRUCTION FEES  - EXTERNAL,5902221250
03.11.2016,HOUSING HRA,DYNASAFE BACTEC LTD,950.00,CAPITAL PS (HRA),CONSTRUCTION FEES  - EXTERNAL,5902221251
03.11.2016,HOUSING HRA,EDI SURVEYS LTD,"4,664.50",CAPITAL PS (HRA),CONSTRUCTION FEES  - EXTERNAL,5902221114
03.11.2016,HOUSING HRA,EDI SURVEYS LTD,"4,745.25",CAPITAL PS (HRA),CONSTRUCTION FEES  - EXTERNAL,5902221117
03.11.2016,HOUSING HRA,HERRINGTON CONSULTING LTD,"4,515.00",CAPITAL PS (HRA),CONSTRUCTION FEES  - EXTERNAL,5902221224
03.11.2016,HOUSING HRA,VECTOS (SOUTH) LTD,381.25,CAPITAL PS (HRA),CONSTRUCTION FEES  - EXTERNAL,5902221162
03.11.2016,HOUSING HRA,ADAM KHAN ARCHITECTS LTD,"13,993.25",CAPITAL PS (REGEN),CONSTRUCTION FEES - ARCHITECT,5902221216
03.11.2016,HOUSING HRA,ADAM KHAN ARCHITECTS LTD,"17,491.56",CAPITAL PS (REGEN),CONSTRUCTION FEES - ARCHITECT,5902221219
03.11.2016,HOUSING HRA,ADAM KHAN ARCHITECTS LTD,"39,354.65",CAPITAL PS (REGEN),CONSTRUCTION FEES - ARCHITECT,5902221218
03.11.2016,HOUSING HRA,ADAM KHAN ARCHITECTS LTD,"49,193.31",CAPITAL PS (REGEN),CONSTRUCTION FEES - ARCHITECT,5902221217
03.11.2016,HOUSING HRA,SMITH & BYFORD LTD,"276,829.92",SMITH AND BYFORD,MANUAL CREDITORS,5902221140
03.11.2016,LEISURE DIRECTORATE,FREE FLOW LTD,725.00,BURGESS AREA TEAM,OTHER R&M,5902221210
03.11.2016,LEISURE DIRECTORATE,HARRISON DESIGN DEVELOPMENT LTD,"4,013.75",CEMETERIES,CONSULTANTS SERVICES,5902221132
03.11.2016,LEISURE DIRECTORATE,EDF ENERGY PLC,250.90,CEMETERIES,ELECTRICITY,5902221329
03.11.2016,LEISURE DIRECTORATE,CLIVE BARFORD LIMITED,437.00,CEMETERIES,VEHICLE LEASING CHARGES,5902221276
03.11.2016,LEISURE DIRECTORATE,LEE SNASHFOLD CREMETORIA MANAGEMENT,"1,056.00",CREMATORIUM,AGENCY STAFF,5902221370
03.11.2016,LEISURE DIRECTORATE,THAMES WATER UTILITIES LTD,"-2,806.34",DULWICH AREA TEAM,WATER,5902220875
03.11.2016,LEISURE DIRECTORATE,THAMES WATER UTILITIES LTD,"-2,806.34",DULWICH AREA TEAM,WATER,5902220875
03.11.2016,LEISURE DIRECTORATE,THAMES WATER UTILITIES LTD,"4,918.67",DULWICH AREA TEAM,WATER,5902220882
03.11.2016,LEISURE DIRECTORATE,KENT COUNTY COUNCIL - LASER,945.27,DULWICH LIBRARY,ELECTRICITY,5902221305
03.11.2016,LEISURE DIRECTORATE,VEOLIA ES (UK)LTD,642.12,KINGSWOOD HOUSE,CSC CONTRACT,5902221334
03.11.2016,LEISURE DIRECTORATE,VEOLIA ES (UK)LTD,645.78,KINGSWOOD HOUSE,CSC CONTRACT,5902221326
03.11.2016,LEISURE DIRECTORATE,VEOLIA ES (UK)LTD,778.86,KINGSWOOD HOUSE,CSC CONTRACT,5902221330
03.11.2016,LEISURE DIRECTORATE,LDA DESIGN CONSULTING LTD,"9,072.00",LANDSCAPE DESIGN SERVICES,OTHER CONTRACTORS,5902221231
03.11.2016,LEISURE DIRECTORATE,LDA DESIGN CONSULTING LTD,"9,072.00",LANDSCAPE DESIGN SERVICES,OTHER CONTRACTORS,5902221232
03.11.2016,LEISURE DIRECTORATE,ALISTAIR CANTOR,300.00,LIBARIES DEVELOPMENT,LEGAL FEES & COURT COSTS,2102588430
03.11.2016,LEISURE DIRECTORATE,EDF ENERGY PLC,333.22,NUNHEAD CEMETERY,ELECTRICITY,5902221361
03.11.2016,LEISURE DIRECTORATE,KENT COUNTY COUNCIL - LASER,"1,911.40",PECKHAM LIBRARY,ELECTRICITY,5902221360
03.11.2016,LEISURE DIRECTORATE,KENT COUNTY COUNCIL - LASER,261.44,PECKHAM LIBRARY,GAS,5902221318
03.11.2016,LEISURE DIRECTORATE,THAMES WATER UTILITIES LTD,504.55,PECKHAM RYE AREA TEAM,WATER,5902221289
03.11.2016,MODERNISATION,ANDREW SKELLY,750.00,COMMERCIAL PROPERTIES,LEGAL FEES & COURT COSTS,2102588431
03.11.2016,MODERNISATION,SHERCURITY LTD,"3,780.00",COMMERCIAL PROPERTIES,LEGAL FEES & COURT COSTS,2102588502
03.11.2016,MODERNISATION HGF,NCC SERVICES LTD,"1,062.50",APPLICATIONS,SUBSCRIPTIONS,5902221112
03.11.2016,MODERNISATION HGF,KENT COUNTY COUNCIL - LASER,746.92,BOURNEMOUTH GROVE,ELECTRICITY,5902221363
03.11.2016,MODERNISATION HGF,EDGE TRAINING LTD,"1,750.00",MENTAL HEALTH,TRAINING,5902220040
03.11.2016,MODERNISATION HGF,JESSICA MCKOEN,500.00,MENTAL HEALTH,TRAINING,5902221353
03.11.2016,MODERNISATION HGF,COMENSURA LTD,"3,391.95",MONTHLY ADMIN FEE,AGENCY STAFF,5902221306
03.11.2016,MODERNISATION HGF,INTERSERVE (FACILITIES MANAGEMENT),722.93,PLANNED MAINTENANCE,BUILDING R&M,5902221200
03.11.2016,MODERNISATION HGF,INTERSERVE (FACILITIES MANAGEMENT),"3,326.40",PLANNED MAINTENANCE,BUILDING R&M,5902221164
03.11.2016,MODERNISATION HGF,INTERSERVE (FACILITIES MANAGEMENT),"9,912.73",PLANNED MAINTENANCE,BUILDING R&M,5902221176
03.11.2016,MODERNISATION HGF,KENT COUNTY COUNCIL - LASER,"6,179.75",QUEENS RD 1 (BLOCK F),ELECTRICITY,5902221358
03.11.2016,MODERNISATION HGF,PULSE CORPORATION LTD,"1,035.00",REPAIR AND MAINTENANCE SERVICES,BUILDING R&M,5902221187
03.11.2016,MODERNISATION HGF,PULSE CORPORATION LTD,"4,554.00",REPAIR AND MAINTENANCE SERVICES,BUILDING R&M,5902221191
03.11.2016,MODERNISATION HGF,INTERSERVE (FACILITIES MANAGEMENT),"92,804.55",REPAIR AND MAINTENANCE SERVICES,SECURITY SERVICES,5902221247
03.11.2016,MODERNISATION HGF,TMP (UK) LIMITED,495.00,TMP,RECRUITMENT ADVERTISING,5902221135
03.11.2016,MODERNISATION HGF,COMENSURA LTD,"471,978.92",WEEKLY PAYMENTS,AGENCY STAFF,5902221306
03.11.2016,PLANNING AND TRANSPORT,GVA GRIMLEY LLP,"9,043.53",MAJOR APPLICATIONS,PROFESSIONAL FEES,5902221295
03.11.2016,PUBLIC HEALTH,LONDON BOROUGH OF LAMBETH,"72,571.00",SEXUAL HEALTH - ADVICE,EXTERNAL AGENCIES AND BODIES,5902221352
03.11.2016,REGENERATION,WARNER LAND SURVEYS LTD,"7,040.00",OLD KENT RD-FEES/MPLAN,PROFESSIONAL FEES,5902221155
03.11.2016,REGENERATION,PLAN LONDON LTD,550.00,PECKHAM/CAMBERWELL SITES-FEES/MPLAN,PROFESSIONAL FEES,5902221288
03.11.2016,RESIDENT SERVICES,ANTHONY GOLD SOLICITORS,"21,187.36",OPERATIONS/OFFICES ACCOMMODATION,LEGAL FEES & COURT COSTS,5902221106
03.11.2016,RESIDENT SERVICES,LISA CLARKE,290.00,OPERATIONS/OFFICES ACCOMMODATION,LEGAL FEES & COURT COSTS,2102588472
03.11.2016,RESIDENT SERVICES,MALCOLM G SANKEY,360.00,OPERATIONS/OFFICES ACCOMMODATION,LEGAL FEES & COURT COSTS,2102588477
03.11.2016,RESIDENT SERVICES,MALCOLM G SANKEY,360.00,OPERATIONS/OFFICES ACCOMMODATION,LEGAL FEES & COURT COSTS,2102588480
03.11.2016,RESIDENT SERVICES,MALCOLM G SANKEY,420.00,OPERATIONS/OFFICES ACCOMMODATION,LEGAL FEES & COURT COSTS,2102588476
03.11.2016,RESIDENT SERVICES,MALCOLM G SANKEY,420.00,OPERATIONS/OFFICES ACCOMMODATION,LEGAL FEES & COURT COSTS,2102588478
03.11.2016,RESIDENT SERVICES,MALCOLM G SANKEY,"1,200.00",OPERATIONS/OFFICES ACCOMMODATION,LEGAL FEES & COURT COSTS,2102588475
03.11.2016,RESIDENT SERVICES,SIMON BUTLER,"1,312.50",OPERATIONS/OFFICES ACCOMMODATION,LEGAL FEES & COURT COSTS,2102588503
03.11.2016,RESIDENT SERVICES,EDF ENERGY PLC,561.36,PECKHAM,ELECTRICITY,5902221212
03.11.2016,STRATEGIC FINANCING BUDGETS,THE BANK OF NEW YORK MELLON,954.30,CASH MANAGERS' COSTS,PROFESSIONAL FEES,5902221172
04.11.2016,ADULT SOCIAL CARE,MIHOMECARE LTD,-274.89, OP CARE PACKAGES,HOMECARE - C&V,2102588763
04.11.2016,ADULT SOCIAL CARE,MIHOMECARE LTD,275.00, OP CARE PACKAGES,HOMECARE - C&V,2102588791
04.11.2016,ADULT SOCIAL CARE,MIHOMECARE LTD,"1,041.25", OP CARE PACKAGES,HOMECARE - C&V,2102588797
04.11.2016,ADULT SOCIAL CARE,MIHOMECARE LTD,"1,511.90", OP CARE PACKAGES,HOMECARE - C&V,2102588780
04.11.2016,ADULT SOCIAL CARE,MIHOMECARE LTD,"2,165.80", OP CARE PACKAGES,HOMECARE - C&V,2102588770
04.11.2016,ADULT SOCIAL CARE,MIHOMECARE LTD,"2,590.63", OP CARE PACKAGES,HOMECARE - C&V,2102588778
04.11.2016,ADULT SOCIAL CARE,REDACTED PERSONAL DATA,500.00,APPOINTEESHIPS,OTHER PAYMENTS FOR CLIENTS,5902221473
04.11.2016,ADULT SOCIAL CARE,HMCTS,400.00,DEPUTYSHIPS,OTHER PAYMENTS FOR CLIENTS,5902221460
04.11.2016,ADULT SOCIAL CARE,HMCTS,400.00,DEPUTYSHIPS,OTHER PAYMENTS FOR CLIENTS,5902221464
04.11.2016,ADULT SOCIAL CARE,HMCTS,400.00,DEPUTYSHIPS,OTHER PAYMENTS FOR CLIENTS,5902221469
04.11.2016,ADULT SOCIAL CARE,MIHOMECARE LTD,"1,599.36",HOME CARE C&V,HOMECARE - C&V,2102588783
04.11.2016,ADULT SOCIAL CARE,MIHOMECARE LTD,"-1,436.93",OP - HOMECARE,HOMECARE - C&V,2102588748
04.11.2016,ADULT SOCIAL CARE,MIHOMECARE LTD,"-1,349.46",OP - HOMECARE,HOMECARE - C&V,2102588749
04.11.2016,ADULT SOCIAL CARE,MIHOMECARE LTD,-449.82,OP - HOMECARE,HOMECARE - C&V,2102588756
04.11.2016,ADULT SOCIAL CARE,MIHOMECARE LTD,-259.56,OP - HOMECARE,HOMECARE - C&V,2102588741
04.11.2016,ADULT SOCIAL CARE,MIHOMECARE LTD,299.88,OP - HOMECARE,HOMECARE - C&V,2102588776
04.11.2016,ADULT SOCIAL CARE,MIHOMECARE LTD,508.09,OP - HOMECARE,HOMECARE - C&V,2102588806
04.11.2016,ADULT SOCIAL CARE,MIHOMECARE LTD,512.30,OP - HOMECARE,HOMECARE - C&V,2102588790
04.11.2016,ADULT SOCIAL CARE,MIHOMECARE LTD,699.72,OP - HOMECARE,HOMECARE - C&V,2102588813
04.11.2016,ADULT SOCIAL CARE,MIHOMECARE LTD,728.88,OP - HOMECARE,HOMECARE - C&V,2102588793
04.11.2016,ADULT SOCIAL CARE,MIHOMECARE LTD,749.70,OP - HOMECARE,HOMECARE - C&V,2102588774
04.11.2016,ADULT SOCIAL CARE,MIHOMECARE LTD,753.87,OP - HOMECARE,HOMECARE - C&V,2102588794
04.11.2016,ADULT SOCIAL CARE,MIHOMECARE LTD,758.03,OP - HOMECARE,HOMECARE - C&V,2102588798
04.11.2016,ADULT SOCIAL CARE,MIHOMECARE LTD,799.68,OP - HOMECARE,HOMECARE - C&V,2102588771
04.11.2016,ADULT SOCIAL CARE,MIHOMECARE LTD,916.30,OP - HOMECARE,HOMECARE - C&V,2102588788
04.11.2016,ADULT SOCIAL CARE,MIHOMECARE LTD,"1,057.91",OP - HOMECARE,HOMECARE - C&V,2102588796
04.11.2016,ADULT SOCIAL CARE,MIHOMECARE LTD,"1,057.91",OP - HOMECARE,HOMECARE - C&V,2102588801
04.11.2016,ADULT SOCIAL CARE,MIHOMECARE LTD,"1,082.90",OP - HOMECARE,HOMECARE - C&V,2102588800
04.11.2016,ADULT SOCIAL CARE,MIHOMECARE LTD,"1,128.72",OP - HOMECARE,HOMECARE - C&V,2102588775
04.11.2016,ADULT SOCIAL CARE,MIHOMECARE LTD,"1,149.54",OP - HOMECARE,HOMECARE - C&V,2102588787
04.11.2016,ADULT SOCIAL CARE,MIHOMECARE LTD,"1,157.87",OP - HOMECARE,HOMECARE - C&V,2102588799
04.11.2016,ADULT SOCIAL CARE,MIHOMECARE LTD,"1,174.53",OP - HOMECARE,HOMECARE - C&V,2102588784
04.11.2016,ADULT SOCIAL CARE,MIHOMECARE LTD,"1,199.52",OP - HOMECARE,HOMECARE - C&V,2102588772
04.11.2016,ADULT SOCIAL CARE,MIHOMECARE LTD,"1,234.17",OP - HOMECARE,HOMECARE - C&V,2102588789
04.11.2016,ADULT SOCIAL CARE,MIHOMECARE LTD,"1,266.16",OP - HOMECARE,HOMECARE - C&V,2102588777
04.11.2016,ADULT SOCIAL CARE,MIHOMECARE LTD,"1,332.80",OP - HOMECARE,HOMECARE - C&V,2102588773
04.11.2016,ADULT SOCIAL CARE,MIHOMECARE LTD,"1,482.74",OP - HOMECARE,HOMECARE - C&V,2102588785
04.11.2016,ADULT SOCIAL CARE,MIHOMECARE LTD,"1,928.40",OP - HOMECARE,HOMECARE - C&V,2102588786
04.11.2016,ADULT SOCIAL CARE,MIHOMECARE LTD,"2,057.51",OP - HOMECARE,HOMECARE - C&V,2102588782
04.11.2016,ADULT SOCIAL CARE,MIHOMECARE LTD,"2,186.63",OP - HOMECARE,HOMECARE - C&V,2102588779
04.11.2016,ADULT SOCIAL CARE,MIHOMECARE LTD,"2,465.68",OP - HOMECARE,HOMECARE - C&V,2102588781
04.11.2016,ADULT SOCIAL CARE,MIHOMECARE LTD,"4,048.38",OP - HOMECARE,HOMECARE - C&V,2102588769
04.11.2016,ADULT SOCIAL CARE,YOUTH GRACES (UK) LTD,259.77,OP - HOMECARE,HOMECARE - SPOT,2102588832
04.11.2016,ADULT SOCIAL CARE,YOUTH GRACES (UK) LTD,276.55,OP - HOMECARE,HOMECARE - SPOT,2102588830
04.11.2016,ADULT SOCIAL CARE,YOUTH GRACES (UK) LTD,276.55,OP - HOMECARE,HOMECARE - SPOT,2102588831
04.11.2016,ADULT SOCIAL CARE,YOUTH GRACES (UK) LTD,276.55,OP - HOMECARE,HOMECARE - SPOT,2102588833
04.11.2016,ADULT SOCIAL CARE,ABOUT ME CARE AND SUPPORT LTD,942.00,OP - HOMECARE,OTHER PAYMENTS FOR CLIENTS,2102588545
04.11.2016,ADULT SOCIAL CARE,LONDON CARE PLC,"1,899.41",PERSONAL BUDGET - SLAM,HOMECARE - C&V,2102588715
04.11.2016,ADULT SOCIAL CARE,LONDON CARE PLC,"5,459.94",PERSONAL BUDGET - SLAM,HOMECARE - C&V,2102588692
04.11.2016,ADULT SOCIAL CARE,LONDON CARE PLC,"7,256.86",PERSONAL BUDGET - SLAM,HOMECARE - C&V,2102588570
04.11.2016,ADULT SOCIAL CARE,LONDON CARE PLC,"7,279.92",PERSONAL BUDGET - SLAM,HOMECARE - C&V,2102588669
04.11.2016,ADULT SOCIAL CARE,LONDON CARE PLC,"7,329.73",PERSONAL BUDGET - SLAM,HOMECARE - C&V,2102588620
04.11.2016,ADULT SOCIAL CARE,LONDON CARE PLC,"7,329.77",PERSONAL BUDGET - SLAM,HOMECARE - C&V,2102588645
04.11.2016,ADULT SOCIAL CARE,LONDON CARE PLC,"7,379.62",PERSONAL BUDGET - SLAM,HOMECARE - C&V,2102588595
04.11.2016,ADULT SOCIAL CARE,LONDON CARE PLC,"7,647.49",PERSONAL BUDGET - SLAM,HOMECARE - C&V,2102588735
04.11.2016,ADULT SOCIAL CARE,MIHOMECARE LTD,"1,132.88",PERSONAL BUDGET - SLAM,HOMECARE - C&V,2102588802
04.11.2016,ADULT SOCIAL CARE,LONDON CARE PLC,263.36,PERSONAL BUDGET - SOCIAL CARE,HOMECARE - C&V,2102588719
04.11.2016,ADULT SOCIAL CARE,LONDON CARE PLC,263.36,PERSONAL BUDGET - SOCIAL CARE,HOMECARE - C&V,2102588728
04.11.2016,ADULT SOCIAL CARE,LONDON CARE PLC,263.36,PERSONAL BUDGET - SOCIAL CARE,HOMECARE - C&V,2102588731
04.11.2016,ADULT SOCIAL CARE,LONDON CARE PLC,268.99,PERSONAL BUDGET - SOCIAL CARE,HOMECARE - C&V,2102588672
04.11.2016,ADULT SOCIAL CARE,LONDON CARE PLC,276.66,PERSONAL BUDGET - SOCIAL CARE,HOMECARE - C&V,2102588679
04.11.2016,ADULT SOCIAL CARE,LONDON CARE PLC,276.66,PERSONAL BUDGET - SOCIAL CARE,HOMECARE - C&V,2102588689
04.11.2016,ADULT SOCIAL CARE,LONDON CARE PLC,276.68,PERSONAL BUDGET - SOCIAL CARE,HOMECARE - C&V,2102588573
04.11.2016,ADULT SOCIAL CARE,LONDON CARE PLC,276.68,PERSONAL BUDGET - SOCIAL CARE,HOMECARE - C&V,2102588598
04.11.2016,ADULT SOCIAL CARE,LONDON CARE PLC,276.68,PERSONAL BUDGET - SOCIAL CARE,HOMECARE - C&V,2102588623
04.11.2016,ADULT SOCIAL CARE,LONDON CARE PLC,276.68,PERSONAL BUDGET - SOCIAL CARE,HOMECARE - C&V,2102588648
04.11.2016,ADULT SOCIAL CARE,LONDON CARE PLC,279.14,PERSONAL BUDGET - SOCIAL CARE,HOMECARE - C&V,2102588699
04.11.2016,ADULT SOCIAL CARE,LONDON CARE PLC,288.05,PERSONAL BUDGET - SOCIAL CARE,HOMECARE - C&V,2102588714
04.11.2016,ADULT SOCIAL CARE,LONDON CARE PLC,296.28,PERSONAL BUDGET - SOCIAL CARE,HOMECARE - C&V,2102588738
04.11.2016,ADULT SOCIAL CARE,LONDON CARE PLC,303.62,PERSONAL BUDGET - SOCIAL CARE,HOMECARE - C&V,2102588680
04.11.2016,ADULT SOCIAL CARE,LONDON CARE PLC,315.10,PERSONAL BUDGET - SOCIAL CARE,HOMECARE - C&V,2102588682
04.11.2016,ADULT SOCIAL CARE,LONDON CARE PLC,353.54,PERSONAL BUDGET - SOCIAL CARE,HOMECARE - C&V,2102588609
04.11.2016,ADULT SOCIAL CARE,LONDON CARE PLC,353.59,PERSONAL BUDGET - SOCIAL CARE,HOMECARE - C&V,2102588657
04.11.2016,ADULT SOCIAL CARE,LONDON CARE PLC,368.88,PERSONAL BUDGET - SOCIAL CARE,HOMECARE - C&V,2102588555
04.11.2016,ADULT SOCIAL CARE,LONDON CARE PLC,368.88,PERSONAL BUDGET - SOCIAL CARE,HOMECARE - C&V,2102588567
04.11.2016,ADULT SOCIAL CARE,LONDON CARE PLC,368.88,PERSONAL BUDGET - SOCIAL CARE,HOMECARE - C&V,2102588580
04.11.2016,ADULT SOCIAL CARE,LONDON CARE PLC,368.88,PERSONAL BUDGET - SOCIAL CARE,HOMECARE - C&V,2102588592
04.11.2016,ADULT SOCIAL CARE,LONDON CARE PLC,368.88,PERSONAL BUDGET - SOCIAL CARE,HOMECARE - C&V,2102588605
04.11.2016,ADULT SOCIAL CARE,LONDON CARE PLC,368.88,PERSONAL BUDGET - SOCIAL CARE,HOMECARE - C&V,2102588617
04.11.2016,ADULT SOCIAL CARE,LONDON CARE PLC,368.88,PERSONAL BUDGET - SOCIAL CARE,HOMECARE - C&V,2102588630
04.11.2016,ADULT SOCIAL CARE,LONDON CARE PLC,368.88,PERSONAL BUDGET - SOCIAL CARE,HOMECARE - C&V,2102588642
04.11.2016,ADULT SOCIAL CARE,LONDON CARE PLC,368.88,PERSONAL BUDGET - SOCIAL CARE,HOMECARE - C&V,2102588655
04.11.2016,ADULT SOCIAL CARE,LONDON CARE PLC,368.88,PERSONAL BUDGET - SOCIAL CARE,HOMECARE - C&V,2102588666
04.11.2016,ADULT SOCIAL CARE,LONDON CARE PLC,368.91,PERSONAL BUDGET - SOCIAL CARE,HOMECARE - C&V,2102588584
04.11.2016,ADULT SOCIAL CARE,LONDON CARE PLC,372.95,PERSONAL BUDGET - SOCIAL CARE,HOMECARE - C&V,2102588631
04.11.2016,ADULT SOCIAL CARE,LONDON CARE PLC,384.32,PERSONAL BUDGET - SOCIAL CARE,HOMECARE - C&V,2102588556
04.11.2016,ADULT SOCIAL CARE,LONDON CARE PLC,384.36,PERSONAL BUDGET - SOCIAL CARE,HOMECARE - C&V,2102588656
04.11.2016,ADULT SOCIAL CARE,LONDON CARE PLC,384.48,PERSONAL BUDGET - SOCIAL CARE,HOMECARE - C&V,2102588581
04.11.2016,ADULT SOCIAL CARE,LONDON CARE PLC,384.80,PERSONAL BUDGET - SOCIAL CARE,HOMECARE - C&V,2102588606
04.11.2016,ADULT SOCIAL CARE,LONDON CARE PLC,395.04,PERSONAL BUDGET - SOCIAL CARE,HOMECARE - C&V,2102588724
04.11.2016,ADULT SOCIAL CARE,LONDON CARE PLC,395.04,PERSONAL BUDGET - SOCIAL CARE,HOMECARE - C&V,2102588733
04.11.2016,ADULT SOCIAL CARE,LONDON CARE PLC,407.34,PERSONAL BUDGET - SOCIAL CARE,HOMECARE - C&V,2102588558
04.11.2016,ADULT SOCIAL CARE,LONDON CARE PLC,411.64,PERSONAL BUDGET - SOCIAL CARE,HOMECARE - C&V,2102588725
04.11.2016,ADULT SOCIAL CARE,LONDON CARE PLC,445.75,PERSONAL BUDGET - SOCIAL CARE,HOMECARE - C&V,2102588659
04.11.2016,ADULT SOCIAL CARE,LONDON CARE PLC,453.53,PERSONAL BUDGET - SOCIAL CARE,HOMECARE - C&V,2102588607
04.11.2016,ADULT SOCIAL CARE,LONDON CARE PLC,476.47,PERSONAL BUDGET - SOCIAL CARE,HOMECARE - C&V,2102588639
04.11.2016,ADULT SOCIAL CARE,LONDON CARE PLC,476.63,PERSONAL BUDGET - SOCIAL CARE,HOMECARE - C&V,2102588683
04.11.2016,ADULT SOCIAL CARE,LONDON CARE PLC,484.26,PERSONAL BUDGET - SOCIAL CARE,HOMECARE - C&V,2102588681
04.11.2016,ADULT SOCIAL CARE,LONDON CARE PLC,491.84,PERSONAL BUDGET - SOCIAL CARE,HOMECARE - C&V,2102588582
04.11.2016,ADULT SOCIAL CARE,LONDON CARE PLC,491.84,PERSONAL BUDGET - SOCIAL CARE,HOMECARE - C&V,2102588632
04.11.2016,ADULT SOCIAL CARE,LONDON CARE PLC,526.72,PERSONAL BUDGET - SOCIAL CARE,HOMECARE - C&V,2102588726
04.11.2016,ADULT SOCIAL CARE,LONDON CARE PLC,553.32,PERSONAL BUDGET - SOCIAL CARE,HOMECARE - C&V,2102588557
04.11.2016,ADULT SOCIAL CARE,LONDON CARE PLC,614.80,PERSONAL BUDGET - SOCIAL CARE,HOMECARE - C&V,2102588678
04.11.2016,ADULT SOCIAL CARE,LONDON CARE PLC,630.17,PERSONAL BUDGET - SOCIAL CARE,HOMECARE - C&V,2102588552
04.11.2016,ADULT SOCIAL CARE,LONDON CARE PLC,630.38,PERSONAL BUDGET - SOCIAL CARE,HOMECARE - C&V,2102588635
04.11.2016,ADULT SOCIAL CARE,LONDON CARE PLC,630.38,PERSONAL BUDGET - SOCIAL CARE,HOMECARE - C&V,2102588660
04.11.2016,ADULT SOCIAL CARE,LONDON CARE PLC,645.68,PERSONAL BUDGET - SOCIAL CARE,HOMECARE - C&V,2102588608
04.11.2016,ADULT SOCIAL CARE,LONDON CARE PLC,645.68,PERSONAL BUDGET - SOCIAL CARE,HOMECARE - C&V,2102588633
04.11.2016,ADULT SOCIAL CARE,LONDON CARE PLC,645.68,PERSONAL BUDGET - SOCIAL CARE,HOMECARE - C&V,2102588658
04.11.2016,ADULT SOCIAL CARE,LONDON CARE PLC,645.76,PERSONAL BUDGET - SOCIAL CARE,HOMECARE - C&V,2102588559
04.11.2016,ADULT SOCIAL CARE,LONDON CARE PLC,645.76,PERSONAL BUDGET - SOCIAL CARE,HOMECARE - C&V,2102588585
04.11.2016,ADULT SOCIAL CARE,LONDON CARE PLC,645.76,PERSONAL BUDGET - SOCIAL CARE,HOMECARE - C&V,2102588610
04.11.2016,ADULT SOCIAL CARE,LONDON CARE PLC,691.32,PERSONAL BUDGET - SOCIAL CARE,HOMECARE - C&V,2102588727
04.11.2016,ADULT SOCIAL CARE,LONDON CARE PLC,783.87,PERSONAL BUDGET - SOCIAL CARE,HOMECARE - C&V,2102588676
04.11.2016,ADULT SOCIAL CARE,LONDON CARE PLC,799.24,PERSONAL BUDGET - SOCIAL CARE,HOMECARE - C&V,2102588554
04.11.2016,ADULT SOCIAL CARE,LONDON CARE PLC,799.24,PERSONAL BUDGET - SOCIAL CARE,HOMECARE - C&V,2102588564
04.11.2016,ADULT SOCIAL CARE,LONDON CARE PLC,799.24,PERSONAL BUDGET - SOCIAL CARE,HOMECARE - C&V,2102588589
04.11.2016,ADULT SOCIAL CARE,LONDON CARE PLC,799.24,PERSONAL BUDGET - SOCIAL CARE,HOMECARE - C&V,2102588604
04.11.2016,ADULT SOCIAL CARE,LONDON CARE PLC,799.24,PERSONAL BUDGET - SOCIAL CARE,HOMECARE - C&V,2102588614
04.11.2016,ADULT SOCIAL CARE,LONDON CARE PLC,799.24,PERSONAL BUDGET - SOCIAL CARE,HOMECARE - C&V,2102588629
04.11.2016,ADULT SOCIAL CARE,LONDON CARE PLC,799.24,PERSONAL BUDGET - SOCIAL CARE,HOMECARE - C&V,2102588654
04.11.2016,ADULT SOCIAL CARE,LONDON CARE PLC,799.49,PERSONAL BUDGET - SOCIAL CARE,HOMECARE - C&V,2102588691
04.11.2016,ADULT SOCIAL CARE,LONDON CARE PLC,845.35,PERSONAL BUDGET - SOCIAL CARE,HOMECARE - C&V,2102588579
04.11.2016,ADULT SOCIAL CARE,LONDON CARE PLC,937.89,PERSONAL BUDGET - SOCIAL CARE,HOMECARE - C&V,2102588668
04.11.2016,ADULT SOCIAL CARE,LONDON CARE PLC,"1,045.16",PERSONAL BUDGET - SOCIAL CARE,HOMECARE - C&V,2102588577
04.11.2016,ADULT SOCIAL CARE,LONDON CARE PLC,"1,045.16",PERSONAL BUDGET - SOCIAL CARE,HOMECARE - C&V,2102588602
04.11.2016,ADULT SOCIAL CARE,LONDON CARE PLC,"1,045.16",PERSONAL BUDGET - SOCIAL CARE,HOMECARE - C&V,2102588627
04.11.2016,ADULT SOCIAL CARE,LONDON CARE PLC,"1,045.16",PERSONAL BUDGET - SOCIAL CARE,HOMECARE - C&V,2102588652
04.11.2016,ADULT SOCIAL CARE,LONDON CARE PLC,"1,091.61",PERSONAL BUDGET - SOCIAL CARE,HOMECARE - C&V,2102588594
04.11.2016,ADULT SOCIAL CARE,LONDON CARE PLC,"1,106.99",PERSONAL BUDGET - SOCIAL CARE,HOMECARE - C&V,2102588569
04.11.2016,ADULT SOCIAL CARE,LONDON CARE PLC,"1,119.28",PERSONAL BUDGET - SOCIAL CARE,HOMECARE - C&V,2102588722
04.11.2016,ADULT SOCIAL CARE,LONDON CARE PLC,"1,153.12",PERSONAL BUDGET - SOCIAL CARE,HOMECARE - C&V,2102588619
04.11.2016,ADULT SOCIAL CARE,LONDON CARE PLC,"1,191.57",PERSONAL BUDGET - SOCIAL CARE,HOMECARE - C&V,2102588644
04.11.2016,ADULT SOCIAL CARE,LONDON CARE PLC,"1,234.50",PERSONAL BUDGET - SOCIAL CARE,HOMECARE - C&V,2102588734
04.11.2016,ADULT SOCIAL CARE,MIHOMECARE LTD,266.56,PERSONAL BUDGET - SOCIAL CARE,HOMECARE - C&V,2102588828
04.11.2016,ADULT SOCIAL CARE,MIHOMECARE LTD,333.20,PERSONAL BUDGET - SOCIAL CARE,HOMECARE - C&V,2102588824
04.11.2016,ADULT SOCIAL CARE,MIHOMECARE LTD,449.82,PERSONAL BUDGET - SOCIAL CARE,HOMECARE - C&V,2102588815
04.11.2016,ADULT SOCIAL CARE,MIHOMECARE LTD,466.48,PERSONAL BUDGET - SOCIAL CARE,HOMECARE - C&V,2102588826
04.11.2016,ADULT SOCIAL CARE,MIHOMECARE LTD,516.46,PERSONAL BUDGET - SOCIAL CARE,HOMECARE - C&V,2102588810
04.11.2016,ADULT SOCIAL CARE,MIHOMECARE LTD,533.12,PERSONAL BUDGET - SOCIAL CARE,HOMECARE - C&V,2102588803
04.11.2016,ADULT SOCIAL CARE,MIHOMECARE LTD,533.12,PERSONAL BUDGET - SOCIAL CARE,HOMECARE - C&V,2102588807
04.11.2016,ADULT SOCIAL CARE,MIHOMECARE LTD,533.12,PERSONAL BUDGET - SOCIAL CARE,HOMECARE - C&V,2102588817
04.11.2016,ADULT SOCIAL CARE,MIHOMECARE LTD,849.66,PERSONAL BUDGET - SOCIAL CARE,HOMECARE - C&V,2102588809
04.11.2016,ADULT SOCIAL CARE,MIHOMECARE LTD,899.64,PERSONAL BUDGET - SOCIAL CARE,HOMECARE - C&V,2102588827
04.11.2016,ADULT SOCIAL CARE,MIHOMECARE LTD,"1,132.88",PERSONAL BUDGET - SOCIAL CARE,HOMECARE - C&V,2102588825
04.11.2016,ADULT SOCIAL CARE,MIHOMECARE LTD,"1,749.30",PERSONAL BUDGET - SOCIAL CARE,HOMECARE - C&V,2102588811
04.11.2016,ADULT SOCIAL CARE,DR MUTHUKUMAR KANNABIRAN,"1,038.00",SAFEGUARDING TEAM,OTHER CONTRACTORS,5902221415
04.11.2016,ADULT SOCIAL CARE,DR MUTHUKUMAR KANNABIRAN,"1,631.70",SAFEGUARDING TEAM,OTHER CONTRACTORS,5902221416
04.11.2016,ASSET MANAGEMENT,SHARPE PRITCHARD LLP,470.00,DESIGN & DELIVERY (NORTH),BUILDING R&M,5902221527
04.11.2016,ASSET MANAGEMENT,SHARPE PRITCHARD LLP,670.00,DISREPAIR,BUILDING R&M,5902221527
04.11.2016,ASSET MANAGEMENT,VEOLIA ES SOUTHWARK LTD,"2,632.40",ENG CONTRACTS (NORTH),HEATING - DISTRICT PLANT REPAIR & REPLAC,5902221445
04.11.2016,ASSET MANAGEMENT,CALFORD SEADEN LLP,"10,305.05",HIP MAJOR WORKS,PLANNED MAINTENANCE,5902221439
04.11.2016,ASSET MANAGEMENT,CALFORD SEADEN LLP,"12,179.73",HIP MAJOR WORKS,PLANNED MAINTENANCE,5902221437
04.11.2016,ASSET MANAGEMENT,OCO LIMITED,"400,350.08",PAYMENTS CONTROL ACCOUNT - OCO,MANUAL CREDITORS,5902220891
04.11.2016,ASSET MANAGEMENT,SHARPE PRITCHARD LLP,900.00,REPAIRS OPERATIONS,PROFESSIONAL FEES,5902221542
04.11.2016,CENTRAL FUNCTIONS,INTERSERVE (FACILITIES MANAGEMENT),"9,436.15",MSHO,BUILDING R&M,2102588925
04.11.2016,CHIEF EXECUTIVE,LANDOLT & BROWN,"7,590.00",CAPITAL PS (REGEN),CONSTRUCTION FEES - ARCHITECT,5902220959
04.11.2016,CHIEF EXECUTIVE'S OFFICE,SAVILLS (UK) LTD,686.93,CHIEF EXEC'S OFFICE,SERVICE CHARGES,2102588941
04.11.2016,CHIEF EXECUTIVE'S OFFICE,J C CONSULTANT SERVICES LTD,"9,152.00",YOUTH FUND EMPLOYMENT,GRANTS,5902221384
04.11.2016,CHILDREN AND ADULT,MORGAN SINDALL PLC,"275,742.49",CAPITAL PS (EDUCATION),CONST'N MAIN CONTRACT - NON CERTIFICATED,2102588926
04.11.2016,CHILDREN AND ADULT,CBS MAINTENANCE SERVICES LTD,"54,764.53",CAPITAL PS (EDUCATION),CONSTRUCTION FEES  - EXTERNAL,2102588921
04.11.2016,CHILDREN AND ADULT,HAVERSTOCK,"1,500.00",CAPITAL PS (EDUCATION),CONSTRUCTION FEES - ARCHITECT,5902221550
04.11.2016,CHILDREN AND ADULT,BOLT & HEEKS LIMITED,"16,405.55",CAPITAL PS (EDUCATION),CONSTRUCTION MAIN CONTRACT -CERTIFICATED,2102588919
04.11.2016,CHILDREN AND ADULT,MORGAN SINDALL PLC,"22,324.60",CAPITAL PS (EDUCATION),CONSTRUCTION MAIN CONTRACT -CERTIFICATED,2102588927
04.11.2016,CHILDREN AND ADULT,MORGAN SINDALL PLC,"243,559.23",CAPITAL PS (EDUCATION),CONSTRUCTION MAIN CONTRACT -CERTIFICATED,2102588929
04.11.2016,CHILDREN AND ADULT,MORGAN SINDALL PLC,"1,053,609.49",CAPITAL PS (EDUCATION),CONSTRUCTION MAIN CONTRACT -CERTIFICATED,2102588928
04.11.2016,CHILDREN AND ADULT,INTERSERVE (FACILITIES MANAGEMENT),"11,075.95",CAPITAL PS (SOC SERV),CONSTRUCTION MAIN CONTRACT -CERTIFICATED,2102588924
04.11.2016,CHILDREN'S SERVICES,REVIVAL,660.00,ADMIN CURLEW,OTHER PAYMENTS FOR CLIENTS,5902221535
04.11.2016,CHILDREN'S SERVICES,SITA UK LTD (SUEZ),262.85,ADMIN CURLEW,OTHER PAYMENTS FOR CLIENTS,5902221540
04.11.2016,CHILDREN'S SERVICES,OFFICE DEPOT UK LTD,465.01,ADMIN CURLEW,STATIONERY,5902221541
04.11.2016,CHILDREN'S SERVICES,POSTURITE (UK) LTD,574.00,ADMIN SUMNER,MEDICAL / HEALTH & SAFETY SERVICES,5902221521
04.11.2016,CHILDREN'S SERVICES,NATIONAL FOSTERING AGENCY,"4,264.20",AGENCY FOSTERING,EXTERNAL AGENCIES AND BODIES,5902221555
04.11.2016,CHILDREN'S SERVICES,NCER CIC,"3,218.18",BUSINESS APPLICATIONS,SOFTWARE,5902221412
04.11.2016,CHILDREN'S SERVICES,NCER CIC,"4,266.24",BUSINESS APPLICATIONS,SOFTWARE,5902221407
04.11.2016,CHILDREN'S SERVICES,PROJECT WEST LTD,913.00,CONTACT,EXTERNAL AGENCIES AND BODIES,5902221313
04.11.2016,CHILDREN'S SERVICES,BDP SOCIAL CARE LTD,281.25,CONTACT,OTHER PAYMENTS FOR CLIENTS,5902221537
04.11.2016,CHILDREN'S SERVICES,CORAM ACADEMY LTD,"2,851.84",DISABILITY & HIV,EXTERNAL AGENCIES AND BODIES,5902221503
04.11.2016,CHILDREN'S SERVICES,ILDERTON MOTORVEHICLE PROJECT,"2,650.00",FE & SIXTH FORM COLLEGES,EQUIPMENT PURCHASE & REPAIR,5902221513
04.11.2016,CHILDREN'S SERVICES,CBS MAINTENANCE SERVICES LTD,"15,583.56",PROPERTY MANAGEMENT - 5015257,PROFESSIONAL FEES,2102588935
04.11.2016,CHILDREN'S SERVICES,CBS MAINTENANCE SERVICES LTD,"64,428.34",PROPERTY MANAGEMENT - 5015257,PROFESSIONAL FEES,2102588936
04.11.2016,CHILDREN'S SERVICES,CBS MAINTENANCE SERVICES LTD,"70,950.24",PROPERTY MANAGEMENT - 5015257,PROFESSIONAL FEES,2102588934
04.11.2016,CHILDREN'S SERVICES,FAITHFULL & GOULD,"3,500.00",PROPERTY MANAGEMENT - 5015257,PROFESSIONAL FEES,5902221425
04.11.2016,CHILDREN'S SERVICES,FRANKHAM CONSULTANCY GROUP LTD,"1,335.60",PROPERTY MANAGEMENT - 5015257,PROFESSIONAL FEES,5902221497
04.11.2016,CHILDREN'S SERVICES,FRANKHAM CONSULTANCY GROUP LTD,"1,526.40",PROPERTY MANAGEMENT - 5015257,PROFESSIONAL FEES,5902221502
04.11.2016,CHILDREN'S SERVICES,WHARTON ARBORICULTURE LTD,710.00,PROPERTY MANAGEMENT - 5015257,PROFESSIONAL FEES,5902221491
04.11.2016,CHILDREN'S SERVICES,BERGER PRIMARY SCHOOL,"1,500.00",PUPIL PREMIUM CURRENT YEAR,SCHOOLS CAPITATION,2102588910
04.11.2016,CHILDREN'S SERVICES,RYE OAK PRIMARY SCHOOL,"1,500.00",PUPIL PREMIUM CURRENT YEAR,SCHOOLS CAPITATION,2102588915
04.11.2016,CHILDREN'S SERVICES,RYE OAK PRIMARY SCHOOL,"1,500.00",PUPIL PREMIUM CURRENT YEAR,SCHOOLS CAPITATION,2102588916
04.11.2016,CHILDREN'S SERVICES,SPA SCHOOL,"1,500.00",PUPIL PREMIUM CURRENT YEAR,SCHOOLS CAPITATION,2102588912
04.11.2016,CHILDREN'S SERVICES,ST GEORGES CE SCHOOL,"1,500.00",PUPIL PREMIUM CURRENT YEAR,SCHOOLS CAPITATION,2102588911
04.11.2016,CHILDREN'S SERVICES,WOODCOTE PRIMARY SCHOOL,"1,500.00",PUPIL PREMIUM CURRENT YEAR,SCHOOLS CAPITATION,2102588909
04.11.2016,CHILDREN'S SERVICES,POSTURITE (UK) LTD,602.87,S & FAM SUPP - PRAC GRP B SET 17-19,MEDICAL / HEALTH & SAFETY SERVICES,5902221523
04.11.2016,CHILDREN'S SERVICES,ARGOS BUSINESS SOLUTIONS LTD,250.66,S & FAM SUPP - PRAC GRP B SET 17-19,OTHER PAYMENTS FOR CLIENTS,5902221520
04.11.2016,CHILDREN'S SERVICES,UNIVERSITY COLLEGE LONDON,"9,000.00",SCHOLARSHIP SCHEME,EXTERNAL AGENCIES AND BODIES,5902221198
04.11.2016,CHILDREN'S SERVICES,UNIVERSITY COLLEGE LONDON,"9,000.00",SCHOLARSHIP SCHEME,EXTERNAL AGENCIES AND BODIES,5902221203
04.11.2016,CHILDREN'S SERVICES,UNIVERSITY COLLEGE LONDON,"9,000.00",SCHOLARSHIP SCHEME,EXTERNAL AGENCIES AND BODIES,5902221208
04.11.2016,CHILDREN'S SERVICES,UNIVERSITY OF BIRMINGHAM,"7,000.00",SCHOLARSHIP SCHEME,EXTERNAL AGENCIES AND BODIES,5902221410
04.11.2016,CHILDREN'S SERVICES,UNIVERSITY OF BIRMINGHAM,"9,000.00",SCHOLARSHIP SCHEME,EXTERNAL AGENCIES AND BODIES,5902221404
04.11.2016,CHILDREN'S SERVICES,UNIVERSITY OF BIRMINGHAM,"9,000.00",SCHOLARSHIP SCHEME,EXTERNAL AGENCIES AND BODIES,5902221406
04.11.2016,CHILDREN'S SERVICES,UNIVERSITY OF BIRMINGHAM,"9,000.00",SCHOLARSHIP SCHEME,EXTERNAL AGENCIES AND BODIES,5902221408
04.11.2016,CHILDREN'S SERVICES,UNIVERSITY OF SUSSEX,"9,000.00",SCHOLARSHIP SCHEME,EXTERNAL AGENCIES AND BODIES,5902221443
04.11.2016,CHILDREN'S SERVICES,LIBERTY CARE HOMES LTD,"9,831.60",SEMI INDEPENDENT,EXTERNAL AGENCIES AND BODIES,5902221539
04.11.2016,CHILDREN'S SERVICES,PULSE HEALTHCARE LTD,717.60,SEN TRANSPORT,STATEMENTED FEES,5902220697
04.11.2016,CHILDREN'S SERVICES,KENT COUNTY COUNCIL - LASER,-722.72,SOUTH BERMONDSEY CHILDRENS & PARENTS CNT,ELECTRICITY,5902221434
04.11.2016,CHILDREN'S SERVICES,KENT COUNTY COUNCIL - LASER,785.59,SOUTH BERMONDSEY CHILDRENS & PARENTS CNT,ELECTRICITY,5902221429
04.11.2016,CHILDREN'S SERVICES,NESTOR PRIMECARE SERVICES LTD,883.20,SPECIALIST CARE,SECTION 17 PAYMENTS TO AGENCIES/CARERS,2102588547
04.11.2016,CHILDREN'S SERVICES,REDACTED PERSONAL DATA,377.20,SPECIALIST CARE,SECTION 17 PAYMENTS TO CLIENTS,2102588836
04.11.2016,CHILDREN'S SERVICES,ALBION PRIMARY SCHOOL,"5,402.00",SPORTS FUNDING,SCHOOLS CAPITATION,2102588842
04.11.2016,CHILDREN'S SERVICES,ALFRED SALTER PRIMARY SCHOOL,"5,670.00",SPORTS FUNDING,SCHOOLS CAPITATION,2102588872
04.11.2016,CHILDREN'S SERVICES,BELLENDEN PRIMARY SCHOOL,"5,253.00",SPORTS FUNDING,SCHOOLS CAPITATION,2102588843
04.11.2016,CHILDREN'S SERVICES,BEORMUND PRIMARY SCHOOL,"4,772.00",SPORTS FUNDING,SCHOOLS CAPITATION,2102588907
04.11.2016,CHILDREN'S SERVICES,BESSEMER GRANGE PRIMARY SCHOOL,"5,921.00",SPORTS FUNDING,SCHOOLS CAPITATION,2102588874
04.11.2016,CHILDREN'S SERVICES,BETHLEM & MAUDSLEY HOSPITAL SCHOOL,"1,458.00",SPORTS FUNDING,SCHOOLS CAPITATION,2102588905
04.11.2016,CHILDREN'S SERVICES,BOUCHER C OF E PRIMARY SCHOOL,"5,189.00",SPORTS FUNDING,SCHOOLS CAPITATION,2102588876
04.11.2016,CHILDREN'S SERVICES,BRUNSWICK PARK PRIMARY SCHOOL,"5,909.00",SPORTS FUNDING,SCHOOLS CAPITATION,2102588875
04.11.2016,CHILDREN'S SERVICES,CAMELOT PRIMARY SCHOOL,"5,880.00",SPORTS FUNDING,SCHOOLS CAPITATION,2102588844
04.11.2016,CHILDREN'S SERVICES,CATHEDRAL SCHOOL OF ST SAVIOUR & MARY,"5,168.00",SPORTS FUNDING,SCHOOLS CAPITATION,2102588894
04.11.2016,CHILDREN'S SERVICES,CHARLES DICKENS PRIMARY SCHOOL,"5,556.00",SPORTS FUNDING,SCHOOLS CAPITATION,2102588845
04.11.2016,CHILDREN'S SERVICES,CHARLOTTE  SHARMAN PRIMARY SCHOOL,"5,460.00",SPORTS FUNDING,SCHOOLS CAPITATION,2102588902
04.11.2016,CHILDREN'S SERVICES,CHERRY GARDEN SCHOOL,"4,789.00",SPORTS FUNDING,SCHOOLS CAPITATION,2102588908
04.11.2016,CHILDREN'S SERVICES,COBOURG PRIMARY SCHOOL,"5,702.00",SPORTS FUNDING,SCHOOLS CAPITATION,2102588846
04.11.2016,CHILDREN'S SERVICES,COMBER GROVE PRIMARY SCHOOL,"5,431.00",SPORTS FUNDING,SCHOOLS CAPITATION,2102588847
04.11.2016,CHILDREN'S SERVICES,CRAMPTON PRIMARY SCHOOL,"5,195.00",SPORTS FUNDING,SCHOOLS CAPITATION,2102588848
04.11.2016,CHILDREN'S SERVICES,CRAWFORD PRIMARY SCHOOL,"5,813.00",SPORTS FUNDING,SCHOOLS CAPITATION,2102588849
04.11.2016,CHILDREN'S SERVICES,DOG KENNEL HILL PRIMARY SCHOOL,"5,737.00",SPORTS FUNDING,SCHOOLS CAPITATION,2102588850
04.11.2016,CHILDREN'S SERVICES,DULWICH VILLAGE CE INFANTS SCHOOL,"5,168.00",SPORTS FUNDING,SCHOOLS CAPITATION,2102588877
04.11.2016,CHILDREN'S SERVICES,DULWICH WOOD PRIMARY SCHOOL,"5,279.00",SPORTS FUNDING,SCHOOLS CAPITATION,2102588859
04.11.2016,CHILDREN'S SERVICES,ENGLISH MARTYRS RC PRIMARY SCHOOL,"5,620.00",SPORTS FUNDING,SCHOOLS CAPITATION,2102588878
04.11.2016,CHILDREN'S SERVICES,EVELINA HOSPITAL SCHOOL,"4,748.00",SPORTS FUNDING,SCHOOLS CAPITATION,2102588904
04.11.2016,CHILDREN'S SERVICES,FRIARS PRIMARY SCHOOL,"5,171.00",SPORTS FUNDING,SCHOOLS CAPITATION,2102588901
04.11.2016,CHILDREN'S SERVICES,GOODRICH PRIMARY SCHOOL,"6,148.00",SPORTS FUNDING,SCHOOLS CAPITATION,2102588851
04.11.2016,CHILDREN'S SERVICES,GRANGE PRIMARY SCHOOL,"5,553.00",SPORTS FUNDING,SCHOOLS CAPITATION,2102588852
04.11.2016,CHILDREN'S SERVICES,HAYMERLE SCHOOL,"4,865.00",SPORTS FUNDING,SCHOOLS CAPITATION,2102588906
04.11.2016,CHILDREN'S SERVICES,HEBER PRIMARY SCHOOL,"5,752.00",SPORTS FUNDING,SCHOOLS CAPITATION,2102588853
04.11.2016,CHILDREN'S SERVICES,HOLLYDALE PRIMARY SCHOOL,"5,300.00",SPORTS FUNDING,SCHOOLS CAPITATION,2102588854
04.11.2016,CHILDREN'S SERVICES,ILDERTON PRIMARY SCHOOL,"5,638.00",SPORTS FUNDING,SCHOOLS CAPITATION,2102588855
04.11.2016,CHILDREN'S SERVICES,IVYDALE PRIMARY SCHOOL,"5,854.00",SPORTS FUNDING,SCHOOLS CAPITATION,2102588856
04.11.2016,CHILDREN'S SERVICES,JOHN RUSKIN PRIMARY SCHOOL,"5,717.00",SPORTS FUNDING,SCHOOLS CAPITATION,2102588857
04.11.2016,CHILDREN'S SERVICES,KEYWORTH PRIMARY SCHOOL,"5,635.00",SPORTS FUNDING,SCHOOLS CAPITATION,2102588858
04.11.2016,CHILDREN'S SERVICES,LYNDHURST PRIMARY SCHOOL,"5,693.00",SPORTS FUNDING,SCHOOLS CAPITATION,2102588860
04.11.2016,CHILDREN'S SERVICES,MICHAEL FARADAY PRIMARY SCHOOL,"5,571.00",SPORTS FUNDING,SCHOOLS CAPITATION,2102588861
04.11.2016,CHILDREN'S SERVICES,OLIVER GOLDSMITH PRIMARY SCHOOL,"5,702.00",SPORTS FUNDING,SCHOOLS CAPITATION,2102588873
04.11.2016,CHILDREN'S SERVICES,PETER HILLS CE SCHOOL,"5,136.00",SPORTS FUNDING,SCHOOLS CAPITATION,2102588891
04.11.2016,CHILDREN'S SERVICES,PHOENIX PRIMARY SCHOOL,"5,658.00",SPORTS FUNDING,SCHOOLS CAPITATION,2102588870
04.11.2016,CHILDREN'S SERVICES,PILGRIM'S WAY PRIMARY SCHOOL,"5,183.00",SPORTS FUNDING,SCHOOLS CAPITATION,2102588871
04.11.2016,CHILDREN'S SERVICES,RIVERSIDE PRIMARY SCHOOL,"5,437.00",SPORTS FUNDING,SCHOOLS CAPITATION,2102588862
04.11.2016,CHILDREN'S SERVICES,ROBERT BROWNING PRIMARY SCHOOL,"5,472.00",SPORTS FUNDING,SCHOOLS CAPITATION,2102588863
04.11.2016,CHILDREN'S SERVICES,ROTHERHITHE PRIMARY SCHOOL,"5,664.00",SPORTS FUNDING,SCHOOLS CAPITATION,2102588864
04.11.2016,CHILDREN'S SERVICES,RYE OAK PRIMARY SCHOOL,"5,653.00",SPORTS FUNDING,SCHOOLS CAPITATION,2102588896
04.11.2016,CHILDREN'S SERVICES,SNOWSFIELDS PRIMARY SCHOOL,"5,168.00",SPORTS FUNDING,SCHOOLS CAPITATION,2102588865
04.11.2016,CHILDREN'S SERVICES,SOUTHWARK PARK PRIMARY SCHOOL,"5,673.00",SPORTS FUNDING,SCHOOLS CAPITATION,2102588866
04.11.2016,CHILDREN'S SERVICES,ST ANTHONYS RC SCHOOL,"5,653.00",SPORTS FUNDING,SCHOOLS CAPITATION,2102588898
04.11.2016,CHILDREN'S SERVICES,ST FRANCESCA CABRINI PRIMARY SCHOOL,"5,571.00",SPORTS FUNDING,SCHOOLS CAPITATION,2102588897
04.11.2016,CHILDREN'S SERVICES,ST FRANCIS'S RC PRIMARY SCHOOL,"5,658.00",SPORTS FUNDING,SCHOOLS CAPITATION,2102588880
04.11.2016,CHILDREN'S SERVICES,ST GEORGES CE SCHOOL,"5,081.00",SPORTS FUNDING,SCHOOLS CAPITATION,2102588881
04.11.2016,CHILDREN'S SERVICES,ST GEORGES RC SCHOOL,"5,460.00",SPORTS FUNDING,SCHOOLS CAPITATION,2102588882
04.11.2016,CHILDREN'S SERVICES,ST JAMES CE SCHOOL,"5,877.00",SPORTS FUNDING,SCHOOLS CAPITATION,2102588883
04.11.2016,CHILDREN'S SERVICES,ST JAMES THE GREAT RC SCHOOL,"5,165.00",SPORTS FUNDING,SCHOOLS CAPITATION,2102588879
04.11.2016,CHILDREN'S SERVICES,ST JOHNS & ST CLEMENTS CE SCHOOL,"5,737.00",SPORTS FUNDING,SCHOOLS CAPITATION,2102588884
04.11.2016,CHILDREN'S SERVICES,ST JOHNS RC PRIMARY SCHOOL,"5,154.00",SPORTS FUNDING,SCHOOLS CAPITATION,2102588895
04.11.2016,CHILDREN'S SERVICES,ST JOHNS WALWORTH CE SCHOOL,"5,177.00",SPORTS FUNDING,SCHOOLS CAPITATION,2102588885
04.11.2016,CHILDREN'S SERVICES,ST JOSEPHS CATHOLIC INFANTS SCHOOL,"4,999.00",SPORTS FUNDING,SCHOOLS CAPITATION,2102588900
04.11.2016,CHILDREN'S SERVICES,ST JOSEPHS CATHOLIC PRIMARY SCHOOL,"5,160.00",SPORTS FUNDING,SCHOOLS CAPITATION,2102588887
04.11.2016,CHILDREN'S SERVICES,ST JOSEPHS CATHOLIC SCHOOL,"5,186.00",SPORTS FUNDING,SCHOOLS CAPITATION,2102588888
04.11.2016,CHILDREN'S SERVICES,ST JOSEPHS RC JUNIOR  SCHOOL,"5,358.00",SPORTS FUNDING,SCHOOLS CAPITATION,2102588899
04.11.2016,CHILDREN'S SERVICES,ST JOSEPHS RC PRIMARY SCHOOL,"5,448.00",SPORTS FUNDING,SCHOOLS CAPITATION,2102588886
04.11.2016,CHILDREN'S SERVICES,ST JUDES CHURCH OF ENGLAND PRIMARY,"5,005.00",SPORTS FUNDING,SCHOOLS CAPITATION,2102588889
04.11.2016,CHILDREN'S SERVICES,ST MARY MAGDALENE CE SCHOOL,"5,221.00",SPORTS FUNDING,SCHOOLS CAPITATION,2102588890
04.11.2016,CHILDREN'S SERVICES,ST PAULS CE SCHOOL,"5,425.00",SPORTS FUNDING,SCHOOLS CAPITATION,2102588892
04.11.2016,CHILDREN'S SERVICES,ST PETERS CE SCHOOL,"5,160.00",SPORTS FUNDING,SCHOOLS CAPITATION,2102588893
04.11.2016,CHILDREN'S SERVICES,SURREY SQUARE JUNIOR SCHOOL,"5,702.00",SPORTS FUNDING,SCHOOLS CAPITATION,2102588903
04.11.2016,CHILDREN'S SERVICES,TOWER BRIDGE PRIMARY SCHOOL,"5,154.00",SPORTS FUNDING,SCHOOLS CAPITATION,2102588867
04.11.2016,CHILDREN'S SERVICES,TOWNSEND PRIMARY SCHOOL,"5,177.00",SPORTS FUNDING,SCHOOLS CAPITATION,2102588868
04.11.2016,CHILDREN'S SERVICES,VICTORY SCHOOL,"5,101.00",SPORTS FUNDING,SCHOOLS CAPITATION,2102588869
04.11.2016,CHILDREN'S SERVICES,BRITISH TELECOMMUNICATIONS PLC,279.90,THOMAS CALTON CENTRE,TELEPHONES (LAND LINES),5902221405
04.11.2016,CHILDREN'S SERVICES,INDEPTH HYGIENE SERVICES LTD,460.00,WELFARE CATERING,EXTERNAL AGENCIES AND BODIES,5902221530
04.11.2016,CHILDREN'S SERVICES,INDEPTH HYGIENE SERVICES LTD,460.00,WELFARE CATERING,EXTERNAL AGENCIES AND BODIES,5902221532
04.11.2016,CHILDREN'S SERVICES,INDEPTH HYGIENE SERVICES LTD,460.00,WELFARE CATERING,EXTERNAL AGENCIES AND BODIES,5902221534
04.11.2016,COMMUNITIES,J & M OASIS LTD,"1,530.00",NO RECOURSE TO PUBLIC FUNDS,SECTION 17 PAYMENTS TO AGENCIES/CARERS,5902221505
04.11.2016,COMMUNITIES,LETTING INTERNATIONAL LTD,"1,470.00",NO RECOURSE TO PUBLIC FUNDS,SECTION 17 PAYMENTS TO AGENCIES/CARERS,5902221482
04.11.2016,CUSTOMER EXPERIENCE HGF,FRAMA (UK) LTD,700.00,CORONER'S,POSTAGES,5902219929
04.11.2016,CUSTOMER EXPERIENCE HGF,DR J R SALISBURY,387.20,CORONER'S,PROFESSIONAL FEES,5902221459
04.11.2016,CUSTOMER EXPERIENCE HGF,GUYS & ST THOMAS NHS FOUNDATION TRUST,"1,700.00",CORONER'S,PROFESSIONAL FEES,5902221471
04.11.2016,CUSTOMER EXPERIENCE HGF,IC CONSULTANTS LTD,324.00,CORONER'S,PROFESSIONAL FEES,5902221461
04.11.2016,CUSTOMER EXPERIENCE HGF,IC CONSULTANTS LTD,408.00,CORONER'S,PROFESSIONAL FEES,5902221465
04.11.2016,CUSTOMER EXPERIENCE HGF,GOLDSTONE ESTATES LTD,"1,085.00",NIGHTLY TA (NSC),EXTERNAL AGENCIES AND BODIES,5902221501
04.11.2016,CUSTOMER EXPERIENCE HGF,K3 PROPERTY MANAGEMENT LTD,"18,135.00",NIGHTLY TA (NSC),EXTERNAL AGENCIES AND BODIES,5902221529
04.11.2016,CUSTOMER EXPERIENCE HGF,SABIO NETWORK SERVICES LTD,323.63,SYSTEMS,TELEPHONES (LAND LINES),5902221522
04.11.2016,ENVIRONMENT AND LEISURE,CONWAY AECOM LTD,"1,952.80",CAPITAL PS (LEISURE),CONSTR'N SUB CONTRACT - NON CERTIFICATED,5902221480
04.11.2016,ENVIRONMENT AND LEISURE,CONWAY AECOM LTD,"13,687.76",CAPITAL PS (LEISURE),CONSTR'N SUB CONTRACT - NON CERTIFICATED,2102588932
04.11.2016,ENVIRONMENT AND LEISURE,BOURNE AMENITY LTD,"2,827.50",CAPITAL PS (LEISURE),CONSTRUCTION,5902221417
04.11.2016,ENVIRONMENT AND LEISURE,ASBESTOS FIRST LTD,880.55,CAPITAL PS (LEISURE),CONSTRUCTION FEES  - EXTERNAL,2102588933
04.11.2016,ENVIRONMENT AND LEISURE,PICK EVERARD,360.37,CAPITAL PS (LEISURE),CONSTRUCTION FEES  - EXTERNAL,5902221389
04.11.2016,ENVIRONMENT AND LEISURE,JERRAM FALKUS CONSTRUCTION,"111,074.27",CAPITAL PS (LEISURE),CONSTRUCTION MAIN CONTRACT -CERTIFICATED,2102588922
04.11.2016,ENVIRONMENT AND LEISURE,JERRAM FALKUS CONSTRUCTION,"136,594.72",CAPITAL PS (LEISURE),CONSTRUCTION MAIN CONTRACT -CERTIFICATED,2102588937
04.11.2016,ENVIRONMENT AND LEISURE,ARTHUR DEMOWBRAY,"1,800.00",CAPITAL PS (LEISURE),CONSTRUCTION SITE COSTS,5902221403
04.11.2016,ENVIRONMENT AND LEISURE,FAITHFULL & GOULD,"7,516.94",CAPITAL PS (LEISURE),"PLANT, MACHINERY & EQUIPMENT ACQUISITION",5902221441
04.11.2016,ENVIRONMENT DIRECTORATE,LEX AUTOLEASE,-376.80,CAR LEASING CTRL A/C,VEHICLE LEASING CHARGES,5902221487
04.11.2016,ENVIRONMENT DIRECTORATE,LEX AUTOLEASE,801.84,CAR LEASING CTRL A/C,VEHICLE LEASING CHARGES,5902221486
04.11.2016,ENVIRONMENT DIRECTORATE,DAWSON RENTALS SWEEPERS,"2,389.89",COMMERCIAL VEH CTRL A/C,HIRED VEHICLES,5902221500
04.11.2016,ENVIRONMENT DIRECTORATE,DAWSON RENTALS SWEEPERS,"2,389.89",COMMERCIAL VEH CTRL A/C,HIRED VEHICLES,5902221507
04.11.2016,ENVIRONMENT DIRECTORATE,ENTERPRISE FLEX E RENT,"1,797.60",COMMERCIAL VEH CTRL A/C,HIRED VEHICLES,5902221492
04.11.2016,ENVIRONMENT DIRECTORATE,TIPPERHIRE LTD,483.00,COMMERCIAL VEH CTRL A/C,HIRED VEHICLES,5902221380
04.11.2016,ENVIRONMENT DIRECTORATE,TIPPERHIRE LTD,483.00,COMMERCIAL VEH CTRL A/C,HIRED VEHICLES,5902221383
04.11.2016,ENVIRONMENT DIRECTORATE,TIPPERHIRE LTD,483.00,COMMERCIAL VEH CTRL A/C,HIRED VEHICLES,5902221385
04.11.2016,ENVIRONMENT DIRECTORATE,TIPPERHIRE LTD,483.00,COMMERCIAL VEH CTRL A/C,HIRED VEHICLES,5902221387
04.11.2016,ENVIRONMENT DIRECTORATE,LANDSCAPE SUPPLY COMPANY,493.34,GROUNDS MAINTENANCE - GENERAL,EQUIPMENT PURCHASE & REPAIR,5902221431
04.11.2016,ENVIRONMENT DIRECTORATE,F R JONES & SON,"1,672.52",NON HOUSING GROUNDS,EQUIPMENT PURCHASE & REPAIR,5902221556
04.11.2016,ENVIRONMENT DIRECTORATE,GREEN PLANT UK LTD,677.87,NON HOUSING GROUNDS,EQUIPMENT PURCHASE & REPAIR,5902221548
04.11.2016,ENVIRONMENT DIRECTORATE,AQUAM WATER SERVICES LTD,359.42,SANDGATE STREET,WATER,5902221448
04.11.2016,ENVIRONMENT DIRECTORATE,AQUAM WATER SERVICES LTD,700.98,SANDGATE STREET,WATER,5902221447
04.11.2016,ENVIRONMENT DIRECTORATE,SOUTHWARK NEWSPAPER LTD,384.00,STREET WORKS OVERHEADS,MARKETING & PUBLICITY SERVICES,5902221423
04.11.2016,ENVIRONMENT DIRECTORATE,FULCRUM DATA FORENSICS LTD,600.00,TRADING STANDARDS,PROFESSIONAL FEES,5902221402
04.11.2016,F & C S EXCLUDING CORPORATE BUDGETS,NORTHGATE PUBLIC SERVICES (UK) LTD,500.00,ADMINISTRATIVE SUPPORT,TRAINING,5902221421
04.11.2016,F & C S EXCLUDING CORPORATE BUDGETS,RSM RISK ASSURANCE SERVICES LLP,"7,179.80",FRAUD & INVESTIGATIONS,PAYMENTS FOR FINANCIAL SERVICES,5902220902
04.11.2016,F & C S EXCLUDING CORPORATE BUDGETS,THE LAW SOCIETY,"17,066.00",LEGAL SVCES MANAGEMENT,PROFESSIONAL FEES,5902221528
04.11.2016,F & C S EXCLUDING CORPORATE BUDGETS,INTERSERVE (FACILITIES MANAGEMENT),-857.32,PAYMENTS CONTROL,OFFICE EXPENSES,2102589483
04.11.2016,HOUSING GENERAL FUND,INTERSERVE (FACILITIES MANAGEMENT),"3,469.31",CAPITAL PS (REGEN),CONSTRUCTION,2102588923
04.11.2016,HOUSING GENERAL FUND,INTERSERVE (FACILITIES MANAGEMENT),857.32,CAPITAL PS (REGEN),CONSTRUCTION FEES - ENGINEER,5902221126
04.11.2016,HOUSING GENERAL FUND,INTERSERVE (FACILITIES MANAGEMENT),857.33,CAPITAL PS (REGEN),CONSTRUCTION FEES - ENGINEER,5902221120
04.11.2016,HOUSING HRA,MICHAEL CONSTRUCTION LTD,"5,815.00",CAPITAL PS (HRA),CONST'N MAIN CONTRACT - NON CERTIFICATED,2102588838
04.11.2016,HOUSING HRA,MICHAEL CONSTRUCTION LTD,"6,285.00",CAPITAL PS (HRA),CONST'N MAIN CONTRACT - NON CERTIFICATED,2102588841
04.11.2016,HOUSING HRA,MICHAEL CONSTRUCTION LTD,"6,460.00",CAPITAL PS (HRA),CONST'N MAIN CONTRACT - NON CERTIFICATED,2102588840
04.11.2016,HOUSING HRA,MICHAEL CONSTRUCTION LTD,"6,580.00",CAPITAL PS (HRA),CONST'N MAIN CONTRACT - NON CERTIFICATED,2102588839
04.11.2016,HOUSING HRA,CALFORD SEADEN LLP,359.17,CAPITAL PS (HRA),CONSTRUCTION FEES  - EXTERNAL,5902221435
04.11.2016,HOUSING HRA,CALFORD SEADEN LLP,624.52,CAPITAL PS (HRA),CONSTRUCTION FEES  - EXTERNAL,5902221446
04.11.2016,HOUSING HRA,KEEPMOAT REGENERATION (APOLLO) LTD,"126,020.04",CAPITAL PS (HRA),CONSTRUCTION FEES  - EXTERNAL,2102588930
04.11.2016,HOUSING HRA,CALFORD SEADEN LLP,"4,151.67",CAPITAL PS (HRA),CONSTRUCTION MAIN CONTRACT -CERTIFICATED,5902221543
04.11.2016,HOUSING HRA,POTTER RAPER AND PARTNERS,"6,189.16",CAPITAL PS (REGEN),CONSTRUCTION FEES,5902221504
04.11.2016,HOUSING HRA,GEOFFREY OSBORNE LIMITED,"178,296.95",CAPITAL PS (REGEN),CONSTRUCTION MAIN CONTRACT -CERTIFICATED,2102588920
04.11.2016,HOUSING HRA,MEARS LTD,"828,138.26",MEARS,MANUAL CREDITORS,2102588931
04.11.2016,LEISURE DIRECTORATE,CLEAR SKIES SOFTWARE,"2,500.00",CEMETERIES,COMPUTER MAINTENANCE,5902221440
04.11.2016,LEISURE DIRECTORATE,BOURNE AMENITY LTD,"2,133.30",HOMERSTALL ROAD SPORTS GROUND,PROFESSIONAL FEES,5902221436
04.11.2016,LEISURE DIRECTORATE,THE WEDDING DIRECTORY LTD,389.00,KINGSWOOD HOUSE,MARKETING & PUBLICITY SERVICES,5902221495
04.11.2016,LEISURE DIRECTORATE,VEOLIA ES (UK)LTD,297.28,STOCK SERVICES,CSC CONTRACT,5902221525
04.11.2016,MODERNISATION HGF,M J MAPP LTD,"32,750.00",47B EAST DULWICH ROAD,RENTS,2102588940
04.11.2016,MODERNISATION HGF,M J MAPP LTD,"2,117.25",47B EAST DULWICH ROAD,SERVICE CHARGES,2102588944
04.11.2016,MODERNISATION HGF,CYGNET BUSINESS DEVELOPMENT LTD,950.00,ILM COSTS,TRAINING,5902220250
04.11.2016,MODERNISATION HGF,CYGNET BUSINESS DEVELOPMENT LTD,"1,900.00",ILM COSTS,TRAINING,5902220251
04.11.2016,MODERNISATION HGF,TRAINING IN PRACTICE LTD,650.00,MENTAL HEALTH,TRAINING,5902220285
04.11.2016,MODERNISATION HGF,INTERSERVE (FACILITIES MANAGEMENT),291.90,PLANNED MAINTENANCE,BUILDING R&M,5902221165
04.11.2016,MODERNISATION HGF,INTERSERVE (FACILITIES MANAGEMENT),650.55,PLANNED MAINTENANCE,BUILDING R&M,5902221156
04.11.2016,MODERNISATION HGF,INTERSERVE (FACILITIES MANAGEMENT),"3,859.80",PLANNED MAINTENANCE,BUILDING R&M,5902221149
04.11.2016,MODERNISATION HGF,INTERSERVE (FACILITIES MANAGEMENT),"4,335.45",PLANNED MAINTENANCE,BUILDING R&M,5902221158
04.11.2016,MODERNISATION HGF,ANTALIS LTD,472.00,QUEENS RD 1 (BLOCK F),OFFICE EXPENSES,5902221508
04.11.2016,MODERNISATION HGF,KENT COUNTY COUNCIL - LASER,"2,043.56",QUEENS ROAD 3 (BLOCK C),ELECTRICITY,5902221485
04.11.2016,RESIDENT SERVICES,EDF ENERGY PLC,479.89,SPECIAL NEEDS HOSTELS,ELECTRICITY,5902221426
04.11.2016,STRATEGIC FINANCING BUDGETS,RYE OAK PRIMARY SCHOOL,"10,495.75",SCHOOLS RELATED INSURANCE,COMPENSATION,5902221533
05.11.2016,ENVIRONMENT AND LEISURE,SURVATEC LTD,"1,500.00",CAPITAL PS (LEISURE),CONSTRUCTION FEES  - EXTERNAL,5902221315
05.11.2016,ENVIRONMENT DIRECTORATE,DX NETWORK SERVICES LTD,"1,133.86",PARKING OVERHEADS,POSTAGES,5902221221
05.11.2016,ENVIRONMENT DIRECTORATE,AGENTIS WORKWEAR LTD,408.00,STREETS  (NORTH WEST),"CLOTHING, UNIFORMS & LAUNDRY",5902220991
05.11.2016,LEISURE DIRECTORATE,BE ACTIVE SOCIAL ENTERPRISE CIC,"7,500.00",BURGESS AREA TEAM,PROFESSIONAL FEES,5902220437
05.11.2016,MODERNISATION HGF,INTERSERVE (FACILITIES MANAGEMENT),"1,211.17",FM SERVICES BY INTERSERVE,BUILDING R&M,5902221493
05.11.2016,MODERNISATION HGF,WYATT CARRUTHERS JEBB LTD,600.00,REPAIR AND MAINTENANCE SERVICES,BUILDING R&M,5902220828
05.11.2016,REGENERATION,KENT COUNTY COUNCIL - LASER,920.11,TOWER WORKSHOPS,ELECTRICITY,5902220383
06.11.2016,ADULT SOCIAL CARE,GS LAUNDRIES,284.00,COMMUNITY LAUNDRY SERVICES,"CLOTHING, UNIFORMS & LAUNDRY",5902220802
06.11.2016,CHIEF EXECUTIVE'S OFFICE,HANNAH MAULE-FFINCH,913.00,BUSINESS SUPPORT,MARKETING & PUBLICITY SERVICES,5902220803
06.11.2016,CHIEF EXECUTIVE'S OFFICE,INSPIRE AT ST PETER'S LTD,"36,173.86",CHIEF EXEC'S OFFICE,GRANTS,5902221418
06.11.2016,CHIEF EXECUTIVE'S OFFICE,INSPIRE AT ST PETER'S LTD,"43,939.20",YOUTH FUND EMPLOYMENT,GRANTS,5902221432
06.11.2016,CHILDREN'S SERVICES,CONNEXIONS CUISINE,258.75,YOS SUPPORT,REFRESHMENTS FOR MEETINGS,5902220952
06.11.2016,COMMUNITIES,DELAWYK RESIDENTS MGT ORG LTD,"1,200.00",TENANTS FUND,GRANTS,5902220579
06.11.2016,ENVIRONMENT DIRECTORATE,UNIVERSITY OF BIRMINGHAM,650.00,FOOD SAFETY,PROFESSIONAL FEES,5902221479
06.11.2016,ENVIRONMENT DIRECTORATE,PAULINE SPENCER,"3,800.00",JETS NORTH TEAM,TRAINING,5902220897
06.11.2016,F & C S EXCLUDING CORPORATE BUDGETS,DSI BILLING SERVICES LTD,"2,816.60",ADMINISTRATIVE SUPPORT,POSTAGES,5902220920
06.11.2016,HOUSING,GRAFTON MERCHANTING GB LTD,310.00,STORES,CREDITORS -GR/IR CLEARING ACCOUNT,5902221147
06.11.2016,LEISURE DIRECTORATE,USTIGATE,690.00,BURGESS AREA TEAM,OTHER R&M,5902220624
06.11.2016,MODERNISATION HGF,THAMES WATER UTILITIES LTD,"1,441.72",BOURNEMOUTH GROVE,WATER,5902221509
07.11.2016,ADULT SOCIAL CARE,DERWENT RESIDENTIAL CARE LTD,459.00,APPOINTEESHIPS,OTHER PAYMENTS FOR CLIENTS,5902221586
07.11.2016,ADULT SOCIAL CARE,HEALTHCARE & TRANSPORT SERVICE,376.00,LD LTS 18-64,CLIENT TRANSPORT,2102589004
07.11.2016,ADULT SOCIAL CARE,HEALTHCARE & TRANSPORT SERVICE,450.00,LD LTS 18-64,CLIENT TRANSPORT,2102588998
07.11.2016,ADULT SOCIAL CARE,HEALTHCARE & TRANSPORT SERVICE,650.00,LD LTS 18-64,CLIENT TRANSPORT,2102589003
07.11.2016,ADULT SOCIAL CARE,HEALTHCARE & TRANSPORT SERVICE,711.00,LD LTS 18-64,CLIENT TRANSPORT,2102588996
07.11.2016,ADULT SOCIAL CARE,THE NEW SHOOTS,300.00,LD LTS 18-64,DAYCARE,2102588982
07.11.2016,ADULT SOCIAL CARE,LONDON CARE PLC,263.36,LD LTS 18-64,HOMECARE - C&V,2102588960
07.11.2016,ADULT SOCIAL CARE,SENSE,"1,167.30",LD LTS 18-64,HOMECARE - SPOT,2102589398
07.11.2016,ADULT SOCIAL CARE,FRESH IDEAS & SOLUTIONS SERVICES CIC,"8,471.40",LD LTS 18-64,PAYMENTS TO CLIENTS (DIRECT PAYMENTS),2102589275
07.11.2016,ADULT SOCIAL CARE,PLUS SERVICES,"1,100.52",LD LTS 18-64,SUPPORTED LIVING,2102588994
07.11.2016,ADULT SOCIAL CARE,THREE C'S SUPPORT,411.60,LD LTS 18-64,SUPPORTED LIVING,2102588992
07.11.2016,ADULT SOCIAL CARE,THREE C'S SUPPORT,411.60,LD LTS 18-64,SUPPORTED LIVING,2102589000
07.11.2016,ADULT SOCIAL CARE,THREE C'S SUPPORT,444.23,LD LTS 18-64,SUPPORTED LIVING,2102589006
07.11.2016,ADULT SOCIAL CARE,THREE C'S SUPPORT,445.80,LD LTS 18-64,SUPPORTED LIVING,2102588990
07.11.2016,ADULT SOCIAL CARE,THREE C'S SUPPORT,648.36,LD LTS 18-64,SUPPORTED LIVING,2102588988
07.11.2016,ADULT SOCIAL CARE,THREE C'S SUPPORT,720.40,LD LTS 18-64,SUPPORTED LIVING,2102589009
07.11.2016,ADULT SOCIAL CARE,THREE C'S SUPPORT,805.43,LD LTS 18-64,SUPPORTED LIVING,2102589008
07.11.2016,ADULT SOCIAL CARE,YOUTH GRACES (UK) LTD,364.29,MEM LTS 65+,HOMECARE - C&V,2102589354
07.11.2016,ADULT SOCIAL CARE,CARE DIRECT UK LTD,627.28,MEM LTS 65+,HOMECARE - SPOT,2102589106
07.11.2016,ADULT SOCIAL CARE,YOUTH GRACES (UK) LTD,711.60,MEM LTS 65+,HOMECARE - SPOT,2102589370
07.11.2016,ADULT SOCIAL CARE,LONDON CARE PLC,329.24,MH LTS 18-64,HOMECARE - C&V,2102588964
07.11.2016,ADULT SOCIAL CARE,THAMES HOMECARE SERVICE LTD,283.29,MH LTS 65+,HOMECARE - C&V,2102589240
07.11.2016,ADULT SOCIAL CARE,THAMES HOMECARE SERVICE LTD,431.68,MH LTS 65+,HOMECARE - C&V,2102589259
07.11.2016,ADULT SOCIAL CARE,THAMES HOMECARE SERVICE LTD,256.31,MH LTS 65+,HOMECARE - SPOT,2102589026
07.11.2016,ADULT SOCIAL CARE,THAMES HOMECARE SERVICE LTD,445.17,MH LTS 65+,HOMECARE - SPOT,2102589013
07.11.2016,ADULT SOCIAL CARE,YOUTH GRACES (UK) LTD,276.55,MH LTS 65+,HOMECARE - SPOT,2102589271
07.11.2016,ADULT SOCIAL CARE,YOUTH GRACES (UK) LTD,276.55,MH LTS 65+,HOMECARE - SPOT,2102589272
07.11.2016,ADULT SOCIAL CARE,YOUTH GRACES (UK) LTD,276.55,MH LTS 65+,HOMECARE - SPOT,2102589273
07.11.2016,ADULT SOCIAL CARE,YOUTH GRACES (UK) LTD,276.55,MH LTS 65+,HOMECARE - SPOT,2102589274
07.11.2016,ADULT SOCIAL CARE,YOUTH GRACES (UK) LTD,"1,133.16",MH LTS 65+,HOMECARE - SPOT,2102589350
07.11.2016,ADULT SOCIAL CARE,THAMES HOMECARE SERVICE LTD,"1,025.24",OP - HOMECARE,HOMECARE - SPOT,2102588979
07.11.2016,ADULT SOCIAL CARE,THAMES HOMECARE SERVICE LTD,"1,025.24",OP - HOMECARE,HOMECARE - SPOT,2102588981
07.11.2016,ADULT SOCIAL CARE,THAMES HOMECARE SERVICE LTD,"1,025.24",OP - HOMECARE,HOMECARE - SPOT,2102588983
07.11.2016,ADULT SOCIAL CARE,THAMES HOMECARE SERVICE LTD,"1,025.24",OP - HOMECARE,HOMECARE - SPOT,2102588987
07.11.2016,ADULT SOCIAL CARE,THAMES HOMECARE SERVICE LTD,"1,059.04",OP - HOMECARE,HOMECARE - SPOT,2102588985
07.11.2016,ADULT SOCIAL CARE,CARE DIRECT UK LTD,627.32,PHY LTS 18-64,HOMECARE - C&V,2102589080
07.11.2016,ADULT SOCIAL CARE,CARE DIRECT UK LTD,755.44,PHY LTS 18-64,HOMECARE - C&V,2102589192
07.11.2016,ADULT SOCIAL CARE,LONDON CARE PLC,263.40,PHY LTS 18-64,HOMECARE - C&V,2102588969
07.11.2016,ADULT SOCIAL CARE,LONDON CARE PLC,271.70,PHY LTS 18-64,HOMECARE - C&V,2102588955
07.11.2016,ADULT SOCIAL CARE,LONDON CARE PLC,296.28,PHY LTS 18-64,HOMECARE - C&V,2102588954
07.11.2016,ADULT SOCIAL CARE,LONDON CARE PLC,362.12,PHY LTS 18-64,HOMECARE - C&V,2102588956
07.11.2016,ADULT SOCIAL CARE,LONDON CARE PLC,592.56,PHY LTS 18-64,HOMECARE - C&V,2102588957
07.11.2016,ADULT SOCIAL CARE,LONDON CARE PLC,675.00,PHY LTS 18-64,HOMECARE - C&V,2102588980
07.11.2016,ADULT SOCIAL CARE,LONDON CARE PLC,"1,975.20",PHY LTS 18-64,HOMECARE - C&V,2102588967
07.11.2016,ADULT SOCIAL CARE,THAMES HOMECARE SERVICE LTD,337.25,PHY LTS 18-64,HOMECARE - C&V,2102589245
07.11.2016,ADULT SOCIAL CARE,THAMES HOMECARE SERVICE LTD,"1,126.42",PHY LTS 18-64,HOMECARE - C&V,2102589042
07.11.2016,ADULT SOCIAL CARE,CARE DIRECT UK LTD,573.33,PHY LTS 18-64,HOMECARE - SPOT,2102589159
07.11.2016,ADULT SOCIAL CARE,CARE DIRECT UK LTD,661.01,PHY LTS 18-64,HOMECARE - SPOT,2102589104
07.11.2016,ADULT SOCIAL CARE,CARE DIRECT UK LTD,711.58,PHY LTS 18-64,HOMECARE - SPOT,2102589168
07.11.2016,ADULT SOCIAL CARE,CARE DIRECT UK LTD,731.78,PHY LTS 18-64,HOMECARE - SPOT,2102589086
07.11.2016,ADULT SOCIAL CARE,THAMES HOMECARE SERVICE LTD,364.23,PHY LTS 18-64,HOMECARE - SPOT,2102589267
07.11.2016,ADULT SOCIAL CARE,THAMES HOMECARE SERVICE LTD,472.15,PHY LTS 18-64,HOMECARE - SPOT,2102589246
07.11.2016,ADULT SOCIAL CARE,THAMES HOMECARE SERVICE LTD,573.33,PHY LTS 18-64,HOMECARE - SPOT,2102589225
07.11.2016,ADULT SOCIAL CARE,THAMES HOMECARE SERVICE LTD,607.05,PHY LTS 18-64,HOMECARE - SPOT,2102589030
07.11.2016,ADULT SOCIAL CARE,THAMES HOMECARE SERVICE LTD,654.27,PHY LTS 18-64,HOMECARE - SPOT,2102589031
07.11.2016,ADULT SOCIAL CARE,THAMES HOMECARE SERVICE LTD,984.77,PHY LTS 18-64,HOMECARE - SPOT,2102589043
07.11.2016,ADULT SOCIAL CARE,THAMES HOMECARE SERVICE LTD,"1,045.48",PHY LTS 18-64,HOMECARE - SPOT,2102589204
07.11.2016,ADULT SOCIAL CARE,THAMES HOMECARE SERVICE LTD,"1,065.71",PHY LTS 18-64,HOMECARE - SPOT,2102589233
07.11.2016,ADULT SOCIAL CARE,YOUTH GRACES (UK) LTD,256.35,PHY LTS 18-64,HOMECARE - SPOT,2102589342
07.11.2016,ADULT SOCIAL CARE,YOUTH GRACES (UK) LTD,969.57,PHY LTS 18-64,HOMECARE - SPOT,2102589346
07.11.2016,ADULT SOCIAL CARE,CARE DIRECT UK LTD,256.34,PHY LTS 65+,HOMECARE - C&V,2102589160
07.11.2016,ADULT SOCIAL CARE,CARE DIRECT UK LTD,279.93,PHY LTS 65+,HOMECARE - C&V,2102589180
07.11.2016,ADULT SOCIAL CARE,CARE DIRECT UK LTD,306.88,PHY LTS 65+,HOMECARE - C&V,2102589127
07.11.2016,ADULT SOCIAL CARE,CARE DIRECT UK LTD,394.58,PHY LTS 65+,HOMECARE - C&V,2102589148
07.11.2016,ADULT SOCIAL CARE,CARE DIRECT UK LTD,583.42,PHY LTS 65+,HOMECARE - C&V,2102589175
07.11.2016,ADULT SOCIAL CARE,LONDON CARE PLC,543.32,PHY LTS 65+,HOMECARE - C&V,2102588973
07.11.2016,ADULT SOCIAL CARE,LONDON CARE PLC,987.60,PHY LTS 65+,HOMECARE - C&V,2102588962
07.11.2016,ADULT SOCIAL CARE,LONDON CARE PLC,"1,498.00",PHY LTS 65+,HOMECARE - C&V,2102588959
07.11.2016,ADULT SOCIAL CARE,THAMES HOMECARE SERVICE LTD,310.27,PHY LTS 65+,HOMECARE - C&V,2102589228
07.11.2016,ADULT SOCIAL CARE,THAMES HOMECARE SERVICE LTD,330.51,PHY LTS 65+,HOMECARE - C&V,2102589044
07.11.2016,ADULT SOCIAL CARE,THAMES HOMECARE SERVICE LTD,337.25,PHY LTS 65+,HOMECARE - C&V,2102589235
07.11.2016,ADULT SOCIAL CARE,THAMES HOMECARE SERVICE LTD,350.74,PHY LTS 65+,HOMECARE - C&V,2102589256
07.11.2016,ADULT SOCIAL CARE,THAMES HOMECARE SERVICE LTD,350.74,PHY LTS 65+,HOMECARE - C&V,2102589268
07.11.2016,ADULT SOCIAL CARE,THAMES HOMECARE SERVICE LTD,364.23,PHY LTS 65+,HOMECARE - C&V,2102589232
07.11.2016,ADULT SOCIAL CARE,THAMES HOMECARE SERVICE LTD,364.23,PHY LTS 65+,HOMECARE - C&V,2102589263
07.11.2016,ADULT SOCIAL CARE,THAMES HOMECARE SERVICE LTD,431.68,PHY LTS 65+,HOMECARE - C&V,2102589211
07.11.2016,ADULT SOCIAL CARE,THAMES HOMECARE SERVICE LTD,451.92,PHY LTS 65+,HOMECARE - C&V,2102589260
07.11.2016,ADULT SOCIAL CARE,THAMES HOMECARE SERVICE LTD,755.44,PHY LTS 65+,HOMECARE - C&V,2102589049
07.11.2016,ADULT SOCIAL CARE,THAMES HOMECARE SERVICE LTD,849.87,PHY LTS 65+,HOMECARE - C&V,2102589206
07.11.2016,ADULT SOCIAL CARE,THAMES HOMECARE SERVICE LTD,849.87,PHY LTS 65+,HOMECARE - C&V,2102589237
07.11.2016,ADULT SOCIAL CARE,THAMES HOMECARE SERVICE LTD,"1,025.24",PHY LTS 65+,HOMECARE - C&V,2102589395
07.11.2016,ADULT SOCIAL CARE,THAMES HOMECARE SERVICE LTD,"1,025.24",PHY LTS 65+,HOMECARE - C&V,2102589396
07.11.2016,ADULT SOCIAL CARE,THAMES HOMECARE SERVICE LTD,"1,025.24",PHY LTS 65+,HOMECARE - C&V,2102589397
07.11.2016,ADULT SOCIAL CARE,THAMES HOMECARE SERVICE LTD,"1,038.73",PHY LTS 65+,HOMECARE - C&V,2102589219
07.11.2016,ADULT SOCIAL CARE,THAMES HOMECARE SERVICE LTD,"1,187.12",PHY LTS 65+,HOMECARE - C&V,2102589019
07.11.2016,ADULT SOCIAL CARE,THAMES HOMECARE SERVICE LTD,"1,214.10",PHY LTS 65+,HOMECARE - C&V,2102589040
07.11.2016,ADULT SOCIAL CARE,THAMES HOMECARE SERVICE LTD,"1,295.04",PHY LTS 65+,HOMECARE - C&V,2102589269
07.11.2016,ADULT SOCIAL CARE,YOUTH GRACES (UK) LTD,259.77,PHY LTS 65+,HOMECARE - C&V,2102589351
07.11.2016,ADULT SOCIAL CARE,YOUTH GRACES (UK) LTD,543.06,PHY LTS 65+,HOMECARE - C&V,2102589355
07.11.2016,ADULT SOCIAL CARE,CARE DIRECT UK LTD,256.29,PHY LTS 65+,HOMECARE - SPOT,2102589128
07.11.2016,ADULT SOCIAL CARE,CARE DIRECT UK LTD,259.68,PHY LTS 65+,HOMECARE - SPOT,2102589165
07.11.2016,ADULT SOCIAL CARE,CARE DIRECT UK LTD,263.01,PHY LTS 65+,HOMECARE - SPOT,2102589126
07.11.2016,ADULT SOCIAL CARE,CARE DIRECT UK LTD,283.29,PHY LTS 65+,HOMECARE - SPOT,2102589114
07.11.2016,ADULT SOCIAL CARE,CARE DIRECT UK LTD,296.78,PHY LTS 65+,HOMECARE - SPOT,2102589118
07.11.2016,ADULT SOCIAL CARE,CARE DIRECT UK LTD,364.23,PHY LTS 65+,HOMECARE - SPOT,2102589061
07.11.2016,ADULT SOCIAL CARE,CARE DIRECT UK LTD,377.72,PHY LTS 65+,HOMECARE - SPOT,2102589110
07.11.2016,ADULT SOCIAL CARE,CARE DIRECT UK LTD,391.21,PHY LTS 65+,HOMECARE - SPOT,2102589092
07.11.2016,ADULT SOCIAL CARE,CARE DIRECT UK LTD,391.21,PHY LTS 65+,HOMECARE - SPOT,2102589157
07.11.2016,ADULT SOCIAL CARE,CARE DIRECT UK LTD,397.96,PHY LTS 65+,HOMECARE - SPOT,2102589138
07.11.2016,ADULT SOCIAL CARE,CARE DIRECT UK LTD,445.17,PHY LTS 65+,HOMECARE - SPOT,2102589099
07.11.2016,ADULT SOCIAL CARE,CARE DIRECT UK LTD,519.33,PHY LTS 65+,HOMECARE - SPOT,2102589131
07.11.2016,ADULT SOCIAL CARE,CARE DIRECT UK LTD,519.33,PHY LTS 65+,HOMECARE - SPOT,2102589143
07.11.2016,ADULT SOCIAL CARE,CARE DIRECT UK LTD,519.37,PHY LTS 65+,HOMECARE - SPOT,2102589139
07.11.2016,ADULT SOCIAL CARE,CARE DIRECT UK LTD,519.40,PHY LTS 65+,HOMECARE - SPOT,2102589133
07.11.2016,ADULT SOCIAL CARE,CARE DIRECT UK LTD,532.85,PHY LTS 65+,HOMECARE - SPOT,2102589123
07.11.2016,ADULT SOCIAL CARE,CARE DIRECT UK LTD,532.85,PHY LTS 65+,HOMECARE - SPOT,2102589184
07.11.2016,ADULT SOCIAL CARE,CARE DIRECT UK LTD,708.23,PHY LTS 65+,HOMECARE - SPOT,2102589113
07.11.2016,ADULT SOCIAL CARE,CARE DIRECT UK LTD,708.26,PHY LTS 65+,HOMECARE - SPOT,2102589162
07.11.2016,ADULT SOCIAL CARE,CARE DIRECT UK LTD,708.26,PHY LTS 65+,HOMECARE - SPOT,2102589279
07.11.2016,ADULT SOCIAL CARE,CARE DIRECT UK LTD,735.24,PHY LTS 65+,HOMECARE - SPOT,2102589283
07.11.2016,ADULT SOCIAL CARE,THAMES HOMECARE SERVICE LTD,283.29,PHY LTS 65+,HOMECARE - SPOT,2102589021
07.11.2016,ADULT SOCIAL CARE,THAMES HOMECARE SERVICE LTD,303.53,PHY LTS 65+,HOMECARE - SPOT,2102589258
07.11.2016,ADULT SOCIAL CARE,THAMES HOMECARE SERVICE LTD,303.53,PHY LTS 65+,HOMECARE - SPOT,2102589266
07.11.2016,ADULT SOCIAL CARE,THAMES HOMECARE SERVICE LTD,350.74,PHY LTS 65+,HOMECARE - SPOT,2102589243
07.11.2016,ADULT SOCIAL CARE,THAMES HOMECARE SERVICE LTD,357.49,PHY LTS 65+,HOMECARE - SPOT,2102589045
07.11.2016,ADULT SOCIAL CARE,THAMES HOMECARE SERVICE LTD,377.72,PHY LTS 65+,HOMECARE - SPOT,2102589036
07.11.2016,ADULT SOCIAL CARE,THAMES HOMECARE SERVICE LTD,384.47,PHY LTS 65+,HOMECARE - SPOT,2102589247
07.11.2016,ADULT SOCIAL CARE,THAMES HOMECARE SERVICE LTD,397.96,PHY LTS 65+,HOMECARE - SPOT,2102589212
07.11.2016,ADULT SOCIAL CARE,THAMES HOMECARE SERVICE LTD,424.94,PHY LTS 65+,HOMECARE - SPOT,2102589220
07.11.2016,ADULT SOCIAL CARE,THAMES HOMECARE SERVICE LTD,451.92,PHY LTS 65+,HOMECARE - SPOT,2102589207
07.11.2016,ADULT SOCIAL CARE,THAMES HOMECARE SERVICE LTD,472.15,PHY LTS 65+,HOMECARE - SPOT,2102589023
07.11.2016,ADULT SOCIAL CARE,THAMES HOMECARE SERVICE LTD,478.90,PHY LTS 65+,HOMECARE - SPOT,2102589213
07.11.2016,ADULT SOCIAL CARE,THAMES HOMECARE SERVICE LTD,478.90,PHY LTS 65+,HOMECARE - SPOT,2102589241
07.11.2016,ADULT SOCIAL CARE,THAMES HOMECARE SERVICE LTD,485.64,PHY LTS 65+,HOMECARE - SPOT,2102589244
07.11.2016,ADULT SOCIAL CARE,THAMES HOMECARE SERVICE LTD,492.39,PHY LTS 65+,HOMECARE - SPOT,2102589236
07.11.2016,ADULT SOCIAL CARE,THAMES HOMECARE SERVICE LTD,519.37,PHY LTS 65+,HOMECARE - SPOT,2102589230
07.11.2016,ADULT SOCIAL CARE,THAMES HOMECARE SERVICE LTD,532.86,PHY LTS 65+,HOMECARE - SPOT,2102589209
07.11.2016,ADULT SOCIAL CARE,THAMES HOMECARE SERVICE LTD,539.60,PHY LTS 65+,HOMECARE - SPOT,2102589025
07.11.2016,ADULT SOCIAL CARE,THAMES HOMECARE SERVICE LTD,539.60,PHY LTS 65+,HOMECARE - SPOT,2102589202
07.11.2016,ADULT SOCIAL CARE,THAMES HOMECARE SERVICE LTD,546.35,PHY LTS 65+,HOMECARE - SPOT,2102589229
07.11.2016,ADULT SOCIAL CARE,THAMES HOMECARE SERVICE LTD,559.84,PHY LTS 65+,HOMECARE - SPOT,2102589262
07.11.2016,ADULT SOCIAL CARE,THAMES HOMECARE SERVICE LTD,580.07,PHY LTS 65+,HOMECARE - SPOT,2102589027
07.11.2016,ADULT SOCIAL CARE,THAMES HOMECARE SERVICE LTD,613.80,PHY LTS 65+,HOMECARE - SPOT,2102589039
07.11.2016,ADULT SOCIAL CARE,THAMES HOMECARE SERVICE LTD,667.76,PHY LTS 65+,HOMECARE - SPOT,2102589208
07.11.2016,ADULT SOCIAL CARE,THAMES HOMECARE SERVICE LTD,681.25,PHY LTS 65+,HOMECARE - SPOT,2102589032
07.11.2016,ADULT SOCIAL CARE,THAMES HOMECARE SERVICE LTD,708.23,PHY LTS 65+,HOMECARE - SPOT,2102589033
07.11.2016,ADULT SOCIAL CARE,THAMES HOMECARE SERVICE LTD,735.21,PHY LTS 65+,HOMECARE - SPOT,2102589201
07.11.2016,ADULT SOCIAL CARE,THAMES HOMECARE SERVICE LTD,876.85,PHY LTS 65+,HOMECARE - SPOT,2102589254
07.11.2016,ADULT SOCIAL CARE,THAMES HOMECARE SERVICE LTD,903.83,PHY LTS 65+,HOMECARE - SPOT,2102589217
07.11.2016,ADULT SOCIAL CARE,THAMES HOMECARE SERVICE LTD,"1,038.73",PHY LTS 65+,HOMECARE - SPOT,2102589037
07.11.2016,ADULT SOCIAL CARE,THAMES HOMECARE SERVICE LTD,"1,038.73",PHY LTS 65+,HOMECARE - SPOT,2102589041
07.11.2016,ADULT SOCIAL CARE,THAMES HOMECARE SERVICE LTD,"1,045.48",PHY LTS 65+,HOMECARE - SPOT,2102589035
07.11.2016,ADULT SOCIAL CARE,THAMES HOMECARE SERVICE LTD,"1,058.97",PHY LTS 65+,HOMECARE - SPOT,2102589238
07.11.2016,ADULT SOCIAL CARE,THAMES HOMECARE SERVICE LTD,"1,133.16",PHY LTS 65+,HOMECARE - SPOT,2102589222
07.11.2016,ADULT SOCIAL CARE,THAMES HOMECARE SERVICE LTD,"1,355.75",PHY LTS 65+,HOMECARE - SPOT,2102589270
07.11.2016,ADULT SOCIAL CARE,THAMES HOMECARE SERVICE LTD,"1,537.86",PHY LTS 65+,HOMECARE - SPOT,2102589221
07.11.2016,ADULT SOCIAL CARE,THAMES HOMECARE SERVICE LTD,"1,591.82",PHY LTS 65+,HOMECARE - SPOT,2102589218
07.11.2016,ADULT SOCIAL CARE,THAMES HOMECARE SERVICE LTD,"1,686.25",PHY LTS 65+,HOMECARE - SPOT,2102589024
07.11.2016,ADULT SOCIAL CARE,YOUTH GRACES (UK) LTD,276.58,PHY LTS 65+,HOMECARE - SPOT,2102589375
07.11.2016,ADULT SOCIAL CARE,YOUTH GRACES (UK) LTD,377.93,PHY LTS 65+,HOMECARE - SPOT,2102589385
07.11.2016,ADULT SOCIAL CARE,YOUTH GRACES (UK) LTD,492.46,PHY LTS 65+,HOMECARE - SPOT,2102589378
07.11.2016,ADULT SOCIAL CARE,YOUTH GRACES (UK) LTD,782.42,PHY LTS 65+,HOMECARE - SPOT,2102589349
07.11.2016,ADULT SOCIAL CARE,CARE DIRECT UK LTD,472.15,PHY STS 65+,HOMECARE - IC,2102589187
07.11.2016,ADULT SOCIAL CARE,ALISTAIR SMITH,"5,250.00",QUALITY AND PERF,PROFESSIONAL FEES,5902221611
07.11.2016,ADULT SOCIAL CARE,DR MUTHUKUMAR KANNABIRAN,519.00,SAFEGUARDING TEAM,OTHER CONTRACTORS,5902221640
07.11.2016,ADULT SOCIAL CARE,CARE DIRECT UK LTD,263.05,SOCIAL ISOLATION,HOMECARE - SPOT,2102589078
07.11.2016,ADULT SOCIAL CARE,CARE DIRECT UK LTD,263.05,SOCIAL ISOLATION,HOMECARE - SPOT,2102589281
07.11.2016,ADULT SOCIAL CARE,THAMES HOMECARE SERVICE LTD,283.29,SOCIAL ISOLATION,HOMECARE - SPOT,2102589015
07.11.2016,ADULT SOCIAL CARE,THAMES HOMECARE SERVICE LTD,290.04,SOCIAL ISOLATION,HOMECARE - SPOT,2102589251
07.11.2016,ADULT SOCIAL CARE,THAMES HOMECARE SERVICE LTD,701.48,SOCIAL ISOLATION,HOMECARE - SPOT,2102589216
07.11.2016,ASSET MANAGEMENT,A & E ELKINS LTD,"-29,151.00",REPAIRS OPERATIONS,OTHER R&M,5902221906
07.11.2016,ASSET MANAGEMENT,A & E ELKINS LTD,"29,151.00",REPAIRS OPERATIONS,OTHER R&M,5902221618
07.11.2016,CENTRAL FUNCTIONS,CANADA WATER CULTURE SPACE,-262.50,DIRECTOR OF H&M,HIRE OF ROOMS/HALLS,5902221181
07.11.2016,CENTRAL FUNCTIONS,HMCTS,455.00,HOME OWNERSHIP,LEGAL FEES & COURT COSTS,5902221663
07.11.2016,CHIEF EXECUTIVE,STANDAGE & CO LTD,"35,445.52",CAPITAL PS (REGEN),CONSTRUCTION MAIN CONTRACT -CERTIFICATED,5902221684
07.11.2016,CHIEF EXECUTIVE'S OFFICE,STEP AHEAD EMPLOYMENT LTD,"32,646.00",CHIEF EXEC'S OFFICE,GRANTS,5902220887
07.11.2016,CHILDREN'S SERVICES,REDACTED PERSONAL DATA,"1,860.64",ADOPTION PLACEMENTS & INTER AGENCY,PAYMENTS TO CARERS,2102589278
07.11.2016,CHILDREN'S SERVICES,BY THE BRIDGE LTD,490.00,AGENCY FOSTERING,EXTERNAL AGENCIES AND BODIES,2102588976
07.11.2016,CHILDREN'S SERVICES,MOMENTS FOSTERING LTD,306.40,AGENCY FOSTERING,OTHER PAYMENTS FOR CLIENTS,2102588961
07.11.2016,CHILDREN'S SERVICES,PHS GROUP PLC,"1,006.18",BISHOPS HOUSE EARLY YEARS CENTRE,FURNITURE PURCHASE & REPAIR,5902221562
07.11.2016,CHILDREN'S SERVICES,KENT COUNTY SUPPLIES,303.67,DIRECT DELIVERY,MATERIALS,5902221604
07.11.2016,CHILDREN'S SERVICES,KENT COUNTY SUPPLIES,329.78,DIRECT DELIVERY,MATERIALS,5902221605
07.11.2016,CHILDREN'S SERVICES,REDACTED PERSONAL DATA,300.00,DISABILITY & HIV,ADDITIONAL PAYMENTS TO AGENCIES/CARERS,2102589327
07.11.2016,CHILDREN'S SERVICES,REDACTED PERSONAL DATA,300.00,DISABILITY & HIV,ADDITIONAL PAYMENTS TO AGENCIES/CARERS,2102589290
07.11.2016,CHILDREN'S SERVICES,REDACTED PERSONAL DATA,300.00,DISABILITY & HIV,ADDITIONAL PAYMENTS TO AGENCIES/CARERS,2102589304
07.11.2016,CHILDREN'S SERVICES,REDACTED PERSONAL DATA,300.00,DISABILITY & HIV,ADDITIONAL PAYMENTS TO AGENCIES/CARERS,2102589312
07.11.2016,CHILDREN'S SERVICES,REDACTED PERSONAL DATA,300.00,DISABILITY & HIV,ADDITIONAL PAYMENTS TO AGENCIES/CARERS,2102589319
07.11.2016,CHILDREN'S SERVICES,REDACTED PERSONAL DATA,300.00,DISABILITY & HIV,ADDITIONAL PAYMENTS TO AGENCIES/CARERS,2102589310
07.11.2016,CHILDREN'S SERVICES,REDACTED PERSONAL DATA,400.00,DISABILITY & HIV,ADDITIONAL PAYMENTS TO AGENCIES/CARERS,2102589331
07.11.2016,CHILDREN'S SERVICES,REDACTED PERSONAL DATA,400.00,DISABILITY & HIV,ADDITIONAL PAYMENTS TO AGENCIES/CARERS,2102589298
07.11.2016,CHILDREN'S SERVICES,REDACTED PERSONAL DATA,400.00,DISABILITY & HIV,ADDITIONAL PAYMENTS TO AGENCIES/CARERS,2102589324
07.11.2016,CHILDREN'S SERVICES,REDACTED PERSONAL DATA,510.81,DISABILITY & HIV,ADDITIONAL PAYMENTS TO AGENCIES/CARERS,2102589335
07.11.2016,CHILDREN'S SERVICES,REDACTED PERSONAL DATA,264.00,DISABILITY & HIV,PAYMENTS TO CARERS,2102589302
07.11.2016,CHILDREN'S SERVICES,REDACTED PERSONAL DATA,278.00,DISABILITY & HIV,PAYMENTS TO CARERS,2102589323
07.11.2016,CHILDREN'S SERVICES,REDACTED PERSONAL DATA,285.14,DISABILITY & HIV,PAYMENTS TO CARERS,2102589300
07.11.2016,CHILDREN'S SERVICES,REDACTED PERSONAL DATA,287.89,DISABILITY & HIV,PAYMENTS TO CARERS,2102589332
07.11.2016,CHILDREN'S SERVICES,REDACTED PERSONAL DATA,330.30,DISABILITY & HIV,PAYMENTS TO CARERS,2102589294
07.11.2016,CHILDREN'S SERVICES,REDACTED PERSONAL DATA,344.00,DISABILITY & HIV,PAYMENTS TO CARERS,2102589313
07.11.2016,CHILDREN'S SERVICES,REDACTED PERSONAL DATA,348.14,DISABILITY & HIV,PAYMENTS TO CARERS,2102589333
07.11.2016,CHILDREN'S SERVICES,REDACTED PERSONAL DATA,432.67,DISABILITY & HIV,PAYMENTS TO CARERS,2102589308
07.11.2016,CHILDREN'S SERVICES,REDACTED PERSONAL DATA,432.67,DISABILITY & HIV,PAYMENTS TO CARERS,2102589329
07.11.2016,CHILDREN'S SERVICES,REDACTED PERSONAL DATA,600.00,DISABILITY & HIV,PAYMENTS TO CARERS,2102589315
07.11.2016,CHILDREN'S SERVICES,REDACTED PERSONAL DATA,750.00,DISABILITY & HIV,PAYMENTS TO CARERS,2102589297
07.11.2016,CHILDREN'S SERVICES,REDACTED PERSONAL DATA,978.81,DISABILITY & HIV,PAYMENTS TO CARERS,2102589316
07.11.2016,CHILDREN'S SERVICES,REDACTED PERSONAL DATA,"1,074.68",DISABILITY & HIV,PAYMENTS TO CARERS,2102589336
07.11.2016,CHILDREN'S SERVICES,RS REAL ESTATE LTD,"2,666.00",INTENTIONALLY HOMELESS PLACEMENTS,SECTION 17 PAYMENTS TO AGENCIES/CARERS,5902221700
07.11.2016,CHILDREN'S SERVICES,PHS DATASHRED,260.00,PLAY SERVICE MANAGEMENT & ADMIN,EQUIPMENT PURCHASE & REPAIR,5902221584
07.11.2016,CHILDREN'S SERVICES,PHS DATASHRED,461.50,PLAY SERVICE MANAGEMENT & ADMIN,EQUIPMENT PURCHASE & REPAIR,5902221584
07.11.2016,CHILDREN'S SERVICES,DAVID RADOMSKY LTD,600.00,PRIMARY ACHIEVEMENT,CONSULTANTS SERVICES,5902221623
07.11.2016,CHILDREN'S SERVICES,LONDON SOUTHWARK HOTEL LTD,"3,300.00",S & FAM SUPP - PRAC GRP B SET 17-19,SECTION 17 PAYMENTS TO AGENCIES/CARERS,2102588970
07.11.2016,CHILDREN'S SERVICES,LONDON SOUTHWARK HOTEL LTD,"3,410.00",S & FAM SUPP - PRAC GRP B SET 17-19,SECTION 17 PAYMENTS TO AGENCIES/CARERS,2102588968
07.11.2016,CHILDREN'S SERVICES,CITYGLEN LTD,"2,480.00",S & FAM SUPP - PRAC GRP E SET 26-28,SECTION 17 PAYMENTS TO AGENCIES/CARERS,5902221702
07.11.2016,CHILDREN'S SERVICES,LONDON SOUTHWARK HOTEL LTD,400.00,S & FAM SUPP - PRAC GRP E SET 26-28,SECTION 17 PAYMENTS TO AGENCIES/CARERS,2102588974
07.11.2016,CHILDREN'S SERVICES,LONDON SOUTHWARK HOTEL LTD,"2,480.00",S & FAM SUPP - PRAC GRP E SET 26-28,SECTION 17 PAYMENTS TO AGENCIES/CARERS,2102588972
07.11.2016,CHILDREN'S SERVICES,PA JAGDEV LTD,611.76,S & FAM SUPP - PRAC GRP F SET 29-31,OTHER PAYMENTS FOR CLIENTS,5902221699
07.11.2016,CHILDREN'S SERVICES,PA JAGDEV LTD,815.68,S & FAM SUPP - PRAC GRP F SET 29-31,OTHER PAYMENTS FOR CLIENTS,5902221695
07.11.2016,CHILDREN'S SERVICES,PA JAGDEV LTD,"1,083.33",S & FAM SUPP - PRAC GRP F SET 29-31,OTHER PAYMENTS FOR CLIENTS,5902221696
07.11.2016,CHILDREN'S SERVICES,PA JAGDEV LTD,"1,083.33",S & FAM SUPP - PRAC GRP F SET 29-31,OTHER PAYMENTS FOR CLIENTS,5902221697
07.11.2016,CHILDREN'S SERVICES,PA JAGDEV LTD,"1,083.33",S & FAM SUPP - PRAC GRP F SET 29-31,OTHER PAYMENTS FOR CLIENTS,5902221698
07.11.2016,CHILDREN'S SERVICES,MY LIFE SEMI-INDEPENDENT PROJECT LTD,"1,880.00",S24 CLA,RESIDENTIAL CARE,2102588989
07.11.2016,CHILDREN'S SERVICES,NETPEX LTD CORPORATE SERVICES,"3,520.98",SEMI INDEPENDENT,RESIDENTIAL CARE,2102588997
07.11.2016,CHILDREN'S SERVICES,NETPEX LTD CORPORATE SERVICES,"5,646.65",SEMI INDEPENDENT,RESIDENTIAL CARE,2102588991
07.11.2016,CHILDREN'S SERVICES,THE NATIONAL AUTISTIC SOCIETY,"22,007.62",SEN TRANSPORT,EXTERNAL AGENCIES AND BODIES,5902221582
07.11.2016,CHILDREN'S SERVICES,REDACTED PERSONAL DATA,"3,050.88",SPECIAL GUARDIANSHIP,EXTERNAL AGENCIES AND BODIES,2102588986
07.11.2016,CHILDREN'S SERVICES,HOLLY BRYAN ASSOCIATES LTD,"8,400.00",STRATEGY,CONSULTANTS SERVICES,5902221643
07.11.2016,CHILDREN'S SERVICES,SOCIETE GENERALE EQUIPMENT FINANCE LTD,295.02,THOMAS CALTON CENTRE,TELEPHONES (LAND LINES),5902221593
07.11.2016,COMMUNITIES,CITYGLEN LTD,870.00,NRPF PHYSICAL DISABILITIES,NATIONAL ASSISTANCE,2102588958
07.11.2016,COMMUNITIES,CANON UK LTD,373.64,TENANTS FUND,OP LEASE/HIRE CHARGES:PLANT/EQUIP/FURNIT,5902221629
07.11.2016,COMMUNITIES,CANON UK LTD,534.87,TENANTS FUND,OP LEASE/HIRE CHARGES:PLANT/EQUIP/FURNIT,5902221630
07.11.2016,CUSTOMER EXPERIENCE,LIME LEGAL LTD,598.00,HOUSING NEEDS,EQUIPMENT PURCHASE & REPAIR,5902221610
07.11.2016,CUSTOMER EXPERIENCE HGF,CHARLOTTE BRAZIER,300.00,COMPLAINTS,PROFESSIONAL FEES,5902221662
07.11.2016,CUSTOMER EXPERIENCE HGF,JOANNE MCELROY,300.00,COMPLAINTS,PROFESSIONAL FEES,5902221691
07.11.2016,CUSTOMER EXPERIENCE HGF,ACTION ON HEARING LOSS LTD,"1,998.00",HOMELESS & HOUSING OPTIONS MGT,TRAINING,5902221607
07.11.2016,CUSTOMER EXPERIENCE HGF,PPROPERTYPLACEBOOK LTD,"1,085.00",NIGHTLY TA (NSC),EXTERNAL AGENCIES AND BODIES,5902221667
07.11.2016,CUSTOMER EXPERIENCE HGF,PPROPERTYPLACEBOOK LTD,"29,654.00",NIGHTLY TA (NSC),EXTERNAL AGENCIES AND BODIES,5902221666
07.11.2016,CUSTOMER EXPERIENCE HGF,ZFA LTD,"28,686.00",NIGHTLY TA (NSC),EXTERNAL AGENCIES AND BODIES,5902221580
07.11.2016,CUSTOMER EXPERIENCE HGF,INFOCORP LTD,800.00,PROJECTS,MARKETING & PUBLICITY SERVICES,5902221559
07.11.2016,CUSTOMER EXPERIENCE HGF,INFOCORP LTD,825.00,PROJECTS,MARKETING & PUBLICITY SERVICES,5902221559
07.11.2016,CUSTOMER EXPERIENCE HGF,INFOCORP LTD,"7,000.00",PROJECTS,MARKETING & PUBLICITY SERVICES,5902221559
07.11.2016,CUSTOMER EXPERIENCE HGF,EMINE PIRO,438.47,PSL (SOCIAL LETTINGS),CENTRAL GOVERNMENT,2102589406
07.11.2016,CUSTOMER EXPERIENCE HGF,QA LTD,"4,202.40",SYSTEMS,TRAINING,5902221620
07.11.2016,ENVIRONMENT AND LEISURE,CONWAY AECOM LTD,390.64,CAPITAL PS (LEISURE),CONSTR'N SUB CONTRACT - NON CERTIFICATED,5902221675
07.11.2016,ENVIRONMENT AND LEISURE,INDO LIGHTING LTD,"19,600.00",CAPITAL PS (LEISURE),CONSTR'N SUB CONTRACT - NON CERTIFICATED,5902221647
07.11.2016,ENVIRONMENT DIRECTORATE,TASK  ENFORCEMENT LTD,278.00,CAR LEASING CTRL A/C,PARKING CHARGES,5902221635
07.11.2016,ENVIRONMENT DIRECTORATE,KENT COUNTY COUNCIL - LASER,"4,173.43",COLUMNS - MAJOR ROADS,ELECTRICITY,5902221649
07.11.2016,ENVIRONMENT DIRECTORATE,KENT COUNTY COUNCIL - LASER,"4,910.21",COLUMNS - MAJOR ROADS,ELECTRICITY,5902221650
07.11.2016,ENVIRONMENT DIRECTORATE,UK POWER NETWORKS (OPERATIONS) LTD,"1,639.00",COLUMNS - MAJOR ROADS,SOUTHWARK DIRECT CHARGES,5902221672
07.11.2016,ENVIRONMENT DIRECTORATE,KENT COUNTY COUNCIL - LASER,284.31,COLUMNS - MINOR ROADS,ELECTRICITY,5902221653
07.11.2016,ENVIRONMENT DIRECTORATE,KENT COUNTY COUNCIL - LASER,"25,955.43",COLUMNS - MINOR ROADS,ELECTRICITY,5902221649
07.11.2016,ENVIRONMENT DIRECTORATE,KENT COUNTY COUNCIL - LASER,"30,537.64",COLUMNS - MINOR ROADS,ELECTRICITY,5902221650
07.11.2016,ENVIRONMENT DIRECTORATE,UK POWER NETWORKS (OPERATIONS) LTD,"2,865.00",COLUMNS - MINOR ROADS,SOUTHWARK DIRECT CHARGES,5902221679
07.11.2016,ENVIRONMENT DIRECTORATE,KENT COUNTY COUNCIL - LASER,"2,903.99",COLUMNS - PRINCIPAL ROADS,ELECTRICITY,5902221649
07.11.2016,ENVIRONMENT DIRECTORATE,KENT COUNTY COUNCIL - LASER,"3,416.67",COLUMNS - PRINCIPAL ROADS,ELECTRICITY,5902221650
07.11.2016,ENVIRONMENT DIRECTORATE,LONDON HIRE LIMITED,"4,296.70",COMMERCIAL VEH CTRL A/C,HIRED VEHICLES,5902221637
07.11.2016,ENVIRONMENT DIRECTORATE,NORTHGATE VEHICLE HIRE (SOUTH EAST),290.00,COMMERCIAL VEH CTRL A/C,PARKING CHARGES,5902221639
07.11.2016,ENVIRONMENT DIRECTORATE,EDENRED (INCENTIVES & MOTIVATION) LTD,600.00,ESTATES (CENTRAL),MEDICAL / HEALTH & SAFETY SERVICES,5902221614
07.11.2016,ENVIRONMENT DIRECTORATE,KENT COUNTY COUNCIL - LASER,857.61,ILLUMINATED BOLLARDS - MAJOR ROADS,ELECTRICITY,5902221649
07.11.2016,ENVIRONMENT DIRECTORATE,KENT COUNTY COUNCIL - LASER,"1,009.01",ILLUMINATED BOLLARDS - MAJOR ROADS,ELECTRICITY,5902221650
07.11.2016,ENVIRONMENT DIRECTORATE,KENT COUNTY COUNCIL - LASER,"1,095.36",ILLUMINATED BOLLARDS - MINOR ROADS,ELECTRICITY,5902221649
07.11.2016,ENVIRONMENT DIRECTORATE,KENT COUNTY COUNCIL - LASER,"1,288.74",ILLUMINATED BOLLARDS - MINOR ROADS,ELECTRICITY,5902221650
07.11.2016,ENVIRONMENT DIRECTORATE,KENT COUNTY COUNCIL - LASER,649.58,ILLUMINATED BOLLARDS - PRINCIPAL ROADS,ELECTRICITY,5902221649
07.11.2016,ENVIRONMENT DIRECTORATE,KENT COUNTY COUNCIL - LASER,764.25,ILLUMINATED BOLLARDS - PRINCIPAL ROADS,ELECTRICITY,5902221650
07.11.2016,ENVIRONMENT DIRECTORATE,KENT COUNTY COUNCIL - LASER,"1,118.74",ILLUMINATED SIGNS - MAJOR ROADS,ELECTRICITY,5902221649
07.11.2016,ENVIRONMENT DIRECTORATE,KENT COUNTY COUNCIL - LASER,"1,316.25",ILLUMINATED SIGNS - MAJOR ROADS,ELECTRICITY,5902221650
07.11.2016,ENVIRONMENT DIRECTORATE,KENT COUNTY COUNCIL - LASER,"4,160.68",ILLUMINATED SIGNS - MINOR ROADS,ELECTRICITY,5902221649
07.11.2016,ENVIRONMENT DIRECTORATE,KENT COUNTY COUNCIL - LASER,"4,895.22",ILLUMINATED SIGNS - MINOR ROADS,ELECTRICITY,5902221650
07.11.2016,ENVIRONMENT DIRECTORATE,UK POWER NETWORKS (OPERATIONS) LTD,"1,875.00",ILLUMINATED SIGNS - MINOR ROADS,SOUTHWARK DIRECT CHARGES,5902221671
07.11.2016,ENVIRONMENT DIRECTORATE,KENT COUNTY COUNCIL - LASER,793.93,ILLUMINATED SIGNS - PRINCIPAL ROADS,ELECTRICITY,5902221649
07.11.2016,ENVIRONMENT DIRECTORATE,KENT COUNTY COUNCIL - LASER,934.09,ILLUMINATED SIGNS - PRINCIPAL ROADS,ELECTRICITY,5902221650
07.11.2016,ENVIRONMENT DIRECTORATE,UK POWER NETWORKS (OPERATIONS) LTD,"2,751.00",LIGHTING RECOVERABLE WORKS,SOUTHWARK DIRECT CHARGES,5902221681
07.11.2016,ENVIRONMENT DIRECTORATE,CONTEGO SAFETY SOLUTIONS LTD,319.20,MANAGEMENT TEAM,MATERIALS,5902221619
07.11.2016,ENVIRONMENT DIRECTORATE,IMPERIAL POLYTHENE PRODUCTS LTD,"1,192.50",MANAGEMENT TEAM,MATERIALS,5902220951
07.11.2016,ENVIRONMENT DIRECTORATE,IMPERIAL POLYTHENE PRODUCTS LTD,"1,407.15",MANAGEMENT TEAM,MATERIALS,5902220976
07.11.2016,ENVIRONMENT DIRECTORATE,COMPLETE TREE CARE LTD,663.48,NON HOUSING GROUNDS,AGENCY STAFF,5902221510
07.11.2016,ENVIRONMENT DIRECTORATE,KENT COUNTY COUNCIL - LASER,271.73,PEDESTRIAN CROSSINGS - MAJOR ROADS,ELECTRICITY,5902221649
07.11.2016,ENVIRONMENT DIRECTORATE,KENT COUNTY COUNCIL - LASER,319.70,PEDESTRIAN CROSSINGS - MAJOR ROADS,ELECTRICITY,5902221650
07.11.2016,ENVIRONMENT DIRECTORATE,KENT COUNTY COUNCIL - LASER,314.17,PEDESTRIAN CROSSINGS - PRINCIPAL  ROADS,ELECTRICITY,5902221649
07.11.2016,ENVIRONMENT DIRECTORATE,KENT COUNTY COUNCIL - LASER,369.63,PEDESTRIAN CROSSINGS - PRINCIPAL  ROADS,ELECTRICITY,5902221650
07.11.2016,ENVIRONMENT DIRECTORATE,SOUTHWARK NEWSPAPER LTD,288.00,STREET WORKS OVERHEADS,MARKETING & PUBLICITY SERVICES,5902221381
07.11.2016,ENVIRONMENT DIRECTORATE,SOUTHWARK NEWSPAPER LTD,300.00,STREET WORKS OVERHEADS,MARKETING & PUBLICITY SERVICES,5902221382
07.11.2016,ENVIRONMENT DIRECTORATE,SOUTHWARK NEWSPAPER LTD,300.00,STREET WORKS OVERHEADS,MARKETING & PUBLICITY SERVICES,5902221388
07.11.2016,ENVIRONMENT DIRECTORATE,SOUTHWARK NEWSPAPER LTD,360.00,STREET WORKS OVERHEADS,MARKETING & PUBLICITY SERVICES,5902221397
07.11.2016,ENVIRONMENT DIRECTORATE,SOUTHWARK NEWSPAPER LTD,396.00,STREET WORKS OVERHEADS,MARKETING & PUBLICITY SERVICES,5902221300
07.11.2016,F & C S EXCLUDING CORPORATE BUDGETS,DSI BILLING SERVICES LTD,"2,251.95",ADMINISTRATIVE SUPPORT,POSTAGES,5902221286
07.11.2016,HOUSING HRA,CALFORD SEADEN LLP,596.82,CAPITAL PS (HRA),CONSTRUCTION FEES  - EXTERNAL,5902221689
07.11.2016,HOUSING HRA,CALFORD SEADEN LLP,"1,609.46",CAPITAL PS (HRA),CONSTRUCTION FEES  - EXTERNAL,5902221677
07.11.2016,HOUSING HRA,CALFORD SEADEN LLP,"3,272.40",CAPITAL PS (HRA),CONSTRUCTION FEES  - EXTERNAL,5902221669
07.11.2016,HOUSING HRA,CALFORD SEADEN LLP,"5,723.21",CAPITAL PS (HRA),CONSTRUCTION FEES  - EXTERNAL,5902221561
07.11.2016,HOUSING HRA,CALFORD SEADEN LLP,"14,244.40",CAPITAL PS (HRA),CONSTRUCTION FEES  - EXTERNAL,5902221565
07.11.2016,HOUSING HRA,CALFORD SEADEN LLP,"29,954.99",CAPITAL PS (HRA),CONSTRUCTION FEES  - EXTERNAL,5902221625
07.11.2016,HOUSING HRA,ADAM KHAN ARCHITECTS LTD,"2,500.00",CAPITAL PS (REGEN),CONSTRUCTION FEES - ARCHITECT,5902221596
07.11.2016,HOUSING HRA,ADAM KHAN ARCHITECTS LTD,"5,780.35",CAPITAL PS (REGEN),CONSTRUCTION FEES - ARCHITECT,5902221602
07.11.2016,HOUSING HRA,ADAM KHAN ARCHITECTS LTD,"8,635.18",CAPITAL PS (REGEN),CONSTRUCTION FEES - ARCHITECT,5902221609
07.11.2016,HOUSING HRA,ARMSTRONG YORK,"4,200.00",PAYMENTS CONTROL ACCOUNT-ARMSTRONG YORKE,MANUAL CREDITORS,5902221603
07.11.2016,HOUSING HRA,PENNINGTON CHOICE LTD,"32,764.00",PENNINGTON,MANUAL CREDITORS,5902221608
07.11.2016,LEISURE DIRECTORATE,KENT COUNTY COUNCIL - LASER,639.38,CAMBERWELL LIBRARY,ELECTRICITY,5902220676
07.11.2016,LEISURE DIRECTORATE,INSTITUTE OF CEMETERY & CREMATORIUM MANAGEMENT,295.00,CREMATORIUM,HIRE OF ROOMS/HALLS,5902221273
07.11.2016,LEISURE DIRECTORATE,BOURNE AMENITY LTD,"1,311.38",HOMERSTALL ROAD SPORTS GROUND,PROFESSIONAL FEES,5902221673
07.11.2016,LEISURE DIRECTORATE,ASKEWS & HOLTS LIBRARY SERVICES LTD,"12,790.14",STOCK SERVICES,BOOKS & PUBLICATIONS,5902221616
07.11.2016,MODERNISATION HGF,DFH ERGONOMICS LTD,700.00,CHILDREN'S & ADULTS' TRAINING,TRAINING,5902221570
07.11.2016,MODERNISATION HGF,IMPROVEMENT AND DEVELOPMENT AGENCY,"3,000.00",HR (CORPORATE),CONSULTANTS SERVICES,5902221687
07.11.2016,MODERNISATION HGF,VIV HOGG TRAINING & CONSULTANCY LTD,675.00,SOCIAL WORK TRANSITION GRANT,TRAINING,5902221631
07.11.2016,MODERNISATION HGF,MICROSOFT IRELAND OPERATIONS LTD,"-13,366.36",TECHNOLOGY,COMPUTER MAINTENANCE,5902221579
07.11.2016,MODERNISATION HGF,MICROSOFT IRELAND OPERATIONS LTD,"-3,181.18",TECHNOLOGY,COMPUTER MAINTENANCE,5902221585
07.11.2016,MODERNISATION HGF,MICROSOFT IRELAND OPERATIONS LTD,284.40,TECHNOLOGY,COMPUTER MAINTENANCE,5902221578
07.11.2016,MODERNISATION HGF,MICROSOFT IRELAND OPERATIONS LTD,"3,606.00",TECHNOLOGY,COMPUTER MAINTENANCE,5902221577
07.11.2016,MODERNISATION HGF,MICROSOFT IRELAND OPERATIONS LTD,"17,424.00",TECHNOLOGY,COMPUTER MAINTENANCE,5902221575
07.11.2016,PLANNING AND TRANSPORT,IDOX SOFWARE LIMITED,"2,850.00",S106 & CIL ADMINISTRATION,INFORMATION MANAGEMENT,5902221606
07.11.2016,PUBLIC HEALTH,THE PSHE ASSOCIATION,"2,500.00",PUBLIC HEALTH,SUBSCRIPTIONS,5902221657
07.11.2016,RESIDENT SERVICES,A & H PEST CONTROL LTD,790.00,BOROUGH & BANKSIDE,PEST CONTROL,5902221576
07.11.2016,RESIDENT SERVICES,EDF ENERGY PLC,-811.91,TA HOSTELS,ELECTRICITY,5902221683
07.11.2016,RESIDENT SERVICES,EDF ENERGY PLC,811.91,TA HOSTELS,ELECTRICITY,5902221674
07.11.2016,RESIDENT SERVICES,CITYGLEN LTD,"1,085.00",TA PLACEMENTS,HIRE OF ROOMS/HALLS,5902221564
07.11.2016,RESIDENT SERVICES,NORBURY PROPERTY SERVICES,351.00,TA PLACEMENTS,RENTS,5902221600
07.11.2016,RESIDENT SERVICES,NORBURY PROPERTY SERVICES,"2,250.00",TA PLACEMENTS,RENTS,5902221638
07.11.2016,RESIDENT SERVICES,PPROPERTYPLACEBOOK LTD,"2,728.00",TA PLACEMENTS,RENTS,5902221573
08.11.2016,ADULT SOCIAL CARE,NCB SOLUTIONS LTD,900.00,DIRECT PAYMENTS SUPPORT WORKERS,EXTERNAL AGENCIES AND BODIES,5902221919
08.11.2016,ADULT SOCIAL CARE,EXPERTS BY EXPERIENCE LTD,"1,282.00",HEAD OF MH PRACTICE,CONSULTANTS SERVICES,5902221755
08.11.2016,ADULT SOCIAL CARE,EXPERTS BY EXPERIENCE LTD,"7,642.30",HEAD OF MH PRACTICE,CONSULTANTS SERVICES,5902221755
08.11.2016,ADULT SOCIAL CARE,YOUTH GRACES (UK) LTD,661.08,MEM LTS 65+,HOMECARE - C&V,2102589519
08.11.2016,ADULT SOCIAL CARE,YOUTH GRACES (UK) LTD,256.35,MEM LTS 65+,HOMECARE - SPOT,2102589501
08.11.2016,ADULT SOCIAL CARE,ALZHEIMER'S SOCIETY,"25,083.00",MENTAL HEALTH FOR OLDER ADULTS,EXTERNAL AGENCIES AND BODIES,5902221772
08.11.2016,ADULT SOCIAL CARE,ALZHEIMER'S SOCIETY,"26,083.00",MENTAL HEALTH FOR OLDER ADULTS,EXTERNAL AGENCIES AND BODIES,5902221769
08.11.2016,ADULT SOCIAL CARE,YOUTH GRACES (UK) LTD,263.16,MH LTS 65+,HOMECARE - SPOT,2102589503
08.11.2016,ADULT SOCIAL CARE,MIHOMECARE LTD,-308.21,OP - HOMECARE,HOMECARE - C&V,2102589403
08.11.2016,ADULT SOCIAL CARE,MIHOMECARE LTD,383.18,OP - HOMECARE,HOMECARE - C&V,2102589763
08.11.2016,ADULT SOCIAL CARE,MIHOMECARE LTD,449.82,OP - HOMECARE,HOMECARE - C&V,2102589685
08.11.2016,ADULT SOCIAL CARE,MIHOMECARE LTD,449.82,OP - HOMECARE,HOMECARE - C&V,2102589710
08.11.2016,ADULT SOCIAL CARE,MIHOMECARE LTD,491.47,OP - HOMECARE,HOMECARE - C&V,2102589737
08.11.2016,ADULT SOCIAL CARE,MIHOMECARE LTD,544.64,OP - HOMECARE,HOMECARE - C&V,2102589810
08.11.2016,ADULT SOCIAL CARE,MIHOMECARE LTD,714.84,OP - HOMECARE,HOMECARE - C&V,2102589804
08.11.2016,ADULT SOCIAL CARE,MIHOMECARE LTD,808.01,OP - HOMECARE,HOMECARE - C&V,2102589659
08.11.2016,ADULT SOCIAL CARE,MIHOMECARE LTD,331.89,PERSONAL BUDGET - SLAM,HOMECARE - C&V,2102589778
08.11.2016,ADULT SOCIAL CARE,MIHOMECARE LTD,624.75,PERSONAL BUDGET - SLAM,HOMECARE - C&V,2102589752
08.11.2016,ADULT SOCIAL CARE,MIHOMECARE LTD,851.00,PERSONAL BUDGET - SLAM,HOMECARE - C&V,2102589800
08.11.2016,ADULT SOCIAL CARE,MIHOMECARE LTD,974.61,PERSONAL BUDGET - SLAM,HOMECARE - C&V,2102589754
08.11.2016,ADULT SOCIAL CARE,MIHOMECARE LTD,"1,024.59",PERSONAL BUDGET - SLAM,HOMECARE - C&V,2102589726
08.11.2016,ADULT SOCIAL CARE,MIHOMECARE LTD,"1,132.88",PERSONAL BUDGET - SLAM,HOMECARE - C&V,2102589650
08.11.2016,ADULT SOCIAL CARE,MIHOMECARE LTD,"1,132.88",PERSONAL BUDGET - SLAM,HOMECARE - C&V,2102589676
08.11.2016,ADULT SOCIAL CARE,MIHOMECARE LTD,"1,132.88",PERSONAL BUDGET - SLAM,HOMECARE - C&V,2102589701
08.11.2016,ADULT SOCIAL CARE,MIHOMECARE LTD,"1,187.03",PERSONAL BUDGET - SLAM,HOMECARE - C&V,2102589728
08.11.2016,ADULT SOCIAL CARE,MIHOMECARE LTD,"1,336.07",PERSONAL BUDGET - SLAM,HOMECARE - C&V,2102589802
08.11.2016,ADULT SOCIAL CARE,MIHOMECARE LTD,255.30,PERSONAL BUDGET - SOCIAL CARE,HOMECARE - C&V,2102589820
08.11.2016,ADULT SOCIAL CARE,MIHOMECARE LTD,266.56,PERSONAL BUDGET - SOCIAL CARE,HOMECARE - C&V,2102589674
08.11.2016,ADULT SOCIAL CARE,MIHOMECARE LTD,266.56,PERSONAL BUDGET - SOCIAL CARE,HOMECARE - C&V,2102589723
08.11.2016,ADULT SOCIAL CARE,MIHOMECARE LTD,266.56,PERSONAL BUDGET - SOCIAL CARE,HOMECARE - C&V,2102589749
08.11.2016,ADULT SOCIAL CARE,MIHOMECARE LTD,272.32,PERSONAL BUDGET - SOCIAL CARE,HOMECARE - C&V,2102589807
08.11.2016,ADULT SOCIAL CARE,MIHOMECARE LTD,333.20,PERSONAL BUDGET - SOCIAL CARE,HOMECARE - C&V,2102589764
08.11.2016,ADULT SOCIAL CARE,MIHOMECARE LTD,349.86,PERSONAL BUDGET - SOCIAL CARE,HOMECARE - C&V,2102589707
08.11.2016,ADULT SOCIAL CARE,MIHOMECARE LTD,349.86,PERSONAL BUDGET - SOCIAL CARE,HOMECARE - C&V,2102589772
08.11.2016,ADULT SOCIAL CARE,MIHOMECARE LTD,366.52,PERSONAL BUDGET - SOCIAL CARE,HOMECARE - C&V,2102589682
08.11.2016,ADULT SOCIAL CARE,MIHOMECARE LTD,366.52,PERSONAL BUDGET - SOCIAL CARE,HOMECARE - C&V,2102589711
08.11.2016,ADULT SOCIAL CARE,MIHOMECARE LTD,399.84,PERSONAL BUDGET - SOCIAL CARE,HOMECARE - C&V,2102589756
08.11.2016,ADULT SOCIAL CARE,MIHOMECARE LTD,399.84,PERSONAL BUDGET - SOCIAL CARE,HOMECARE - C&V,2102589766
08.11.2016,ADULT SOCIAL CARE,MIHOMECARE LTD,433.16,PERSONAL BUDGET - SOCIAL CARE,HOMECARE - C&V,2102589695
08.11.2016,ADULT SOCIAL CARE,MIHOMECARE LTD,433.16,PERSONAL BUDGET - SOCIAL CARE,HOMECARE - C&V,2102589753
08.11.2016,ADULT SOCIAL CARE,MIHOMECARE LTD,442.52,PERSONAL BUDGET - SOCIAL CARE,HOMECARE - C&V,2102589811
08.11.2016,ADULT SOCIAL CARE,MIHOMECARE LTD,466.48,PERSONAL BUDGET - SOCIAL CARE,HOMECARE - C&V,2102589661
08.11.2016,ADULT SOCIAL CARE,MIHOMECARE LTD,466.48,PERSONAL BUDGET - SOCIAL CARE,HOMECARE - C&V,2102589672
08.11.2016,ADULT SOCIAL CARE,MIHOMECARE LTD,466.48,PERSONAL BUDGET - SOCIAL CARE,HOMECARE - C&V,2102589686
08.11.2016,ADULT SOCIAL CARE,MIHOMECARE LTD,466.48,PERSONAL BUDGET - SOCIAL CARE,HOMECARE - C&V,2102589696
08.11.2016,ADULT SOCIAL CARE,MIHOMECARE LTD,466.48,PERSONAL BUDGET - SOCIAL CARE,HOMECARE - C&V,2102589721
08.11.2016,ADULT SOCIAL CARE,MIHOMECARE LTD,466.48,PERSONAL BUDGET - SOCIAL CARE,HOMECARE - C&V,2102589738
08.11.2016,ADULT SOCIAL CARE,MIHOMECARE LTD,466.48,PERSONAL BUDGET - SOCIAL CARE,HOMECARE - C&V,2102589747
08.11.2016,ADULT SOCIAL CARE,MIHOMECARE LTD,468.05,PERSONAL BUDGET - SOCIAL CARE,HOMECARE - C&V,2102589785
08.11.2016,ADULT SOCIAL CARE,MIHOMECARE LTD,476.56,PERSONAL BUDGET - SOCIAL CARE,HOMECARE - C&V,2102589819
08.11.2016,ADULT SOCIAL CARE,MIHOMECARE LTD,483.14,PERSONAL BUDGET - SOCIAL CARE,HOMECARE - C&V,2102589656
08.11.2016,ADULT SOCIAL CARE,MIHOMECARE LTD,516.46,PERSONAL BUDGET - SOCIAL CARE,HOMECARE - C&V,2102589734
08.11.2016,ADULT SOCIAL CARE,MIHOMECARE LTD,528.96,PERSONAL BUDGET - SOCIAL CARE,HOMECARE - C&V,2102589663
08.11.2016,ADULT SOCIAL CARE,MIHOMECARE LTD,528.96,PERSONAL BUDGET - SOCIAL CARE,HOMECARE - C&V,2102589713
08.11.2016,ADULT SOCIAL CARE,MIHOMECARE LTD,533.12,PERSONAL BUDGET - SOCIAL CARE,HOMECARE - C&V,2102589651
08.11.2016,ADULT SOCIAL CARE,MIHOMECARE LTD,533.12,PERSONAL BUDGET - SOCIAL CARE,HOMECARE - C&V,2102589653
08.11.2016,ADULT SOCIAL CARE,MIHOMECARE LTD,533.12,PERSONAL BUDGET - SOCIAL CARE,HOMECARE - C&V,2102589677
08.11.2016,ADULT SOCIAL CARE,MIHOMECARE LTD,533.12,PERSONAL BUDGET - SOCIAL CARE,HOMECARE - C&V,2102589679
08.11.2016,ADULT SOCIAL CARE,MIHOMECARE LTD,533.12,PERSONAL BUDGET - SOCIAL CARE,HOMECARE - C&V,2102589688
08.11.2016,ADULT SOCIAL CARE,MIHOMECARE LTD,533.12,PERSONAL BUDGET - SOCIAL CARE,HOMECARE - C&V,2102589702
08.11.2016,ADULT SOCIAL CARE,MIHOMECARE LTD,533.12,PERSONAL BUDGET - SOCIAL CARE,HOMECARE - C&V,2102589727
08.11.2016,ADULT SOCIAL CARE,MIHOMECARE LTD,533.12,PERSONAL BUDGET - SOCIAL CARE,HOMECARE - C&V,2102589730
08.11.2016,ADULT SOCIAL CARE,MIHOMECARE LTD,533.12,PERSONAL BUDGET - SOCIAL CARE,HOMECARE - C&V,2102589740
08.11.2016,ADULT SOCIAL CARE,MIHOMECARE LTD,544.64,PERSONAL BUDGET - SOCIAL CARE,HOMECARE - C&V,2102589801
08.11.2016,ADULT SOCIAL CARE,MIHOMECARE LTD,544.64,PERSONAL BUDGET - SOCIAL CARE,HOMECARE - C&V,2102589805
08.11.2016,ADULT SOCIAL CARE,MIHOMECARE LTD,544.64,PERSONAL BUDGET - SOCIAL CARE,HOMECARE - C&V,2102589813
08.11.2016,ADULT SOCIAL CARE,MIHOMECARE LTD,549.78,PERSONAL BUDGET - SOCIAL CARE,HOMECARE - C&V,2102589704
08.11.2016,ADULT SOCIAL CARE,MIHOMECARE LTD,696.89,PERSONAL BUDGET - SOCIAL CARE,HOMECARE - C&V,2102589759
08.11.2016,ADULT SOCIAL CARE,MIHOMECARE LTD,833.00,PERSONAL BUDGET - SOCIAL CARE,HOMECARE - C&V,2102589681
08.11.2016,ADULT SOCIAL CARE,MIHOMECARE LTD,833.00,PERSONAL BUDGET - SOCIAL CARE,HOMECARE - C&V,2102589706
08.11.2016,ADULT SOCIAL CARE,MIHOMECARE LTD,849.66,PERSONAL BUDGET - SOCIAL CARE,HOMECARE - C&V,2102589655
08.11.2016,ADULT SOCIAL CARE,MIHOMECARE LTD,899.64,PERSONAL BUDGET - SOCIAL CARE,HOMECARE - C&V,2102589733
08.11.2016,ADULT SOCIAL CARE,MIHOMECARE LTD,916.30,PERSONAL BUDGET - SOCIAL CARE,HOMECARE - C&V,2102589722
08.11.2016,ADULT SOCIAL CARE,MIHOMECARE LTD,932.96,PERSONAL BUDGET - SOCIAL CARE,HOMECARE - C&V,2102589673
08.11.2016,ADULT SOCIAL CARE,MIHOMECARE LTD,932.96,PERSONAL BUDGET - SOCIAL CARE,HOMECARE - C&V,2102589697
08.11.2016,ADULT SOCIAL CARE,MIHOMECARE LTD,"1,099.56",PERSONAL BUDGET - SOCIAL CARE,HOMECARE - C&V,2102589671
08.11.2016,ADULT SOCIAL CARE,MIHOMECARE LTD,"1,366.12",PERSONAL BUDGET - SOCIAL CARE,HOMECARE - C&V,2102589761
08.11.2016,ADULT SOCIAL CARE,MIHOMECARE LTD,"1,799.28",PERSONAL BUDGET - SOCIAL CARE,HOMECARE - C&V,2102589683
08.11.2016,ADULT SOCIAL CARE,MIHOMECARE LTD,"1,824.27",PERSONAL BUDGET - SOCIAL CARE,HOMECARE - C&V,2102589657
08.11.2016,ADULT SOCIAL CARE,MIHOMECARE LTD,"1,832.60",PERSONAL BUDGET - SOCIAL CARE,HOMECARE - C&V,2102589708
08.11.2016,ADULT SOCIAL CARE,MIHOMECARE LTD,"1,832.60",PERSONAL BUDGET - SOCIAL CARE,HOMECARE - C&V,2102589735
08.11.2016,ADULT SOCIAL CARE,MIHOMECARE LTD,"1,872.20",PERSONAL BUDGET - SOCIAL CARE,HOMECARE - C&V,2102589808
08.11.2016,ADULT SOCIAL CARE,YOUTH GRACES (UK) LTD,344.06,PHY LTS 18-64,HOMECARE - C&V,2102589507
08.11.2016,ADULT SOCIAL CARE,YOUTH GRACES (UK) LTD,404.72,PHY LTS 18-64,HOMECARE - C&V,2102589500
08.11.2016,ADULT SOCIAL CARE,YOUTH GRACES (UK) LTD,259.77,PHY LTS 65+,HOMECARE - SPOT,2102589514
08.11.2016,ADULT SOCIAL CARE,YOUTH GRACES (UK) LTD,472.36,PHY LTS 65+,HOMECARE - SPOT,2102589521
08.11.2016,ADULT SOCIAL CARE,YOUTH GRACES (UK) LTD,775.82,PHY LTS 65+,HOMECARE - SPOT,2102589520
08.11.2016,ADULT SOCIAL CARE,JANE RAMSAY,"1,112.80",SAFEGUARDING TEAM,OTHER CONTRACTORS,5902221911
08.11.2016,ADULT SOCIAL CARE,ROMEDICAL LTD,"1,287.06",SAFEGUARDING TEAM,OTHER CONTRACTORS,5902221861
08.11.2016,ADULT SOCIAL CARE,EASYLINK UK,933.00,SOUTHWARK RESOURCE CENTRE,EQUIPMENT PURCHASE & REPAIR,5902221790
08.11.2016,ADULT SOCIAL CARE,CORELOGIC LTD,"12,000.00",STRAT DIR OF C&AS,CONSULTANTS SERVICES,5902221909
08.11.2016,ADULT SOCIAL CARE,CONTACT PROFESSIONALS,465.00,TRANSITION 14YRS TO 18YRS,SECTION 17 PAYMENTS TO AGENCIES/CARERS,2102589587
08.11.2016,ADULT SOCIAL CARE,CONTACT PROFESSIONALS,660.00,TRANSITION 14YRS TO 18YRS,SECTION 17 PAYMENTS TO AGENCIES/CARERS,2102589596
08.11.2016,ADULT SOCIAL CARE,MEDACS HOMECARE,259.74,TRANSITION 14YRS TO 18YRS,SECTION 17 PAYMENTS TO AGENCIES/CARERS,2102589562
08.11.2016,ADULT SOCIAL CARE,MEDACS HOMECARE,346.32,TRANSITION 14YRS TO 18YRS,SECTION 17 PAYMENTS TO AGENCIES/CARERS,2102589541
08.11.2016,ADULT SOCIAL CARE,MEDACS HOMECARE,418.47,TRANSITION 14YRS TO 18YRS,SECTION 17 PAYMENTS TO AGENCIES/CARERS,2102589543
08.11.2016,ADULT SOCIAL CARE,MEDACS HOMECARE,432.90,TRANSITION 14YRS TO 18YRS,SECTION 17 PAYMENTS TO AGENCIES/CARERS,2102589538
08.11.2016,ADULT SOCIAL CARE,MEDACS HOMECARE,548.34,TRANSITION 14YRS TO 18YRS,SECTION 17 PAYMENTS TO AGENCIES/CARERS,2102589549
08.11.2016,ADULT SOCIAL CARE,MEDACS HOMECARE,562.77,TRANSITION 14YRS TO 18YRS,SECTION 17 PAYMENTS TO AGENCIES/CARERS,2102589574
08.11.2016,ADULT SOCIAL CARE,MEDACS HOMECARE,865.80,TRANSITION 14YRS TO 18YRS,SECTION 17 PAYMENTS TO AGENCIES/CARERS,2102589553
08.11.2016,ADULT SOCIAL CARE,MEDACS HOMECARE,"1,587.49",TRANSITION 14YRS TO 18YRS,SECTION 17 PAYMENTS TO AGENCIES/CARERS,2102589572
08.11.2016,ASSET MANAGEMENT,BRIDGEWATER ROOFING CONTRACTORS LTD,285.00,R&M CONTRACTS (NORTH),OTHER R&M,2102589823
08.11.2016,ASSET MANAGEMENT,A & E ELKINS LTD,"29,151.00",REPAIRS OPERATIONS,OTHER R&M,2102589848
08.11.2016,ASSET MANAGEMENT,BRIDGEWATER ROOFING CONTRACTORS LTD,"24,603.60",REPAIRS OPERATIONS,OTHER R&M,2102589824
08.11.2016,CENTRAL FUNCTIONS,HMCTS,335.00,HOME OWNERSHIP,LEGAL FEES & COURT COSTS,5902221900
08.11.2016,CENTRAL FUNCTIONS,THAMES WATER UTILITIES LTD,"36,876.96",TWA,WATER,5902221775
08.11.2016,CENTRAL FUNCTIONS,THAMES WATER UTILITIES LTD,"1,298,575.37",TWA,WATER,5902221775
08.11.2016,CHIEF EXECUTIVE,CONWAY AECOM LTD,768.85,CAPITAL PS (REGEN),CONSTR'N SUB CONTRACT - NON CERTIFICATED,2102589830
08.11.2016,CHIEF EXECUTIVE,CONWAY AECOM LTD,"3,293.94",CAPITAL PS (REGEN),CONSTR'N SUB CONTRACT - NON CERTIFICATED,2102589829
08.11.2016,CHILDREN AND ADULT,CORELOGIC LTD,"6,000.00",CAPITAL PS (STRAT SERV),ICT ACQUISITION,5902221727
08.11.2016,CHILDREN'S SERVICES,ASCENT FOSTERING AGENCY LTD,"5,978.35",AGENCY FOSTERING,EXTERNAL AGENCIES AND BODIES,2102589645
08.11.2016,CHILDREN'S SERVICES,CHILDREN OF COLOUR,"4,495.00",AGENCY FOSTERING,EXTERNAL AGENCIES AND BODIES,2102589565
08.11.2016,CHILDREN'S SERVICES,CROHAM SERVICES FOR CHILDREN,"2,889.20",AGENCY FOSTERING,EXTERNAL AGENCIES AND BODIES,2102589625
08.11.2016,CHILDREN'S SERVICES,CROHAM SERVICES FOR CHILDREN,"2,889.20",AGENCY FOSTERING,EXTERNAL AGENCIES AND BODIES,2102589635
08.11.2016,CHILDREN'S SERVICES,CROHAM SERVICES FOR CHILDREN,"2,889.20",AGENCY FOSTERING,EXTERNAL AGENCIES AND BODIES,2102589636
08.11.2016,CHILDREN'S SERVICES,CROHAM SERVICES FOR CHILDREN,"2,889.20",AGENCY FOSTERING,EXTERNAL AGENCIES AND BODIES,2102589643
08.11.2016,CHILDREN'S SERVICES,FAMILY FOSTERING LTD,"3,551.98",AGENCY FOSTERING,EXTERNAL AGENCIES AND BODIES,2102589634
08.11.2016,CHILDREN'S SERVICES,FAMILY FOSTERING LTD,"3,551.98",AGENCY FOSTERING,EXTERNAL AGENCIES AND BODIES,2102589640
08.11.2016,CHILDREN'S SERVICES,FOSTERING LONDON LTD,"4,403.55",AGENCY FOSTERING,EXTERNAL AGENCIES AND BODIES,2102589632
08.11.2016,CHILDREN'S SERVICES,FOSTERING SUPPORT GROUP LTD,"5,999.70",AGENCY FOSTERING,EXTERNAL AGENCIES AND BODIES,2102589630
08.11.2016,CHILDREN'S SERVICES,GREATER LONDON FOSTERING,"3,220.28",AGENCY FOSTERING,EXTERNAL AGENCIES AND BODIES,2102589642
08.11.2016,CHILDREN'S SERVICES,GREATER LONDON FOSTERING,"4,424.01",AGENCY FOSTERING,EXTERNAL AGENCIES AND BODIES,2102589646
08.11.2016,CHILDREN'S SERVICES,KINDERCARE FOSTERING,"3,321.34",AGENCY FOSTERING,EXTERNAL AGENCIES AND BODIES,2102589629
08.11.2016,CHILDREN'S SERVICES,KINDERCARE FOSTERING,"3,520.67",AGENCY FOSTERING,EXTERNAL AGENCIES AND BODIES,2102589628
08.11.2016,CHILDREN'S SERVICES,NATIONAL FOSTERING AGENCY,"4,109.91",AGENCY FOSTERING,EXTERNAL AGENCIES AND BODIES,2102589559
08.11.2016,CHILDREN'S SERVICES,NEXT STEP FOSTERING SERVICES LTD,"5,412.90",AGENCY FOSTERING,EXTERNAL AGENCIES AND BODIES,2102589641
08.11.2016,CHILDREN'S SERVICES,TACT,816.00,AGENCY FOSTERING,EXTERNAL AGENCIES AND BODIES,2102589626
08.11.2016,CHILDREN'S SERVICES,TACT,"2,277.00",AGENCY FOSTERING,EXTERNAL AGENCIES AND BODIES,2102589631
08.11.2016,CHILDREN'S SERVICES,TACT,"2,907.00",AGENCY FOSTERING,EXTERNAL AGENCIES AND BODIES,2102589633
08.11.2016,CHILDREN'S SERVICES,TACT,"3,060.00",AGENCY FOSTERING,EXTERNAL AGENCIES AND BODIES,2102589638
08.11.2016,CHILDREN'S SERVICES,TACT,"3,060.00",AGENCY FOSTERING,EXTERNAL AGENCIES AND BODIES,2102589639
08.11.2016,CHILDREN'S SERVICES,TACT,"3,060.00",AGENCY FOSTERING,EXTERNAL AGENCIES AND BODIES,2102589644
08.11.2016,CHILDREN'S SERVICES,TACT,"3,243.00",AGENCY FOSTERING,EXTERNAL AGENCIES AND BODIES,2102589637
08.11.2016,CHILDREN'S SERVICES,TACT,"3,243.00",AGENCY FOSTERING,EXTERNAL AGENCIES AND BODIES,2102589647
08.11.2016,CHILDREN'S SERVICES,TACT,"3,440.00",AGENCY FOSTERING,EXTERNAL AGENCIES AND BODIES,2102589627
08.11.2016,CHILDREN'S SERVICES,CITYGLEN LTD,"1,860.00",AIS - IHT,SECTION 17 PAYMENTS TO AGENCIES/CARERS,2102589546
08.11.2016,CHILDREN'S SERVICES,CITYGLEN LTD,"2,170.00",AIS - IHT,SECTION 17 PAYMENTS TO AGENCIES/CARERS,2102589556
08.11.2016,CHILDREN'S SERVICES,LONDON SOUTHWARK HOTEL LTD,"2,030.00",AIS - IHT,SECTION 17 PAYMENTS TO AGENCIES/CARERS,2102589561
08.11.2016,CHILDREN'S SERVICES,LONDON SOUTHWARK HOTEL LTD,"2,100.00",AIS - IHT,SECTION 17 PAYMENTS TO AGENCIES/CARERS,2102589563
08.11.2016,CHILDREN'S SERVICES,SOCIAL CARE ENTERPRISES LTD,"3,000.00",BUSINESS DEVELOPMENT,PROFESSIONAL FEES,5902221887
08.11.2016,CHILDREN'S SERVICES,LYNNE JACKSON LTD,"1,060.80",CARE PRACTICE GROUP SET C,OTHER PAYMENTS FOR CLIENTS,5902221915
08.11.2016,CHILDREN'S SERVICES,HEALTHCARE & TRANSPORT SERVICE,"49,497.75",HOME 2 SCHOOL TRANSPORT,CAB FARES,5902221785
08.11.2016,CHILDREN'S SERVICES,MEDEQUIP ASSISTIVE TECHNOLOGY LTD,"150,049.17",ICES CONTRACT,EQUIPMENT PURCHASE & REPAIR,5902221928
08.11.2016,CHILDREN'S SERVICES,ASSET GROVE LETTINGS LTD,"1,395.00",INTENTIONALLY HOMELESS PLACEMENTS,SECTION 17 PAYMENTS TO AGENCIES/CARERS,2102589582
08.11.2016,CHILDREN'S SERVICES,CITYGLEN LTD,"1,014.00",INTENTIONALLY HOMELESS PLACEMENTS,SECTION 17 PAYMENTS TO AGENCIES/CARERS,2102589554
08.11.2016,CHILDREN'S SERVICES,CITYGLEN LTD,"1,519.00",INTENTIONALLY HOMELESS PLACEMENTS,SECTION 17 PAYMENTS TO AGENCIES/CARERS,2102589544
08.11.2016,CHILDREN'S SERVICES,CITYGLEN LTD,"1,860.00",INTENTIONALLY HOMELESS PLACEMENTS,SECTION 17 PAYMENTS TO AGENCIES/CARERS,2102589550
08.11.2016,CHILDREN'S SERVICES,SPORTY MINTS COMMUNITY GROUP,350.00,MINT STREET,EXTERNAL AGENCIES AND BODIES,5902221923
08.11.2016,CHILDREN'S SERVICES,SPORTY MINTS COMMUNITY GROUP,420.00,MINT STREET,EXTERNAL AGENCIES AND BODIES,5902221923
08.11.2016,CHILDREN'S SERVICES,SPORTY MINTS COMMUNITY GROUP,525.00,MINT STREET,EXTERNAL AGENCIES AND BODIES,5902221923
08.11.2016,CHILDREN'S SERVICES,SOUTH LONDON ADOPTION CONSORTIUM,"-1,600.00",POST ADOPTION ADVISE & SUPPORT,EXTERNAL AGENCIES AND BODIES,5902222193
08.11.2016,CHILDREN'S SERVICES,SOUTH LONDON ADOPTION CONSORTIUM,"1,600.00",POST ADOPTION ADVISE & SUPPORT,EXTERNAL AGENCIES AND BODIES,5902219323
08.11.2016,CHILDREN'S SERVICES,CREATING CARE CHOICES LTD,"7,007.91",RESIDENTIAL,RESIDENTIAL CARE,2102589605
08.11.2016,CHILDREN'S SERVICES,REDACTED PERSONAL DATA,"43,330.47",RESIDENTIAL,RESIDENTIAL CARE,2102589606
08.11.2016,CHILDREN'S SERVICES,SHALAMAR CHILDREN LTD,"10,344.00",RESIDENTIAL,RESIDENTIAL CARE,5902221897
08.11.2016,CHILDREN'S SERVICES,ZENITH CARS LTD,875.00,S & FAM SUPP - PRAC GRP A SET 14-16,HIRED VEHICLES,5902221925
08.11.2016,CHILDREN'S SERVICES,CITYGLEN LTD,"1,860.00",S & FAM SUPP - PRAC GRP A SET 14-16,SECTION 17 PAYMENTS TO AGENCIES/CARERS,2102589552
08.11.2016,CHILDREN'S SERVICES,ZENITH CARS LTD,526.00,S & FAM SUPP - PRAC GRP D SET 23-25,HIRED VEHICLES,5902221925
08.11.2016,CHILDREN'S SERVICES,CITYGLEN LTD,"1,209.00",S & FAM SUPP - PRAC GRP E SET 26-28,SECTION 17 PAYMENTS TO AGENCIES/CARERS,2102589548
08.11.2016,CHILDREN'S SERVICES,ZENITH CARS LTD,"1,194.00",S & FAM SUPP - PRAC GRP F SET 29-31,HIRED VEHICLES,5902221925
08.11.2016,CHILDREN'S SERVICES,RELA SUPPORT SERVICES LTD,"4,800.00",S24 CLA,EXTERNAL AGENCIES AND BODIES,2102589649
08.11.2016,CHILDREN'S SERVICES,SANCTUARY CARE SERVICES LTD,"3,515.00",S24 CLA,EXTERNAL AGENCIES AND BODIES,5902221898
08.11.2016,CHILDREN'S SERVICES,SANCTUARY CARE SERVICES LTD,"3,800.00",S24 CLA,EXTERNAL AGENCIES AND BODIES,5902221901
08.11.2016,CHILDREN'S SERVICES,THE ARTEMIS TEAM LTD,"3,136.32",S24 CLA,EXTERNAL AGENCIES AND BODIES,2102589620
08.11.2016,CHILDREN'S SERVICES,CREATING LIFESTYLES,"3,180.00",S24 CLA,RESIDENTIAL CARE,2102589613
08.11.2016,CHILDREN'S SERVICES,CREATING LIFESTYLES,"6,840.00",S24 CLA,RESIDENTIAL CARE,2102589624
08.11.2016,CHILDREN'S SERVICES,FUTURE FOUNDATIONS LTD,"1,722.71",S24 CLA,RESIDENTIAL CARE,2102589571
08.11.2016,CHILDREN'S SERVICES,FUTURE FOUNDATIONS LTD,"1,864.28",S24 CLA,RESIDENTIAL CARE,2102589577
08.11.2016,CHILDREN'S SERVICES,FUTURE FOUNDATIONS LTD,"2,598.71",S24 CLA,RESIDENTIAL CARE,2102589573
08.11.2016,CHILDREN'S SERVICES,METROPOLITAN HOUSING TRUST,763.60,S24 CLA,RESIDENTIAL CARE,5902221737
08.11.2016,CHILDREN'S SERVICES,PHASE II CARE LTD,"2,438.57",S24 CLA,RESIDENTIAL CARE,2102589617
08.11.2016,CHILDREN'S SERVICES,PHASE II CARE LTD,"2,519.86",S24 CLA,RESIDENTIAL CARE,2102589615
08.11.2016,CHILDREN'S SERVICES,PHASE II CARE LTD,"2,519.86",S24 CLA,RESIDENTIAL CARE,2102589619
08.11.2016,CHILDREN'S SERVICES,YOUNG LONDON TODAY,"3,764.02",S24 CLA,RESIDENTIAL CARE,2102589580
08.11.2016,CHILDREN'S SERVICES,PHASE II CARE LTD,"3,817.42",SEMI INDEPENDENT,EXTERNAL AGENCIES AND BODIES,2102589609
08.11.2016,CHILDREN'S SERVICES,PHASE II CARE LTD,"3,951.42",SEMI INDEPENDENT,EXTERNAL AGENCIES AND BODIES,2102589607
08.11.2016,CHILDREN'S SERVICES,PHASE II CARE LTD,"4,083.13",SEMI INDEPENDENT,EXTERNAL AGENCIES AND BODIES,2102589610
08.11.2016,CHILDREN'S SERVICES,PHASE II CARE LTD,"4,217.13",SEMI INDEPENDENT,EXTERNAL AGENCIES AND BODIES,2102589608
08.11.2016,CHILDREN'S SERVICES,RELA SUPPORT SERVICES LTD,"4,800.00",SEMI INDEPENDENT,EXTERNAL AGENCIES AND BODIES,2102589648
08.11.2016,CHILDREN'S SERVICES,CREATING LIFESTYLES,"2,980.00",SEMI INDEPENDENT,RESIDENTIAL CARE,2102589611
08.11.2016,CHILDREN'S SERVICES,RELA SUPPORT SERVICES LTD,"4,000.00",SEMI INDEPENDENT,RESIDENTIAL CARE,2102589584
08.11.2016,CHILDREN'S SERVICES,YOUNG FUTURES,"3,471.48",SEMI INDEPENDENT,RESIDENTIAL CARE,2102589567
08.11.2016,CHILDREN'S SERVICES,LOGICOUS LTD,916.56,SPECIAL GUARDIANSHIP,EXTERNAL AGENCIES AND BODIES,5902221891
08.11.2016,CHILDREN'S SERVICES,CONTACT PROFESSIONALS,388.00,SPECIALIST CARE,SECTION 17 PAYMENTS TO AGENCIES/CARERS,2102589592
08.11.2016,CHILDREN'S SERVICES,CONTACT PROFESSIONALS,456.00,SPECIALIST CARE,SECTION 17 PAYMENTS TO AGENCIES/CARERS,2102589583
08.11.2016,CHILDREN'S SERVICES,MEDACS HOMECARE,274.17,SPECIALIST CARE,SECTION 17 PAYMENTS TO AGENCIES/CARERS,2102589557
08.11.2016,CHILDREN'S SERVICES,MEDACS HOMECARE,274.17,SPECIALIST CARE,SECTION 17 PAYMENTS TO AGENCIES/CARERS,2102589560
08.11.2016,CHILDREN'S SERVICES,MEDACS HOMECARE,288.60,SPECIALIST CARE,SECTION 17 PAYMENTS TO AGENCIES/CARERS,2102589558
08.11.2016,CHILDREN'S SERVICES,MEDACS HOMECARE,346.32,SPECIALIST CARE,SECTION 17 PAYMENTS TO AGENCIES/CARERS,2102589547
08.11.2016,CHILDREN'S SERVICES,MEDACS HOMECARE,346.32,SPECIALIST CARE,SECTION 17 PAYMENTS TO AGENCIES/CARERS,2102589551
08.11.2016,CHILDREN'S SERVICES,MEDACS HOMECARE,432.90,SPECIALIST CARE,SECTION 17 PAYMENTS TO AGENCIES/CARERS,2102589566
08.11.2016,CHILDREN'S SERVICES,MEDACS HOMECARE,432.90,SPECIALIST CARE,SECTION 17 PAYMENTS TO AGENCIES/CARERS,2102589576
08.11.2016,CHILDREN'S SERVICES,MEDACS HOMECARE,577.20,SPECIALIST CARE,SECTION 17 PAYMENTS TO AGENCIES/CARERS,2102589570
08.11.2016,CHILDREN'S SERVICES,MEDACS HOMECARE,649.35,SPECIALIST CARE,SECTION 17 PAYMENTS TO AGENCIES/CARERS,2102589539
08.11.2016,CHILDREN'S SERVICES,MEDACS HOMECARE,"3,333.33",SPECIALIST CARE,SECTION 17 PAYMENTS TO AGENCIES/CARERS,2102589555
08.11.2016,CHILDREN'S SERVICES,THORNBURY NURSING SERVICES,958.04,SPECIALIST CARE,SECTION 17 PAYMENTS TO AGENCIES/CARERS,2102589586
08.11.2016,CHILDREN'S SERVICES,THORNBURY NURSING SERVICES,"3,343.08",SPECIALIST CARE,SECTION 17 PAYMENTS TO AGENCIES/CARERS,2102589590
08.11.2016,CHILDREN'S SERVICES,BY THE BRIDGE LTD,"1,550.00",STAYING PUT,EXTERNAL AGENCIES AND BODIES,2102589614
08.11.2016,CHILDREN'S SERVICES,BY THE BRIDGE LTD,"1,550.00",STAYING PUT,EXTERNAL AGENCIES AND BODIES,2102589618
08.11.2016,CHILDREN'S SERVICES,SECOM PLC,-295.69,THOMAS CALTON CENTRE,OTHER R&M,5902218895
08.11.2016,CHILDREN'S SERVICES,RICOH UK LTD,"1,056.17",THOMAS CALTON CENTRE,PRINTING,5902220797
08.11.2016,CHILDREN'S SERVICES,THE ARTEMIS TEAM LTD,"1,936.50",UASC SECTION 24,EXTERNAL AGENCIES AND BODIES,2102589612
08.11.2016,CHILDREN'S SERVICES,THE ARTEMIS TEAM LTD,"3,240.00",UASC SECTION 24,EXTERNAL AGENCIES AND BODIES,2102589622
08.11.2016,CHILDREN'S SERVICES,THE ARTEMIS TEAM LTD,"3,240.00",UASC SECTION 24,EXTERNAL AGENCIES AND BODIES,2102589623
08.11.2016,CHILDREN'S SERVICES,THE ARTEMIS TEAM LTD,"3,423.04",UASC SECTION 24,EXTERNAL AGENCIES AND BODIES,2102589616
08.11.2016,CUSTOMER EXPERIENCE HGF,CROWN HOUSING LTD,"16,250.50",NIGHTLY TA (NSC),EXTERNAL AGENCIES AND BODIES,5902221774
08.11.2016,CUSTOMER EXPERIENCE HGF,EDEN ESTATES LONDON LTD,"4,929.00",NIGHTLY TA (NSC),EXTERNAL AGENCIES AND BODIES,5902221813
08.11.2016,CUSTOMER EXPERIENCE HGF,J & M OASIS LTD,"1,581.00",NIGHTLY TA (NSC),EXTERNAL AGENCIES AND BODIES,5902221917
08.11.2016,CUSTOMER EXPERIENCE HGF,QUINARY LTD,"2,662.90",NIGHTLY TA (NSC),EXTERNAL AGENCIES AND BODIES,5902221824
08.11.2016,CUSTOMER EXPERIENCE HGF,REDACTED PERSONAL DATA,"3,000.00",TEMP ACCOM - MNGMT,GRANTS,5902221850
08.11.2016,CUSTOMER EXPERIENCE HGF,REDACTED PERSONAL DATA,"3,500.00",TEMP ACCOM - MNGMT,GRANTS,5902221854
08.11.2016,CUSTOMER EXPERIENCE HGF,REDACTED PERSONAL DATA,"3,500.00",TEMP ACCOM - MNGMT,GRANTS,5902221857
08.11.2016,ELECTORAL SVCES,ROYAL MAIL GROUP LTD,559.14,ELECTORAL REGISTRATION,POSTAGES,5902221860
08.11.2016,ENVIRONMENT AND LEISURE,FABRIKAT (NOTTINGHAM) LTD,954.00,CAPITAL PS (LEISURE),CONSTR'N SUB CONTRACT - NON CERTIFICATED,5902221722
08.11.2016,ENVIRONMENT AND LEISURE,FABRIKAT (NOTTINGHAM) LTD,"8,278.20",CAPITAL PS (LEISURE),CONSTR'N SUB CONTRACT - NON CERTIFICATED,5902221722
08.11.2016,ENVIRONMENT AND LEISURE,CONWAY AECOM LTD,"3,659.93",CAPITAL PS (LEISURE),CONSTRUCTION,2102589841
08.11.2016,ENVIRONMENT AND LEISURE,CONWAY AECOM LTD,"5,021.55",CAPITAL PS (LEISURE),CONSTRUCTION,2102589835
08.11.2016,ENVIRONMENT AND LEISURE,CONWAY AECOM LTD,"5,960.28",CAPITAL PS (LEISURE),CONSTRUCTION,2102589839
08.11.2016,ENVIRONMENT AND LEISURE,CONWAY AECOM LTD,"7,029.59",CAPITAL PS (LEISURE),CONSTRUCTION,2102589840
08.11.2016,ENVIRONMENT AND LEISURE,CONWAY AECOM LTD,"8,584.84",CAPITAL PS (LEISURE),CONSTRUCTION,2102589837
08.11.2016,ENVIRONMENT AND LEISURE,CONWAY AECOM LTD,"8,654.87",CAPITAL PS (LEISURE),CONSTRUCTION,2102589827
08.11.2016,ENVIRONMENT AND LEISURE,CONWAY AECOM LTD,"8,970.94",CAPITAL PS (LEISURE),CONSTRUCTION,2102589842
08.11.2016,ENVIRONMENT AND LEISURE,CONWAY AECOM LTD,"10,621.84",CAPITAL PS (LEISURE),CONSTRUCTION,2102589836
08.11.2016,ENVIRONMENT AND LEISURE,CONWAY AECOM LTD,"22,647.20",CAPITAL PS (LEISURE),CONSTRUCTION,2102589826
08.11.2016,ENVIRONMENT AND LEISURE,CONWAY AECOM LTD,"29,106.39",CAPITAL PS (LEISURE),CONSTRUCTION,2102589825
08.11.2016,ENVIRONMENT AND LEISURE,CONWAY AECOM LTD,"62,869.28",CAPITAL PS (LEISURE),CONSTRUCTION,2102589838
08.11.2016,ENVIRONMENT AND LEISURE,ELLIOTT J - DESIGN,280.00,CAPITAL PS (LEISURE),CONSTRUCTION FEES,5902221920
08.11.2016,ENVIRONMENT AND LEISURE,ELLIOTT J - DESIGN,300.00,CAPITAL PS (LEISURE),CONSTRUCTION FEES,5902221920
08.11.2016,ENVIRONMENT AND LEISURE,HARRISON DESIGN DEVELOPMENT LTD,800.00,CAPITAL PS (LEISURE),CONSTRUCTION FEES  - EXTERNAL,5902221707
08.11.2016,ENVIRONMENT DIRECTORATE,LEX AUTOLEASE,-524.18,CAR LEASING CTRL A/C,VEHICLE LEASING CHARGES,5902221819
08.11.2016,ENVIRONMENT DIRECTORATE,LEX AUTOLEASE,880.65,CAR LEASING CTRL A/C,VEHICLE LEASING CHARGES,5902221816
08.11.2016,ENVIRONMENT DIRECTORATE,GULLIVERS TRUCK HIRE LTD,265.00,COMMERCIAL VEH CTRL A/C,HIRED VEHICLES,5902221802
08.11.2016,ENVIRONMENT DIRECTORATE,CONWAY AECOM LTD,785.59,HIGHWAYS RECOVERABLE WORKS,HIGHWAYS TERM CONTRACT,2102589833
08.11.2016,ENVIRONMENT DIRECTORATE,CONWAY AECOM LTD,"1,174.90",HIGHWAYS RECOVERABLE WORKS,HIGHWAYS TERM CONTRACT,2102589831
08.11.2016,ENVIRONMENT DIRECTORATE,ENVIRO TECHNOLOGY SERVICES PLC,"1,085.00",LICENSING,STATIONERY,5902221821
08.11.2016,ENVIRONMENT DIRECTORATE,ENVIRO TECHNOLOGY SERVICES PLC,"1,650.00",LICENSING,STATIONERY,5902221817
08.11.2016,ENVIRONMENT DIRECTORATE,CONTEGO SAFETY SOLUTIONS LTD,668.85,MANAGEMENT TEAM,MATERIALS,5902221708
08.11.2016,ENVIRONMENT DIRECTORATE,P D CONSTRUCTION LTD,492.00,PARKS TECH UNIT (PREMISES),OTHER R&M,5902221732
08.11.2016,ENVIRONMENT DIRECTORATE,CONWAY AECOM LTD,"1,854.35",STRUCTURES RECOVERABLE WORKS,HIGHWAYS TERM CONTRACT,2102589834
08.11.2016,F & C S EXCLUDING CORPORATE BUDGETS,CAPITA BUSINESS SERVICES LTD,"21,199.74",CAPITA,OTHER CONTRACTORS,5902221908
08.11.2016,F & C S EXCLUDING CORPORATE BUDGETS,THOMSON REUTERS,262.64,LEGAL SVCES MANAGEMENT,SUBSCRIPTIONS,5902221858
08.11.2016,F & C S EXCLUDING CORPORATE BUDGETS,THOMSON REUTERS,"7,165.36",LEGAL SVCES MANAGEMENT,SUBSCRIPTIONS,5902221865
08.11.2016,HOUSING,A T & T (GB LTD ),"2,112.00",STORES,CREDITORS -GR/IR CLEARING ACCOUNT,5902221720
08.11.2016,HOUSING,AGENTIS WORKWEAR LTD,-330.00,STORES,CREDITORS -GR/IR CLEARING ACCOUNT,5902221716
08.11.2016,HOUSING,AGENTIS WORKWEAR LTD,310.20,STORES,CREDITORS -GR/IR CLEARING ACCOUNT,5902221715
08.11.2016,HOUSING,AGENTIS WORKWEAR LTD,330.00,STORES,CREDITORS -GR/IR CLEARING ACCOUNT,5902221709
08.11.2016,HOUSING,AGENTIS WORKWEAR LTD,350.00,STORES,CREDITORS -GR/IR CLEARING ACCOUNT,5902221711
08.11.2016,HOUSING,AGENTIS WORKWEAR LTD,935.55,STORES,CREDITORS -GR/IR CLEARING ACCOUNT,5902221709
08.11.2016,HOUSING,KENT COUNTY COUNCIL,"54,785.79",SUPPLY OF ELECTRICITY,ELECTRICITY,DIRECT DEBIT PAYMENT
08.11.2016,HOUSING,KENT COUNTY COUNCIL,"75,016.11",SUPPLY OF ELECTRICITY,ELECTRICITY,DIRECT DEBIT PAYMENT
08.11.2016,HOUSING HRA,BLAKENEY LEIGH LTD,"16,562.32",CAPITAL PS (HRA),CONSTRUCTION FEES  - EXTERNAL,5902221879
08.11.2016,HOUSING HRA,CALFORD SEADEN LLP,"2,353.14",CAPITAL PS (HRA),CONSTRUCTION FEES  - EXTERNAL,5902221759
08.11.2016,HOUSING HRA,ADAM KHAN ARCHITECTS LTD,"89,235.00",CAPITAL PS (REGEN),CONSTRUCTION FEES,5902221762
08.11.2016,HOUSING HRA,ADAM KHAN ARCHITECTS LTD,"126,833.27",CAPITAL PS (REGEN),CONSTRUCTION FEES,5902221761
08.11.2016,HOUSING HRA,SYNTEGRA CONSULTING LTD,"1,650.00",CAPITAL PS (REGEN),CONSTRUCTION FEES,5902221926
08.11.2016,LEISURE DIRECTORATE,LEONI BULLCOCK,"3,250.00",ARTS PROJECT,FREELANCE SPECIALISTS,5902221823
08.11.2016,LEISURE DIRECTORATE,SECOM PLC,-641.75,BRANDON LIBRARY,OP LEASE/HIRE CHARGES:PLANT/EQUIP/FURNIT,5902221845
08.11.2016,LEISURE DIRECTORATE,SECOM PLC,374.36,BRANDON LIBRARY,OP LEASE/HIRE CHARGES:PLANT/EQUIP/FURNIT,5902221833
08.11.2016,LEISURE DIRECTORATE,SECOM PLC,641.75,BRANDON LIBRARY,OP LEASE/HIRE CHARGES:PLANT/EQUIP/FURNIT,5902221829
08.11.2016,LEISURE DIRECTORATE,P D CONSTRUCTION LTD,330.00,BURGESS AREA TEAM,OTHER R&M,5902221738
08.11.2016,LEISURE DIRECTORATE,P D CONSTRUCTION LTD,"1,365.00",BURGESS PARK COMMUNITY SPORTS CENTRE,OTHER R&M,5902221746
08.11.2016,LEISURE DIRECTORATE,A & H PEST CONTROL LTD,"1,960.00",FACILITIES MAINTENANCE,BUILDING R&M,5902221766
08.11.2016,LEISURE DIRECTORATE,FUSION LIFESTYLE,544.27,FACILITIES MAINTENANCE,BUILDING R&M,5902221758
08.11.2016,LEISURE DIRECTORATE,FUSION LIFESTYLE,"1,021.36",FACILITIES MAINTENANCE,BUILDING R&M,5902221765
08.11.2016,LEISURE DIRECTORATE,SIMPLY HIRE LTD,417.86,FACILITIES MAINTENANCE,BUILDING R&M,5902221754
08.11.2016,LEISURE DIRECTORATE,P D CONSTRUCTION LTD,400.00,PECKHAM RYE AREA TEAM,OTHER R&M,5902221744
08.11.2016,LEISURE DIRECTORATE,COMPLETE ECOLOGY LIMITED,400.00,SOUTHWARK AREA TEAM,GROUNDS MAINTENANCE,5902221885
08.11.2016,LEISURE DIRECTORATE,ASKEWS & HOLTS LIBRARY SERVICES LTD,341.20,STOCK SERVICES,BOOKS & PUBLICATIONS,5902221718
08.11.2016,LEISURE DIRECTORATE,INCENTIVE QAS LTD,"1,330.17",TEMPORARY NEWINGTON,PREMISES CLEANING,5902221760
08.11.2016,MODERNISATION HGF,CROYDON COLLEGE,"2,950.00",ORGANISATIONAL DEVELOPMENT,TRAINING,5902221869
08.11.2016,MODERNISATION HGF,VIRGIN MEDIA,"16,581.04",TECHNOLOGY,DATA COMMUNICATIONS,5902221918
08.11.2016,PLANNING AND TRANSPORT,ADLER MANUFACTURING LTD,386.49,BUILDING CONTROL,OFFICE EXPENSES,5902221927
08.11.2016,PLANNING AND TRANSPORT,ADLER MANUFACTURING LTD,459.23,BUILDING CONTROL,OFFICE EXPENSES,5902221886
08.11.2016,REGENERATION,WE MADE THAT LLP,"6,211.00",OLD KENT RD-FEES/MPLAN,PROFESSIONAL FEES,5902221751
08.11.2016,REGENERATION,RIDGE & PARTNERS LLP,695.00,SOUTHWARK REGEN IN PARTNERSHIP PROGRAMME,PROFESSIONAL FEES,5902221894
08.11.2016,REGENERATION,RIDGE & PARTNERS LLP,"4,350.00",SOUTHWARK REGEN IN PARTNERSHIP PROGRAMME,PROFESSIONAL FEES,5902221890
08.11.2016,REGENERATION,HANNAH MAULE-FFINCH,750.00,STAKEHOLDER ENGAGEMENT,MARKETING & PUBLICITY SERVICES,5902221888
08.11.2016,RESIDENT SERVICES,EDF ENERGY PLC,414.36,BERMONDSEY,ELECTRICITY,5902221921
08.11.2016,RESIDENT SERVICES,HARRADINES REMOVALS,"4,963.50",OPERATIONS/OFFICES ACCOMMODATION,REMOVAL EXPENSES,5902221799
08.11.2016,RESIDENT SERVICES,HARRADINES REMOVALS,"17,185.00",OPERATIONS/OFFICES ACCOMMODATION,REMOVAL EXPENSES,5902221803
08.11.2016,RESIDENT SERVICES,EDF ENERGY PLC,-492.80,TA HOSTELS,ELECTRICITY,5902221756
08.11.2016,RESIDENT SERVICES,EDF ENERGY PLC,-492.80,TA HOSTELS,ELECTRICITY,5902221805
08.11.2016,RESIDENT SERVICES,EDF ENERGY PLC,492.80,TA HOSTELS,ELECTRICITY,5902221730
08.11.2016,RESIDENT SERVICES,EDF ENERGY PLC,492.80,TA HOSTELS,ELECTRICITY,5902221795
08.11.2016,RESIDENT SERVICES HGF,THAMES WATER UTILITIES LTD,"1,026.83",BRIDEALE,WATER,5902221844
09.11.2016,ADULT SOCIAL CARE,MIHOMECARE LTD,878.82, OP CARE PACKAGES,HOMECARE - C&V,2102590819
09.11.2016,ADULT SOCIAL CARE,MIHOMECARE LTD,"3,098.76", OP CARE PACKAGES,HOMECARE - C&V,2102590837
09.11.2016,ADULT SOCIAL CARE,MIHOMECARE LTD,783.02,HOME CARE C&V,HOMECARE - C&V,2102590831
09.11.2016,ADULT SOCIAL CARE,MIHOMECARE LTD,932.96,HOME CARE C&V,HOMECARE - C&V,2102590827
09.11.2016,ADULT SOCIAL CARE,MIHOMECARE LTD,"1,199.91",HOME CARE C&V,HOMECARE - C&V,2102590839
09.11.2016,ADULT SOCIAL CARE,MIHOMECARE LTD,"1,482.74",HOME CARE C&V,HOMECARE - C&V,2102590838
09.11.2016,ADULT SOCIAL CARE,MIHOMECARE LTD,283.22,OP - HOMECARE,HOMECARE - C&V,2102590803
09.11.2016,ADULT SOCIAL CARE,MIHOMECARE LTD,312.38,OP - HOMECARE,HOMECARE - C&V,2102590804
09.11.2016,ADULT SOCIAL CARE,MIHOMECARE LTD,424.83,OP - HOMECARE,HOMECARE - C&V,2102590828
09.11.2016,ADULT SOCIAL CARE,MIHOMECARE LTD,433.16,OP - HOMECARE,HOMECARE - C&V,2102590807
09.11.2016,ADULT SOCIAL CARE,MIHOMECARE LTD,470.65,OP - HOMECARE,HOMECARE - C&V,2102590815
09.11.2016,ADULT SOCIAL CARE,MIHOMECARE LTD,483.14,OP - HOMECARE,HOMECARE - C&V,2102590808
09.11.2016,ADULT SOCIAL CARE,MIHOMECARE LTD,487.31,OP - HOMECARE,HOMECARE - C&V,2102590818
09.11.2016,ADULT SOCIAL CARE,MIHOMECARE LTD,487.31,OP - HOMECARE,HOMECARE - C&V,2102590823
09.11.2016,ADULT SOCIAL CARE,MIHOMECARE LTD,499.80,OP - HOMECARE,HOMECARE - C&V,2102590813
09.11.2016,ADULT SOCIAL CARE,MIHOMECARE LTD,524.79,OP - HOMECARE,HOMECARE - C&V,2102590806
09.11.2016,ADULT SOCIAL CARE,MIHOMECARE LTD,537.29,OP - HOMECARE,HOMECARE - C&V,2102590816
09.11.2016,ADULT SOCIAL CARE,MIHOMECARE LTD,649.74,OP - HOMECARE,HOMECARE - C&V,2102590809
09.11.2016,ADULT SOCIAL CARE,MIHOMECARE LTD,666.40,OP - HOMECARE,HOMECARE - C&V,2102590830
09.11.2016,ADULT SOCIAL CARE,MIHOMECARE LTD,699.72,OP - HOMECARE,HOMECARE - C&V,2102590836
09.11.2016,ADULT SOCIAL CARE,MIHOMECARE LTD,724.71,OP - HOMECARE,HOMECARE - C&V,2102590822
09.11.2016,ADULT SOCIAL CARE,MIHOMECARE LTD,778.86,OP - HOMECARE,HOMECARE - C&V,2102590812
09.11.2016,ADULT SOCIAL CARE,MIHOMECARE LTD,849.66,OP - HOMECARE,HOMECARE - C&V,2102590829
09.11.2016,ADULT SOCIAL CARE,MIHOMECARE LTD,866.32,OP - HOMECARE,HOMECARE - C&V,2102590835
09.11.2016,ADULT SOCIAL CARE,MIHOMECARE LTD,882.98,OP - HOMECARE,HOMECARE - C&V,2102590811
09.11.2016,ADULT SOCIAL CARE,MIHOMECARE LTD,953.12,OP - HOMECARE,HOMECARE - C&V,2102590840
09.11.2016,ADULT SOCIAL CARE,MIHOMECARE LTD,966.28,OP - HOMECARE,HOMECARE - C&V,2102590834
09.11.2016,ADULT SOCIAL CARE,MIHOMECARE LTD,"1,466.08",OP - HOMECARE,HOMECARE - C&V,2102590810
09.11.2016,ADULT SOCIAL CARE,MIHOMECARE LTD,"1,749.30",OP - HOMECARE,HOMECARE - C&V,2102590814
09.11.2016,ADULT SOCIAL CARE,MIHOMECARE LTD,"2,482.34",OP - HOMECARE,HOMECARE - C&V,2102590833
09.11.2016,ADULT SOCIAL CARE,MIHOMECARE LTD,"2,657.27",OP - HOMECARE,HOMECARE - C&V,2102590826
09.11.2016,ADULT SOCIAL CARE,MIHOMECARE LTD,"5,197.92",OP - HOMECARE,HOMECARE - C&V,2102590832
09.11.2016,ADULT SOCIAL CARE,SAFFRONLAND HOMES,294.56,PERSONAL BUDGET - SOCIAL CARE,OTHER PAYMENTS FOR CLIENTS,2102589849
09.11.2016,ADULT SOCIAL CARE,MIHOMECARE LTD,308.21,REABLEMENT SERVICE,HOMECARE - C&V,2102590805
09.11.2016,ADULT SOCIAL CARE,PANCHSHEEL GLOBAL PVT LTD,"2,708.02",SAFEGUARDING TEAM,EXTERNAL AGENCIES AND BODIES,5902222081
09.11.2016,ASSET MANAGEMENT,PHILCOX GRAY & CO,"13,000.00",DISREPAIR,LEGAL FEES & COURT COSTS,5902222165
09.11.2016,ASSET MANAGEMENT,FRANKHAM CONSULTANCY GROUP LTD,"5,750.00",FRA WORKS,PROFESSIONAL FEES,5902221997
09.11.2016,ASSET MANAGEMENT,BRIDGEWATER ROOFING CONTRACTORS LTD,610.00,R&M CONTRACTS (NORTH),OTHER R&M,2102590945
09.11.2016,CHIEF EXECUTIVE,STREETSCAPE,"1,486.41",CAPITAL PS (REGEN),CONSTRUCTION,5902222020
09.11.2016,CHIEF EXECUTIVE,ERECT ARCHITECTURE LTD,"5,075.00",CAPITAL PS (REGEN),CONSTRUCTION FEES,5902221624
09.11.2016,CHIEF EXECUTIVE'S OFFICE,COLIN WRIGHT,"2,058.27",BUSINESS SUPPORT,GRANTS,5902222111
09.11.2016,CHILDREN AND ADULT,MORGAN SINDALL PLC,"51,266.12",CAPITAL PS (EDUCATION),CONST'N MAIN CONTRACT - NON CERTIFICATED,2102590921
09.11.2016,CHILDREN AND ADULT,ROBERT BROWNING PRIMARY SCHOOL,"56,698.96",CAPITAL PS (EDUCATION),CONST'N MAIN CONTRACT - NON CERTIFICATED,5902222084
09.11.2016,CHILDREN AND ADULT,MORGAN SINDALL PLC,"17,499.47",CAPITAL PS (EDUCATION),CONSTRUCTION,2102590922
09.11.2016,CHILDREN'S SERVICES,CITY OF LONDON ACADEMY,"1,919.19",ACADEMIES SECONDARY,STATEMENTED FEES,2102590866
09.11.2016,CHILDREN'S SERVICES,CITY OF LONDON ACADEMY,"4,307.41",ACADEMIES SECONDARY,STATEMENTED FEES,2102590865
09.11.2016,CHILDREN'S SERVICES,CITY OF LONDON ACADEMY,"4,859.84",ACADEMIES SECONDARY,STATEMENTED FEES,2102590863
09.11.2016,CHILDREN'S SERVICES,CITY OF LONDON ACADEMY,"5,532.75",ACADEMIES SECONDARY,STATEMENTED FEES,2102590864
09.11.2016,CHILDREN'S SERVICES,CITY OF LONDON ACADEMY,"35,166.50",ACADEMIES SECONDARY,STATEMENTED FEES,2102590867
09.11.2016,CHILDREN'S SERVICES,LEWISHAM COUNCIL,"6,163.24",ACADEMIES SECONDARY,STATEMENTED FEES,2102590862
09.11.2016,CHILDREN'S SERVICES,LEWISHAM COUNCIL,"6,163.25",ACADEMIES SECONDARY,STATEMENTED FEES,2102590861
09.11.2016,CHILDREN'S SERVICES,REVIVAL,880.00,ADMIN SUMNER,MEDICAL / HEALTH & SAFETY SERVICES,5902222005
09.11.2016,CHILDREN'S SERVICES,REDACTED PERSONAL DATA,252.90,ADOPTION PLACEMENTS & INTER AGENCY,PAYMENTS TO CARERS,2102590137
09.11.2016,CHILDREN'S SERVICES,REDACTED PERSONAL DATA,253.56,ADOPTION PLACEMENTS & INTER AGENCY,PAYMENTS TO CARERS,2102590026
09.11.2016,CHILDREN'S SERVICES,REDACTED PERSONAL DATA,255.22,ADOPTION PLACEMENTS & INTER AGENCY,PAYMENTS TO CARERS,2102590050
09.11.2016,CHILDREN'S SERVICES,REDACTED PERSONAL DATA,255.22,ADOPTION PLACEMENTS & INTER AGENCY,PAYMENTS TO CARERS,2102590170
09.11.2016,CHILDREN'S SERVICES,REDACTED PERSONAL DATA,255.22,ADOPTION PLACEMENTS & INTER AGENCY,PAYMENTS TO CARERS,2102590066
09.11.2016,CHILDREN'S SERVICES,REDACTED PERSONAL DATA,255.22,ADOPTION PLACEMENTS & INTER AGENCY,PAYMENTS TO CARERS,2102590080
09.11.2016,CHILDREN'S SERVICES,REDACTED PERSONAL DATA,256.54,ADOPTION PLACEMENTS & INTER AGENCY,PAYMENTS TO CARERS,2102590068
09.11.2016,CHILDREN'S SERVICES,REDACTED PERSONAL DATA,263.24,ADOPTION PLACEMENTS & INTER AGENCY,PAYMENTS TO CARERS,2102590144
09.11.2016,CHILDREN'S SERVICES,REDACTED PERSONAL DATA,269.22,ADOPTION PLACEMENTS & INTER AGENCY,PAYMENTS TO CARERS,2102590075
09.11.2016,CHILDREN'S SERVICES,REDACTED PERSONAL DATA,278.52,ADOPTION PLACEMENTS & INTER AGENCY,PAYMENTS TO CARERS,2102590054
09.11.2016,CHILDREN'S SERVICES,REDACTED PERSONAL DATA,281.42,ADOPTION PLACEMENTS & INTER AGENCY,PAYMENTS TO CARERS,2102590146
09.11.2016,CHILDREN'S SERVICES,REDACTED PERSONAL DATA,293.26,ADOPTION PLACEMENTS & INTER AGENCY,PAYMENTS TO CARERS,2102590019
09.11.2016,CHILDREN'S SERVICES,REDACTED PERSONAL DATA,293.98,ADOPTION PLACEMENTS & INTER AGENCY,PAYMENTS TO CARERS,2102590076
09.11.2016,CHILDREN'S SERVICES,REDACTED PERSONAL DATA,303.32,ADOPTION PLACEMENTS & INTER AGENCY,PAYMENTS TO CARERS,2102590104
09.11.2016,CHILDREN'S SERVICES,REDACTED PERSONAL DATA,316.50,ADOPTION PLACEMENTS & INTER AGENCY,PAYMENTS TO CARERS,2102590037
09.11.2016,CHILDREN'S SERVICES,REDACTED PERSONAL DATA,316.50,ADOPTION PLACEMENTS & INTER AGENCY,PAYMENTS TO CARERS,2102590103
09.11.2016,CHILDREN'S SERVICES,REDACTED PERSONAL DATA,329.16,ADOPTION PLACEMENTS & INTER AGENCY,PAYMENTS TO CARERS,2102590040
09.11.2016,CHILDREN'S SERVICES,REDACTED PERSONAL DATA,329.16,ADOPTION PLACEMENTS & INTER AGENCY,PAYMENTS TO CARERS,2102590095
09.11.2016,CHILDREN'S SERVICES,REDACTED PERSONAL DATA,329.42,ADOPTION PLACEMENTS & INTER AGENCY,PAYMENTS TO CARERS,2102590072
09.11.2016,CHILDREN'S SERVICES,REDACTED PERSONAL DATA,352.74,ADOPTION PLACEMENTS & INTER AGENCY,PAYMENTS TO CARERS,2102590079
09.11.2016,CHILDREN'S SERVICES,REDACTED PERSONAL DATA,354.76,ADOPTION PLACEMENTS & INTER AGENCY,PAYMENTS TO CARERS,2102590059
09.11.2016,CHILDREN'S SERVICES,REDACTED PERSONAL DATA,359.44,ADOPTION PLACEMENTS & INTER AGENCY,PAYMENTS TO CARERS,2102590031
09.11.2016,CHILDREN'S SERVICES,REDACTED PERSONAL DATA,359.44,ADOPTION PLACEMENTS & INTER AGENCY,PAYMENTS TO CARERS,2102590118
09.11.2016,CHILDREN'S SERVICES,REDACTED PERSONAL DATA,368.52,ADOPTION PLACEMENTS & INTER AGENCY,PAYMENTS TO CARERS,2102590124
09.11.2016,CHILDREN'S SERVICES,REDACTED PERSONAL DATA,375.54,ADOPTION PLACEMENTS & INTER AGENCY,PAYMENTS TO CARERS,2102590093
09.11.2016,CHILDREN'S SERVICES,REDACTED PERSONAL DATA,375.54,ADOPTION PLACEMENTS & INTER AGENCY,PAYMENTS TO CARERS,2102590168
09.11.2016,CHILDREN'S SERVICES,REDACTED PERSONAL DATA,375.54,ADOPTION PLACEMENTS & INTER AGENCY,PAYMENTS TO CARERS,2102590088
09.11.2016,CHILDREN'S SERVICES,REDACTED PERSONAL DATA,375.54,ADOPTION PLACEMENTS & INTER AGENCY,PAYMENTS TO CARERS,2102590176
09.11.2016,CHILDREN'S SERVICES,REDACTED PERSONAL DATA,375.54,ADOPTION PLACEMENTS & INTER AGENCY,PAYMENTS TO CARERS,2102590102
09.11.2016,CHILDREN'S SERVICES,REDACTED PERSONAL DATA,375.54,ADOPTION PLACEMENTS & INTER AGENCY,PAYMENTS TO CARERS,2102590039
09.11.2016,CHILDREN'S SERVICES,REDACTED PERSONAL DATA,375.54,ADOPTION PLACEMENTS & INTER AGENCY,PAYMENTS TO CARERS,2102590143
09.11.2016,CHILDREN'S SERVICES,REDACTED PERSONAL DATA,375.54,ADOPTION PLACEMENTS & INTER AGENCY,PAYMENTS TO CARERS,2102590098
09.11.2016,CHILDREN'S SERVICES,REDACTED PERSONAL DATA,375.54,ADOPTION PLACEMENTS & INTER AGENCY,PAYMENTS TO CARERS,2102590114
09.11.2016,CHILDREN'S SERVICES,REDACTED PERSONAL DATA,382.30,ADOPTION PLACEMENTS & INTER AGENCY,PAYMENTS TO CARERS,2102590090
09.11.2016,CHILDREN'S SERVICES,REDACTED PERSONAL DATA,382.30,ADOPTION PLACEMENTS & INTER AGENCY,PAYMENTS TO CARERS,2102590111
09.11.2016,CHILDREN'S SERVICES,REDACTED PERSONAL DATA,382.30,ADOPTION PLACEMENTS & INTER AGENCY,PAYMENTS TO CARERS,2102590173
09.11.2016,CHILDREN'S SERVICES,REDACTED PERSONAL DATA,386.16,ADOPTION PLACEMENTS & INTER AGENCY,PAYMENTS TO CARERS,2102590174
09.11.2016,CHILDREN'S SERVICES,REDACTED PERSONAL DATA,390.26,ADOPTION PLACEMENTS & INTER AGENCY,PAYMENTS TO CARERS,2102590086
09.11.2016,CHILDREN'S SERVICES,REDACTED PERSONAL DATA,400.18,ADOPTION PLACEMENTS & INTER AGENCY,PAYMENTS TO CARERS,2102590074
09.11.2016,CHILDREN'S SERVICES,REDACTED PERSONAL DATA,404.46,ADOPTION PLACEMENTS & INTER AGENCY,PAYMENTS TO CARERS,2102590138
09.11.2016,CHILDREN'S SERVICES,REDACTED PERSONAL DATA,405.42,ADOPTION PLACEMENTS & INTER AGENCY,PAYMENTS TO CARERS,2102590106
09.11.2016,CHILDREN'S SERVICES,REDACTED PERSONAL DATA,409.02,ADOPTION PLACEMENTS & INTER AGENCY,PAYMENTS TO CARERS,2102590132
09.11.2016,CHILDREN'S SERVICES,REDACTED PERSONAL DATA,409.02,ADOPTION PLACEMENTS & INTER AGENCY,PAYMENTS TO CARERS,2102590155
09.11.2016,CHILDREN'S SERVICES,REDACTED PERSONAL DATA,443.00,ADOPTION PLACEMENTS & INTER AGENCY,PAYMENTS TO CARERS,2102590134
09.11.2016,CHILDREN'S SERVICES,REDACTED PERSONAL DATA,451.80,ADOPTION PLACEMENTS & INTER AGENCY,PAYMENTS TO CARERS,2102590110
09.11.2016,CHILDREN'S SERVICES,REDACTED PERSONAL DATA,453.24,ADOPTION PLACEMENTS & INTER AGENCY,PAYMENTS TO CARERS,2102590161
09.11.2016,CHILDREN'S SERVICES,REDACTED PERSONAL DATA,453.24,ADOPTION PLACEMENTS & INTER AGENCY,PAYMENTS TO CARERS,2102590135
09.11.2016,CHILDREN'S SERVICES,REDACTED PERSONAL DATA,457.14,ADOPTION PLACEMENTS & INTER AGENCY,PAYMENTS TO CARERS,2102590024
09.11.2016,CHILDREN'S SERVICES,REDACTED PERSONAL DATA,465.48,ADOPTION PLACEMENTS & INTER AGENCY,PAYMENTS TO CARERS,2102590164
09.11.2016,CHILDREN'S SERVICES,REDACTED PERSONAL DATA,465.52,ADOPTION PLACEMENTS & INTER AGENCY,PAYMENTS TO CARERS,2102590119
09.11.2016,CHILDREN'S SERVICES,REDACTED PERSONAL DATA,465.52,ADOPTION PLACEMENTS & INTER AGENCY,PAYMENTS TO CARERS,2102590052
09.11.2016,CHILDREN'S SERVICES,REDACTED PERSONAL DATA,465.54,ADOPTION PLACEMENTS & INTER AGENCY,PAYMENTS TO CARERS,2102590083
09.11.2016,CHILDREN'S SERVICES,REDACTED PERSONAL DATA,465.54,ADOPTION PLACEMENTS & INTER AGENCY,PAYMENTS TO CARERS,2102590121
09.11.2016,CHILDREN'S SERVICES,REDACTED PERSONAL DATA,465.54,ADOPTION PLACEMENTS & INTER AGENCY,PAYMENTS TO CARERS,2102590159
09.11.2016,CHILDREN'S SERVICES,REDACTED PERSONAL DATA,465.54,ADOPTION PLACEMENTS & INTER AGENCY,PAYMENTS TO CARERS,2102590091
09.11.2016,CHILDREN'S SERVICES,REDACTED PERSONAL DATA,465.54,ADOPTION PLACEMENTS & INTER AGENCY,PAYMENTS TO CARERS,2102590127
09.11.2016,CHILDREN'S SERVICES,REDACTED PERSONAL DATA,468.46,ADOPTION PLACEMENTS & INTER AGENCY,PAYMENTS TO CARERS,2102590140
09.11.2016,CHILDREN'S SERVICES,REDACTED PERSONAL DATA,484.92,ADOPTION PLACEMENTS & INTER AGENCY,PAYMENTS TO CARERS,2102590177
09.11.2016,CHILDREN'S SERVICES,REDACTED PERSONAL DATA,485.22,ADOPTION PLACEMENTS & INTER AGENCY,PAYMENTS TO CARERS,2102590082
09.11.2016,CHILDREN'S SERVICES,REDACTED PERSONAL DATA,502.00,ADOPTION PLACEMENTS & INTER AGENCY,PAYMENTS TO CARERS,2102590150
09.11.2016,CHILDREN'S SERVICES,REDACTED PERSONAL DATA,512.02,ADOPTION PLACEMENTS & INTER AGENCY,PAYMENTS TO CARERS,2102590131
09.11.2016,CHILDREN'S SERVICES,REDACTED PERSONAL DATA,513.54,ADOPTION PLACEMENTS & INTER AGENCY,PAYMENTS TO CARERS,2102590151
09.11.2016,CHILDREN'S SERVICES,REDACTED PERSONAL DATA,530.00,ADOPTION PLACEMENTS & INTER AGENCY,PAYMENTS TO CARERS,2102590065
09.11.2016,CHILDREN'S SERVICES,REDACTED PERSONAL DATA,534.54,ADOPTION PLACEMENTS & INTER AGENCY,PAYMENTS TO CARERS,2102590096
09.11.2016,CHILDREN'S SERVICES,REDACTED PERSONAL DATA,552.16,ADOPTION PLACEMENTS & INTER AGENCY,PAYMENTS TO CARERS,2102590147
09.11.2016,CHILDREN'S SERVICES,REDACTED PERSONAL DATA,559.06,ADOPTION PLACEMENTS & INTER AGENCY,PAYMENTS TO CARERS,2102590051
09.11.2016,CHILDREN'S SERVICES,REDACTED PERSONAL DATA,588.42,ADOPTION PLACEMENTS & INTER AGENCY,PAYMENTS TO CARERS,2102590116
09.11.2016,CHILDREN'S SERVICES,REDACTED PERSONAL DATA,618.04,ADOPTION PLACEMENTS & INTER AGENCY,PAYMENTS TO CARERS,2102590032
09.11.2016,CHILDREN'S SERVICES,REDACTED PERSONAL DATA,626.00,ADOPTION PLACEMENTS & INTER AGENCY,PAYMENTS TO CARERS,2102590085
09.11.2016,CHILDREN'S SERVICES,REDACTED PERSONAL DATA,635.34,ADOPTION PLACEMENTS & INTER AGENCY,PAYMENTS TO CARERS,2102590067
09.11.2016,CHILDREN'S SERVICES,REDACTED PERSONAL DATA,635.34,ADOPTION PLACEMENTS & INTER AGENCY,PAYMENTS TO CARERS,2102590109
09.11.2016,CHILDREN'S SERVICES,REDACTED PERSONAL DATA,637.94,ADOPTION PLACEMENTS & INTER AGENCY,PAYMENTS TO CARERS,2102590157
09.11.2016,CHILDREN'S SERVICES,REDACTED PERSONAL DATA,652.90,ADOPTION PLACEMENTS & INTER AGENCY,PAYMENTS TO CARERS,2102590113
09.11.2016,CHILDREN'S SERVICES,REDACTED PERSONAL DATA,652.90,ADOPTION PLACEMENTS & INTER AGENCY,PAYMENTS TO CARERS,2102590158
09.11.2016,CHILDREN'S SERVICES,REDACTED PERSONAL DATA,653.06,ADOPTION PLACEMENTS & INTER AGENCY,PAYMENTS TO CARERS,2102590122
09.11.2016,CHILDREN'S SERVICES,REDACTED PERSONAL DATA,660.00,ADOPTION PLACEMENTS & INTER AGENCY,PAYMENTS TO CARERS,2102590023
09.11.2016,CHILDREN'S SERVICES,REDACTED PERSONAL DATA,670.90,ADOPTION PLACEMENTS & INTER AGENCY,PAYMENTS TO CARERS,2102590078
09.11.2016,CHILDREN'S SERVICES,REDACTED PERSONAL DATA,695.04,ADOPTION PLACEMENTS & INTER AGENCY,PAYMENTS TO CARERS,2102590100
09.11.2016,CHILDREN'S SERVICES,REDACTED PERSONAL DATA,695.12,ADOPTION PLACEMENTS & INTER AGENCY,PAYMENTS TO CARERS,2102590025
09.11.2016,CHILDREN'S SERVICES,REDACTED PERSONAL DATA,705.24,ADOPTION PLACEMENTS & INTER AGENCY,PAYMENTS TO CARERS,2102590175
09.11.2016,CHILDREN'S SERVICES,REDACTED PERSONAL DATA,712.30,ADOPTION PLACEMENTS & INTER AGENCY,PAYMENTS TO CARERS,2102590053
09.11.2016,CHILDREN'S SERVICES,REDACTED PERSONAL DATA,717.14,ADOPTION PLACEMENTS & INTER AGENCY,PAYMENTS TO CARERS,2102590139
09.11.2016,CHILDREN'S SERVICES,REDACTED PERSONAL DATA,738.32,ADOPTION PLACEMENTS & INTER AGENCY,PAYMENTS TO CARERS,2102590073
09.11.2016,CHILDREN'S SERVICES,REDACTED PERSONAL DATA,767.68,ADOPTION PLACEMENTS & INTER AGENCY,PAYMENTS TO CARERS,2102590045
09.11.2016,CHILDREN'S SERVICES,REDACTED PERSONAL DATA,777.36,ADOPTION PLACEMENTS & INTER AGENCY,PAYMENTS TO CARERS,2102590087
09.11.2016,CHILDREN'S SERVICES,REDACTED PERSONAL DATA,800.00,ADOPTION PLACEMENTS & INTER AGENCY,PAYMENTS TO CARERS,2102590166
09.11.2016,CHILDREN'S SERVICES,REDACTED PERSONAL DATA,854.28,ADOPTION PLACEMENTS & INTER AGENCY,PAYMENTS TO CARERS,2102590077
09.11.2016,CHILDREN'S SERVICES,REDACTED PERSONAL DATA,908.00,ADOPTION PLACEMENTS & INTER AGENCY,PAYMENTS TO CARERS,2102590038
09.11.2016,CHILDREN'S SERVICES,REDACTED PERSONAL DATA,"1,011.20",ADOPTION PLACEMENTS & INTER AGENCY,PAYMENTS TO CARERS,2102590128
09.11.2016,CHILDREN'S SERVICES,REDACTED PERSONAL DATA,"1,053.20",ADOPTION PLACEMENTS & INTER AGENCY,PAYMENTS TO CARERS,2102590036
09.11.2016,CHILDREN'S SERVICES,REDACTED PERSONAL DATA,"1,123.75",ADOPTION PLACEMENTS & INTER AGENCY,PAYMENTS TO CARERS,2102590136
09.11.2016,CHILDREN'S SERVICES,CARE O LINE,755.62,AIS - IHT,OTHER PAYMENTS FOR CLIENTS,5902221965
09.11.2016,CHILDREN'S SERVICES,CONTACT PROFESSIONALS,361.00,AIS - PRE BIRTH,OTHER PAYMENTS FOR CLIENTS,5902222030
09.11.2016,CHILDREN'S SERVICES,KENT COUNTY COUNCIL - LASER,"1,470.36",BUILDING SUMNER,ELECTRICITY,5902222001
09.11.2016,CHILDREN'S SERVICES,CENMAC,"44,183.50",CENMAC EQUIPMENT,STATEMENTED FEES,2102590855
09.11.2016,CHILDREN'S SERVICES,REDACTED PERSONAL DATA,300.00,DISABILITY & HIV,ADDITIONAL PAYMENTS TO AGENCIES/CARERS,2102590211
09.11.2016,CHILDREN'S SERVICES,REDACTED PERSONAL DATA,300.00,DISABILITY & HIV,ADDITIONAL PAYMENTS TO AGENCIES/CARERS,2102590436
09.11.2016,CHILDREN'S SERVICES,REDACTED PERSONAL DATA,300.00,DISABILITY & HIV,ADDITIONAL PAYMENTS TO AGENCIES/CARERS,2102590403
09.11.2016,CHILDREN'S SERVICES,REDACTED PERSONAL DATA,300.00,DISABILITY & HIV,ADDITIONAL PAYMENTS TO AGENCIES/CARERS,2102590407
09.11.2016,CHILDREN'S SERVICES,REDACTED PERSONAL DATA,300.00,DISABILITY & HIV,ADDITIONAL PAYMENTS TO AGENCIES/CARERS,2102590409
09.11.2016,CHILDREN'S SERVICES,REDACTED PERSONAL DATA,400.00,DISABILITY & HIV,ADDITIONAL PAYMENTS TO AGENCIES/CARERS,2102590396
09.11.2016,CHILDREN'S SERVICES,REDACTED PERSONAL DATA,510.81,DISABILITY & HIV,ADDITIONAL PAYMENTS TO AGENCIES/CARERS,2102590444
09.11.2016,CHILDREN'S SERVICES,REDACTED PERSONAL DATA,700.00,DISABILITY & HIV,ADDITIONAL PAYMENTS TO AGENCIES/CARERS,2102590259
09.11.2016,CHILDREN'S SERVICES,REDACTED PERSONAL DATA,300.00,DISABILITY & HIV,OTHER PAYMENTS FOR CLIENTS,2102590370
09.11.2016,CHILDREN'S SERVICES,REDACTED PERSONAL DATA,315.00,DISABILITY & HIV,OTHER PAYMENTS FOR CLIENTS,2102590385
09.11.2016,CHILDREN'S SERVICES,REDACTED PERSONAL DATA,-635.34,DISABILITY & HIV,PAYMENTS TO CARERS,2102590238
09.11.2016,CHILDREN'S SERVICES,REDACTED PERSONAL DATA,-534.64,DISABILITY & HIV,PAYMENTS TO CARERS,2102590463
09.11.2016,CHILDREN'S SERVICES,REDACTED PERSONAL DATA,-457.91,DISABILITY & HIV,PAYMENTS TO CARERS,2102590195
09.11.2016,CHILDREN'S SERVICES,REDACTED PERSONAL DATA,-456.07,DISABILITY & HIV,PAYMENTS TO CARERS,2102590452
09.11.2016,CHILDREN'S SERVICES,REDACTED PERSONAL DATA,-444.06,DISABILITY & HIV,PAYMENTS TO CARERS,2102590460
09.11.2016,CHILDREN'S SERVICES,REDACTED PERSONAL DATA,-414.06,DISABILITY & HIV,PAYMENTS TO CARERS,2102590411
09.11.2016,CHILDREN'S SERVICES,REDACTED PERSONAL DATA,-384.06,DISABILITY & HIV,PAYMENTS TO CARERS,2102590446
09.11.2016,CHILDREN'S SERVICES,REDACTED PERSONAL DATA,-380.62,DISABILITY & HIV,PAYMENTS TO CARERS,2102590318
09.11.2016,CHILDREN'S SERVICES,REDACTED PERSONAL DATA,-285.04,DISABILITY & HIV,PAYMENTS TO CARERS,2102590297
09.11.2016,CHILDREN'S SERVICES,REDACTED PERSONAL DATA,300.00,DISABILITY & HIV,PAYMENTS TO CARERS,2102590421
09.11.2016,CHILDREN'S SERVICES,REDACTED PERSONAL DATA,300.00,DISABILITY & HIV,PAYMENTS TO CARERS,2102590344
09.11.2016,CHILDREN'S SERVICES,REDACTED PERSONAL DATA,338.50,DISABILITY & HIV,PAYMENTS TO CARERS,2102590443
09.11.2016,CHILDREN'S SERVICES,REDACTED PERSONAL DATA,508.79,DISABILITY & HIV,PAYMENTS TO CARERS,2102590270
09.11.2016,CHILDREN'S SERVICES,REDACTED PERSONAL DATA,635.34,DISABILITY & HIV,PAYMENTS TO CARERS,2102590319
09.11.2016,CHILDREN'S SERVICES,REDACTED PERSONAL DATA,635.34,DISABILITY & HIV,PAYMENTS TO CARERS,2102590434
09.11.2016,CHILDREN'S SERVICES,REDACTED PERSONAL DATA,635.34,DISABILITY & HIV,PAYMENTS TO CARERS,2102590428
09.11.2016,CHILDREN'S SERVICES,REDACTED PERSONAL DATA,635.34,DISABILITY & HIV,PAYMENTS TO CARERS,2102590380
09.11.2016,CHILDREN'S SERVICES,REDACTED PERSONAL DATA,635.34,DISABILITY & HIV,PAYMENTS TO CARERS,2102590423
09.11.2016,CHILDREN'S SERVICES,REDACTED PERSONAL DATA,635.34,DISABILITY & HIV,PAYMENTS TO CARERS,2102590203
09.11.2016,CHILDREN'S SERVICES,REDACTED PERSONAL DATA,635.34,DISABILITY & HIV,PAYMENTS TO CARERS,2102590424
09.11.2016,CHILDREN'S SERVICES,REDACTED PERSONAL DATA,635.34,DISABILITY & HIV,PAYMENTS TO CARERS,2102590226
09.11.2016,CHILDREN'S SERVICES,REDACTED PERSONAL DATA,635.34,DISABILITY & HIV,PAYMENTS TO CARERS,2102590392
09.11.2016,CHILDREN'S SERVICES,REDACTED PERSONAL DATA,635.34,DISABILITY & HIV,PAYMENTS TO CARERS,2102590426
09.11.2016,CHILDREN'S SERVICES,REDACTED PERSONAL DATA,635.34,DISABILITY & HIV,PAYMENTS TO CARERS,2102590276
09.11.2016,CHILDREN'S SERVICES,REDACTED PERSONAL DATA,635.34,DISABILITY & HIV,PAYMENTS TO CARERS,2102590359
09.11.2016,CHILDREN'S SERVICES,REDACTED PERSONAL DATA,654.34,DISABILITY & HIV,PAYMENTS TO CARERS,2102590311
09.11.2016,CHILDREN'S SERVICES,REDACTED PERSONAL DATA,665.34,DISABILITY & HIV,PAYMENTS TO CARERS,2102590323
09.11.2016,CHILDREN'S SERVICES,REDACTED PERSONAL DATA,665.34,DISABILITY & HIV,PAYMENTS TO CARERS,2102590204
09.11.2016,CHILDREN'S SERVICES,REDACTED PERSONAL DATA,665.34,DISABILITY & HIV,PAYMENTS TO CARERS,2102590355
09.11.2016,CHILDREN'S SERVICES,REDACTED PERSONAL DATA,665.34,DISABILITY & HIV,PAYMENTS TO CARERS,2102590189
09.11.2016,CHILDREN'S SERVICES,REDACTED PERSONAL DATA,665.34,DISABILITY & HIV,PAYMENTS TO CARERS,2102590383
09.11.2016,CHILDREN'S SERVICES,REDACTED PERSONAL DATA,665.34,DISABILITY & HIV,PAYMENTS TO CARERS,2102590442
09.11.2016,CHILDREN'S SERVICES,REDACTED PERSONAL DATA,665.34,DISABILITY & HIV,PAYMENTS TO CARERS,2102590315
09.11.2016,CHILDREN'S SERVICES,REDACTED PERSONAL DATA,665.34,DISABILITY & HIV,PAYMENTS TO CARERS,2102590304
09.11.2016,CHILDREN'S SERVICES,REDACTED PERSONAL DATA,665.34,DISABILITY & HIV,PAYMENTS TO CARERS,2102590244
09.11.2016,CHILDREN'S SERVICES,REDACTED PERSONAL DATA,665.34,DISABILITY & HIV,PAYMENTS TO CARERS,2102590326
09.11.2016,CHILDREN'S SERVICES,REDACTED PERSONAL DATA,665.34,DISABILITY & HIV,PAYMENTS TO CARERS,2102590330
09.11.2016,CHILDREN'S SERVICES,REDACTED PERSONAL DATA,665.34,DISABILITY & HIV,PAYMENTS TO CARERS,2102590263
09.11.2016,CHILDREN'S SERVICES,REDACTED PERSONAL DATA,682.30,DISABILITY & HIV,PAYMENTS TO CARERS,2102590349
09.11.2016,CHILDREN'S SERVICES,REDACTED PERSONAL DATA,682.30,DISABILITY & HIV,PAYMENTS TO CARERS,2102590395
09.11.2016,CHILDREN'S SERVICES,REDACTED PERSONAL DATA,682.30,DISABILITY & HIV,PAYMENTS TO CARERS,2102590322
09.11.2016,CHILDREN'S SERVICES,REDACTED PERSONAL DATA,682.30,DISABILITY & HIV,PAYMENTS TO CARERS,2102590274
09.11.2016,CHILDREN'S SERVICES,REDACTED PERSONAL DATA,682.30,DISABILITY & HIV,PAYMENTS TO CARERS,2102590347
09.11.2016,CHILDREN'S SERVICES,REDACTED PERSONAL DATA,682.30,DISABILITY & HIV,PAYMENTS TO CARERS,2102590363
09.11.2016,CHILDREN'S SERVICES,REDACTED PERSONAL DATA,682.30,DISABILITY & HIV,PAYMENTS TO CARERS,2102590471
09.11.2016,CHILDREN'S SERVICES,REDACTED PERSONAL DATA,682.30,DISABILITY & HIV,PAYMENTS TO CARERS,2102590478
09.11.2016,CHILDREN'S SERVICES,REDACTED PERSONAL DATA,682.30,DISABILITY & HIV,PAYMENTS TO CARERS,2102590286
09.11.2016,CHILDREN'S SERVICES,REDACTED PERSONAL DATA,682.30,DISABILITY & HIV,PAYMENTS TO CARERS,2102590320
09.11.2016,CHILDREN'S SERVICES,REDACTED PERSONAL DATA,682.30,DISABILITY & HIV,PAYMENTS TO CARERS,2102590429
09.11.2016,CHILDREN'S SERVICES,REDACTED PERSONAL DATA,682.30,DISABILITY & HIV,PAYMENTS TO CARERS,2102590247
09.11.2016,CHILDREN'S SERVICES,REDACTED PERSONAL DATA,682.30,DISABILITY & HIV,PAYMENTS TO CARERS,2102590232
09.11.2016,CHILDREN'S SERVICES,REDACTED PERSONAL DATA,682.30,DISABILITY & HIV,PAYMENTS TO CARERS,2102590441
09.11.2016,CHILDREN'S SERVICES,REDACTED PERSONAL DATA,682.30,DISABILITY & HIV,PAYMENTS TO CARERS,2102590402
09.11.2016,CHILDREN'S SERVICES,REDACTED PERSONAL DATA,682.30,DISABILITY & HIV,PAYMENTS TO CARERS,2102590481
09.11.2016,CHILDREN'S SERVICES,REDACTED PERSONAL DATA,682.30,DISABILITY & HIV,PAYMENTS TO CARERS,2102590438
09.11.2016,CHILDREN'S SERVICES,REDACTED PERSONAL DATA,682.30,DISABILITY & HIV,PAYMENTS TO CARERS,2102590190
09.11.2016,CHILDREN'S SERVICES,REDACTED PERSONAL DATA,712.30,DISABILITY & HIV,PAYMENTS TO CARERS,2102590299
09.11.2016,CHILDREN'S SERVICES,REDACTED PERSONAL DATA,712.30,DISABILITY & HIV,PAYMENTS TO CARERS,2102590369
09.11.2016,CHILDREN'S SERVICES,REDACTED PERSONAL DATA,712.30,DISABILITY & HIV,PAYMENTS TO CARERS,2102590266
09.11.2016,CHILDREN'S SERVICES,REDACTED PERSONAL DATA,712.30,DISABILITY & HIV,PAYMENTS TO CARERS,2102590384
09.11.2016,CHILDREN'S SERVICES,REDACTED PERSONAL DATA,712.30,DISABILITY & HIV,PAYMENTS TO CARERS,2102590325
09.11.2016,CHILDREN'S SERVICES,REDACTED PERSONAL DATA,712.30,DISABILITY & HIV,PAYMENTS TO CARERS,2102590227
09.11.2016,CHILDREN'S SERVICES,REDACTED PERSONAL DATA,712.30,DISABILITY & HIV,PAYMENTS TO CARERS,2102590181
09.11.2016,CHILDREN'S SERVICES,REDACTED PERSONAL DATA,712.30,DISABILITY & HIV,PAYMENTS TO CARERS,2102590255
09.11.2016,CHILDREN'S SERVICES,REDACTED PERSONAL DATA,712.30,DISABILITY & HIV,PAYMENTS TO CARERS,2102590272
09.11.2016,CHILDREN'S SERVICES,REDACTED PERSONAL DATA,750.00,DISABILITY & HIV,PAYMENTS TO CARERS,2102590334
09.11.2016,CHILDREN'S SERVICES,REDACTED PERSONAL DATA,768.12,DISABILITY & HIV,PAYMENTS TO CARERS,2102590399
09.11.2016,CHILDREN'S SERVICES,REDACTED PERSONAL DATA,768.12,DISABILITY & HIV,PAYMENTS TO CARERS,2102590453
09.11.2016,CHILDREN'S SERVICES,REDACTED PERSONAL DATA,776.08,DISABILITY & HIV,PAYMENTS TO CARERS,2102590464
09.11.2016,CHILDREN'S SERVICES,REDACTED PERSONAL DATA,776.08,DISABILITY & HIV,PAYMENTS TO CARERS,2102590336
09.11.2016,CHILDREN'S SERVICES,REDACTED PERSONAL DATA,776.08,DISABILITY & HIV,PAYMENTS TO CARERS,2102590301
09.11.2016,CHILDREN'S SERVICES,REDACTED PERSONAL DATA,776.08,DISABILITY & HIV,PAYMENTS TO CARERS,2102590343
09.11.2016,CHILDREN'S SERVICES,REDACTED PERSONAL DATA,776.08,DISABILITY & HIV,PAYMENTS TO CARERS,2102590408
09.11.2016,CHILDREN'S SERVICES,REDACTED PERSONAL DATA,776.08,DISABILITY & HIV,PAYMENTS TO CARERS,2102590398
09.11.2016,CHILDREN'S SERVICES,REDACTED PERSONAL DATA,776.08,DISABILITY & HIV,PAYMENTS TO CARERS,2102590253
09.11.2016,CHILDREN'S SERVICES,REDACTED PERSONAL DATA,776.08,DISABILITY & HIV,PAYMENTS TO CARERS,2102590430
09.11.2016,CHILDREN'S SERVICES,REDACTED PERSONAL DATA,776.08,DISABILITY & HIV,PAYMENTS TO CARERS,2102590209
09.11.2016,CHILDREN'S SERVICES,REDACTED PERSONAL DATA,776.08,DISABILITY & HIV,PAYMENTS TO CARERS,2102590486
09.11.2016,CHILDREN'S SERVICES,REDACTED PERSONAL DATA,798.00,DISABILITY & HIV,PAYMENTS TO CARERS,2102590368
09.11.2016,CHILDREN'S SERVICES,REDACTED PERSONAL DATA,798.12,DISABILITY & HIV,PAYMENTS TO CARERS,2102590405
09.11.2016,CHILDREN'S SERVICES,REDACTED PERSONAL DATA,798.12,DISABILITY & HIV,PAYMENTS TO CARERS,2102590455
